Workbook

Sheet Full Report
B4: BUSINESS INVESTMENT DECISION (BID) TOOL
B5: =UPPER(Background!D6) -> HUDSON AND FLORENCE INVESTMENTS LTD (HFL)
B7: =TRIM(Background!D12) -> P.O Box 119659, Kampala, Uganda.
B8: =TRIM(Background!D9) -> Uganda
B10: =TRIM(Background!D15) -> Mobile: +256 704 913399 / +256 782 602963 Email: info@mt.co.ug
B11: =NOW() -> 2025-08-28T15:04:02.510
B15: 1.0. BACKGROUND INFORMATION
B17: Mission | D17: =TRIM(Background!D18) -> To protect plants from pests, weeds and invasive species. To facilitate review and strengthening of the policy, legal and regulatory framework, so that it is in tandem with both local and international agricultural sector emerging issues.
B19: Vision | D19: =TRIM(Background!D21) -> To provide a science based regulatory service by assuring plant health, quality of agricultural inputs and produce for food security, globally competitive agriculture and sustainable development.
B21: Objectives | D21: =TRIM(Background!D24) -> Regulate matters relating to plant protection, seeds and plant varieties; Administer and enforce Sanitary and Phytosanitary measures; Support the administration and enforcement of food safety measures;
B23: Core Values | D23: =TRIM(Background!D27) -> Assure the quality of agricultural inputs and produce to prevent adverse impact on the economy, the environment and human health.
B25: Sectors | D25: =CONCATENATE(IF(LEN(Background!D32) > 0, CONCATENATE("1. ", Background!D32), ""), IF(LEN(Background!D34) > 0, CONCATENATE("; 2. ", Background!D34), ""), IF(LEN(Background!D36) > 0, CONCATENATE("; 3. ", Background!D36), ""), IF(LEN(Background!D38) > 0, CONCATENATE("; 4. ", Background!D38), ""), IF(LEN(Background!D40) > 0, CONCATENATE("; 5. ", Background!D40), "")) -> 1. Agriculture; 2. Services
B27: Products/ Services Offered | D27: =CONCATENATE(IF(LEN(Background!D46) > 0, CONCATENATE("1. ", Background!D46), ""), IF(LEN(Background!D48) > 0, CONCATENATE("; 2. ", Background!D48), ""), IF(LEN(Background!D50) > 0, CONCATENATE("; 3. ", Background!D50), ""), IF(LEN(Background!D52) > 0, CONCATENATE("; 4. ", Background!D52), ""), IF(LEN(Background!D54) > 0, CONCATENATE("; 5. ", Background!D54), ""), IF(LEN(Background!D56) > 0, CONCATENATE("; 6. ", Background!D56), ""), IF(LEN(Background!D58) > 0, CONCATENATE("; 7. ", Background!D58), ""), IF(LEN(Background!D60) > 0, CONCATENATE("; 8. ", Background!D60), ""), IF(LEN(Background!D62) > 0, CONCATENATE("; 9. ", Background!D62), ""), IF(LEN(Background!D64) > 0, CONCATENATE("; 10. ", Background!D64), ""), IF(LEN(Background!D66) > 0, CONCATENATE("; 11. ", Background!D66), ""), IF(LEN(Background!D68) > 0, CONCATENATE("; 12. ", Background!D68), ""), IF(LEN(Background!D70) > 0, CONCATENATE("; 13. ", Background!D70), ""), IF(LEN(Background!D72) > 0, CONCATENATE("; 14. ", Background!D72), ""), IF(LEN(Background!D74) > 0, CONCATENATE("; 15. ", Background!D74), "")) -> 1. Cleaning of varieties (disease elimination); 2. Multiplication of cleaned varieties; 3. Disease Diagnostics; 4. Diagnostics sequencing; 5. Genotyping; 6. Training/ capacity building (Indexing/ cleaning, seed/ multiplication, seed/ screenhouse/ Tissue Culture); 7. Management training (Seed Entrepreneurship); 8. Conservation (Multiplication of conserved varieties); 9. Facilities for Research (PhD Students, postdocs, scientists); 10. Delivery of cleaned materials; 11. Diagnostics sequencing; 12. Advisory services (marketing advisory, value addition advisory)
B29: Customers | D29: =CONCATENATE(IF(LEN(Background!D124) > 0, CONCATENATE("1. ", Background!D124), ""), IF(LEN(Background!D126) > 0, CONCATENATE("; 2. ", Background!D126), ""), IF(LEN(Background!D128) > 0, CONCATENATE("; 3. ", Background!D128), ""), IF(LEN(Background!D130) > 0, CONCATENATE("; 4. ", Background!D130), ""), IF(LEN(Background!D132) > 0, CONCATENATE("; 5. ", Background!D132), ""), IF(LEN(Background!D134) > 0, CONCATENATE("; 6. ", Background!D134), ""), IF(LEN(Background!D136) > 0, CONCATENATE("; 7. ", Background!D136), ""), IF(LEN(Background!D138) > 0, CONCATENATE("; 8. ", Background!D138), ""), IF(LEN(Background!D140) > 0, CONCATENATE("; 9. ", Background!D140), ""), IF(LEN(Background!D142) > 0, CONCATENATE("; 10. ", Background!D142), ""), IF(LEN(Background!D144) > 0, CONCATENATE("; 11. ", Background!D144), ""), IF(LEN(Background!D146) > 0, CONCATENATE("; 12. ", Background!D146), ""), IF(LEN(Background!D148) > 0, CONCATENATE("; 13. ", Background!D148), ""), IF(LEN(Background!D150) > 0, CONCATENATE("; 14. ", Background!D150), ""), IF(LEN(Background!D152) > 0, CONCATENATE("; 15. ", Background!D152), "")) -> 1. NARES; 2. Local Governments; 3. CGIAR Centers; 4. Private Companies; 5. Nurseries; 6. Seed Multipliers; 7. Academic Institutions; 8. NGOs; 9. UN Organisations (WFP, FAO, etc.)
B32: ORGANISATIONAL STRUCTURE
B45: 2.0. BUSINESS ENVIRONMENT
B48: 2.1. SWOT ANALYSIS
B50: STRENGTHS | J50: WEAKNESSES
B51: =CONCATENATE(IF(LEN(Environment!D9) > 0, CONCATENATE("1. ", Environment!D9), ""), IF(LEN(Environment!D11) > 0, CONCATENATE("; 2. ", Environment!D11), ""), IF(LEN(Environment!D13) > 0, CONCATENATE("; 3. ", Environment!D13), ""), IF(LEN(Environment!D15) > 0, CONCATENATE("; 4. ", Environment!D15), ""), IF(LEN(Environment!D17) > 0, CONCATENATE("; 5. ", Environment!D17), ""), IF(LEN(Environment!D19) > 0, CONCATENATE("; 6. ", Environment!D19), ""), IF(LEN(Environment!D21) > 0, CONCATENATE("; 7. ", Environment!D21), ""), IF(LEN(Environment!D23) > 0, CONCATENATE("; 8. ", Environment!D23), ""), IF(LEN(Environment!D25) > 0, CONCATENATE("; 9. ", Environment!D25), ""), IF(LEN(Environment!D27) > 0, CONCATENATE("; 10. ", Environment!D27), ""), IF(LEN(Environment!D29) > 0, CONCATENATE("; 11. ", Environment!D29), ""), IF(LEN(Environment!D31) > 0, CONCATENATE("; 12. ", Environment!D31), ""), IF(LEN(Environment!D33) > 0, CONCATENATE("; 13. ", Environment!D33), ""), IF(LEN(Environment!D35) > 0, CONCATENATE("; 14. ", Environment!D35), ""), IF(LEN(Environment!D37) > 0, CONCATENATE("; 15. ", Environment!D37), "")) -> 1. Strong Brands; 2. Technologies to test for viruses; 3. Skilled workforce | J51: =CONCATENATE(IF(LEN(Environment!F9) > 0, CONCATENATE("1. ", Environment!F9), ""), IF(LEN(Environment!F11) > 0, CONCATENATE("; 2. ", Environment!F11), ""), IF(LEN(Environment!F13) > 0, CONCATENATE("; 3. ", Environment!F13), ""), IF(LEN(Environment!F15) > 0, CONCATENATE("; 4. ", Environment!F15), ""), IF(LEN(Environment!F17) > 0, CONCATENATE("; 5. ", Environment!F17), ""), IF(LEN(Environment!F19) > 0, CONCATENATE("; 6. ", Environment!F19), ""), IF(LEN(Environment!F21) > 0, CONCATENATE("; 7. ", Environment!F21), ""), IF(LEN(Environment!F23) > 0, CONCATENATE("; 8. ", Environment!F23), ""), IF(LEN(Environment!F25) > 0, CONCATENATE("; 9. ", Environment!F25), ""), IF(LEN(Environment!F27) > 0, CONCATENATE("; 10. ", Environment!F27), ""), IF(LEN(Environment!F29) > 0, CONCATENATE("; 11. ", Environment!F29), ""), IF(LEN(Environment!F31) > 0, CONCATENATE("; 12. ", Environment!F31), ""), IF(LEN(Environment!F33) > 0, CONCATENATE("; 13. ", Environment!F33), ""), IF(LEN(Environment!F35) > 0, CONCATENATE("; 14. ", Environment!F35), ""), IF(LEN(Environment!F37) > 0, CONCATENATE("; 15. ", Environment!F37), "")) -> 1. Limited resources; 2. High cost of chemicals; 3. Lack of effective ICT system
B53: OPPORTUNITIES | J53: THREATS
B54: =CONCATENATE(IF(LEN(Environment!H9) > 0, CONCATENATE("1. ", Environment!H9), ""), IF(LEN(Environment!H11) > 0, CONCATENATE("; 2. ", Environment!H11), ""), IF(LEN(Environment!H13) > 0, CONCATENATE("; 3. ", Environment!H13), ""), IF(LEN(Environment!H15) > 0, CONCATENATE("; 4. ", Environment!H15), ""), IF(LEN(Environment!H17) > 0, CONCATENATE("; 5. ", Environment!H17), ""), IF(LEN(Environment!H19) > 0, CONCATENATE("; 6. ", Environment!H19), ""), IF(LEN(Environment!H21) > 0, CONCATENATE("; 7. ", Environment!H21), ""), IF(LEN(Environment!H23) > 0, CONCATENATE("; 8. ", Environment!H23), ""), IF(LEN(Environment!H25) > 0, CONCATENATE("; 9. ", Environment!H25), ""), IF(LEN(Environment!H27) > 0, CONCATENATE("; 10. ", Environment!H27), ""), IF(LEN(Environment!H29) > 0, CONCATENATE("; 11. ", Environment!H29), ""), IF(LEN(Environment!H31) > 0, CONCATENATE("; 12. ", Environment!H31), ""), IF(LEN(Environment!H33) > 0, CONCATENATE("; 13. ", Environment!H33), ""), IF(LEN(Environment!H35) > 0, CONCATENATE("; 14. ", Environment!H35), ""), IF(LEN(Environment!H37) > 0, CONCATENATE("; 15. ", Environment!H37), "")) -> 1. Growing clean seed market; 2. New and fater equipment; 3. Involvement of many NGOs in clean seed promotion | J54: =CONCATENATE(IF(LEN(Environment!J9) > 0, CONCATENATE("1. ", Environment!J9), ""), IF(LEN(Environment!J11) > 0, CONCATENATE("; 2. ", Environment!J11), ""), IF(LEN(Environment!J13) > 0, CONCATENATE("; 3. ", Environment!J13), ""), IF(LEN(Environment!J15) > 0, CONCATENATE("; 4. ", Environment!J15), ""), IF(LEN(Environment!J17) > 0, CONCATENATE("; 5. ", Environment!J17), ""), IF(LEN(Environment!J19) > 0, CONCATENATE("; 6. ", Environment!J19), ""), IF(LEN(Environment!J21) > 0, CONCATENATE("; 7. ", Environment!J21), ""), IF(LEN(Environment!J23) > 0, CONCATENATE("; 8. ", Environment!J23), ""), IF(LEN(Environment!J25) > 0, CONCATENATE("; 9. ", Environment!J25), ""), IF(LEN(Environment!J27) > 0, CONCATENATE("; 10. ", Environment!J27), ""), IF(LEN(Environment!J29) > 0, CONCATENATE("; 11. ", Environment!J29), ""), IF(LEN(Environment!J31) > 0, CONCATENATE("; 12. ", Environment!J31), ""), IF(LEN(Environment!J33) > 0, CONCATENATE("; 13. ", Environment!J33), ""), IF(LEN(Environment!J35) > 0, CONCATENATE("; 14. ", Environment!J35), ""), IF(LEN(Environment!J37) > 0, CONCATENATE("; 15. ", Environment!J37), "")) -> 1. Fast emerging new laboratories giving fake phytosanitary services; 2. New technologies that could make VPC entrepreneurs to self test varieties using mobile apps; 3. Many farmers prefering local varieties instead of improved ones
B57: 2.2. PESTEL ANALYSIS
B59: P | D59: POLITICAL | E59: =CONCATENATE(IF(LEN(Environment!D43) > 0, CONCATENATE("1. ", Environment!D43), ""), IF(LEN(Environment!D45) > 0, CONCATENATE("; 2. ", Environment!D45), ""), IF(LEN(Environment!D47) > 0, CONCATENATE("; 3. ", Environment!D47), ""), IF(LEN(Environment!D49) > 0, CONCATENATE("; 4. ", Environment!D49), ""), IF(LEN(Environment!D51) > 0, CONCATENATE("; 5. ", Environment!D51), ""), IF(LEN(Environment!D53) > 0, CONCATENATE("; 6. ", Environment!D53), ""), IF(LEN(Environment!D55) > 0, CONCATENATE("; 7. ", Environment!D55), ""), IF(LEN(Environment!D57) > 0, CONCATENATE("; 8. ", Environment!D57), ""), IF(LEN(Environment!D59) > 0, CONCATENATE("; 9. ", Environment!D59), ""), IF(LEN(Environment!D61) > 0, CONCATENATE("; 10. ", Environment!D61), ""), IF(LEN(Environment!D63) > 0, CONCATENATE("; 11. ", Environment!D63), ""), IF(LEN(Environment!D65) > 0, CONCATENATE("; 12. ", Environment!D65), ""), IF(LEN(Environment!D67) > 0, CONCATENATE("; 13. ", Environment!D67), ""), IF(LEN(Environment!D69) > 0, CONCATENATE("; 14. ", Environment!D69), ""), IF(LEN(Environment!D71) > 0, CONCATENATE("; 15. ", Environment!D71), "")) -> 1. Constitutional and legal frameworks; 2. Political and administrative frameworks; 3. Security; 4. Governance
B61: E | D61: ECONOMIC | E61: =CONCATENATE(IF(LEN(Environment!F43) > 0, CONCATENATE("1. ", Environment!F43), ""), IF(LEN(Environment!F45) > 0, CONCATENATE("; 2. ", Environment!F45), ""), IF(LEN(Environment!F47) > 0, CONCATENATE("; 3. ", Environment!F47), ""), IF(LEN(Environment!F49) > 0, CONCATENATE("; 4. ", Environment!F49), ""), IF(LEN(Environment!F51) > 0, CONCATENATE("; 5. ", Environment!F51), ""), IF(LEN(Environment!F53) > 0, CONCATENATE("; 6. ", Environment!F53), ""), IF(LEN(Environment!F55) > 0, CONCATENATE("; 7. ", Environment!F55), ""), IF(LEN(Environment!F57) > 0, CONCATENATE("; 8. ", Environment!F57), ""), IF(LEN(Environment!F59) > 0, CONCATENATE("; 9. ", Environment!F59), ""), IF(LEN(Environment!F61) > 0, CONCATENATE("; 10. ", Environment!F61), ""), IF(LEN(Environment!F63) > 0, CONCATENATE("; 11. ", Environment!F63), ""), IF(LEN(Environment!F65) > 0, CONCATENATE("; 12. ", Environment!F65), ""), IF(LEN(Environment!F67) > 0, CONCATENATE("; 13. ", Environment!F67), ""), IF(LEN(Environment!F69) > 0, CONCATENATE("; 14. ", Environment!F69), ""), IF(LEN(Environment!F71) > 0, CONCATENATE("; 15. ", Environment!F71), "")) -> 1. State of economy (economic inequality); 2. COVID19 Lockdown and restrictions; 3. Rising unemployment; 4. Weakened public investments
B63: S | D63: SOCIAL | E63: =CONCATENATE(IF(LEN(Environment!H43) > 0, CONCATENATE("1. ", Environment!H43), ""), IF(LEN(Environment!H45) > 0, CONCATENATE("; 2. ", Environment!H45), ""), IF(LEN(Environment!H47) > 0, CONCATENATE("; 3. ", Environment!H47), ""), IF(LEN(Environment!H49) > 0, CONCATENATE("; 4. ", Environment!H49), ""), IF(LEN(Environment!H51) > 0, CONCATENATE("; 5. ", Environment!H51), ""), IF(LEN(Environment!H53) > 0, CONCATENATE("; 6. ", Environment!H53), ""), IF(LEN(Environment!H55) > 0, CONCATENATE("; 7. ", Environment!H55), ""), IF(LEN(Environment!H57) > 0, CONCATENATE("; 8. ", Environment!H57), ""), IF(LEN(Environment!H59) > 0, CONCATENATE("; 9. ", Environment!H59), ""), IF(LEN(Environment!H61) > 0, CONCATENATE("; 10. ", Environment!H61), ""), IF(LEN(Environment!H63) > 0, CONCATENATE("; 11. ", Environment!H63), ""), IF(LEN(Environment!H65) > 0, CONCATENATE("; 12. ", Environment!H65), ""), IF(LEN(Environment!H67) > 0, CONCATENATE("; 13. ", Environment!H67), ""), IF(LEN(Environment!H69) > 0, CONCATENATE("; 14. ", Environment!H69), ""), IF(LEN(Environment!H71) > 0, CONCATENATE("; 15. ", Environment!H71), "")) -> 1. Traditional practices, rituals and customs; 2. Lack of opportunities for the poor; 3. Lack of public services; 4. Corruption; 5. High crime rates; 6. Poverty; 7. A large gap between the rich and the poor; 8. Food insecurity; 9. Poor nutrition; 10. Crime rates; 11. Exploitation of labor; 12. Preventable diseases
B65: T | D65: TECHNOLOGICAL | E65: =CONCATENATE(IF(LEN(Environment!J43) > 0, CONCATENATE("1. ", Environment!J43), ""), IF(LEN(Environment!J45) > 0, CONCATENATE("; 2. ", Environment!J45), ""), IF(LEN(Environment!J47) > 0, CONCATENATE("; 3. ", Environment!J47), ""), IF(LEN(Environment!J49) > 0, CONCATENATE("; 4. ", Environment!J49), ""), IF(LEN(Environment!J51) > 0, CONCATENATE("; 5. ", Environment!J51), ""), IF(LEN(Environment!J53) > 0, CONCATENATE("; 6. ", Environment!J53), ""), IF(LEN(Environment!J55) > 0, CONCATENATE("; 7. ", Environment!J55), ""), IF(LEN(Environment!J57) > 0, CONCATENATE("; 8. ", Environment!J57), ""), IF(LEN(Environment!J59) > 0, CONCATENATE("; 9. ", Environment!J59), ""), IF(LEN(Environment!J61) > 0, CONCATENATE("; 10. ", Environment!J61), ""), IF(LEN(Environment!J63) > 0, CONCATENATE("; 11. ", Environment!J63), ""), IF(LEN(Environment!J65) > 0, CONCATENATE("; 12. ", Environment!J65), ""), IF(LEN(Environment!J67) > 0, CONCATENATE("; 13. ", Environment!J67), ""), IF(LEN(Environment!J69) > 0, CONCATENATE("; 14. ", Environment!J69), ""), IF(LEN(Environment!J71) > 0, CONCATENATE("; 15. ", Environment!J71), "")) -> 1. State of the telecoms sector; 2. Digital infrastructure; 3. Internet and digital literacy; 4. Availability of electricity
B67: E | D67: ENVIRONMENTAL | E67: =CONCATENATE(IF(LEN(Environment!L43) > 0, CONCATENATE("1. ", Environment!L43), ""), IF(LEN(Environment!L45) > 0, CONCATENATE("; 2. ", Environment!L45), ""), IF(LEN(Environment!L47) > 0, CONCATENATE("; 3. ", Environment!L47), ""), IF(LEN(Environment!L49) > 0, CONCATENATE("; 4. ", Environment!L49), ""), IF(LEN(Environment!L51) > 0, CONCATENATE("; 5. ", Environment!L51), ""), IF(LEN(Environment!L53) > 0, CONCATENATE("; 6. ", Environment!L53), ""), IF(LEN(Environment!L55) > 0, CONCATENATE("; 7. ", Environment!L55), ""), IF(LEN(Environment!L57) > 0, CONCATENATE("; 8. ", Environment!L57), ""), IF(LEN(Environment!L59) > 0, CONCATENATE("; 9. ", Environment!L59), ""), IF(LEN(Environment!L61) > 0, CONCATENATE("; 10. ", Environment!L61), ""), IF(LEN(Environment!L63) > 0, CONCATENATE("; 11. ", Environment!L63), ""), IF(LEN(Environment!L65) > 0, CONCATENATE("; 12. ", Environment!L65), ""), IF(LEN(Environment!L67) > 0, CONCATENATE("; 13. ", Environment!L67), ""), IF(LEN(Environment!L69) > 0, CONCATENATE("; 14. ", Environment!L69), ""), IF(LEN(Environment!L71) > 0, CONCATENATE("; 15. ", Environment!L71), "")) -> 1. Recent and damaging drought; 2. Industrial pollution; 3. Deforestation; 4. Land degradation; 5. desertification; 6. Loss of biodiversity
B69: L | D69: LEGAL | E69: =CONCATENATE(IF(LEN(Environment!N43) > 0, CONCATENATE("1. ", Environment!N43), ""), IF(LEN(Environment!N45) > 0, CONCATENATE("; 2. ", Environment!N45), ""), IF(LEN(Environment!N47) > 0, CONCATENATE("; 3. ", Environment!N47), ""), IF(LEN(Environment!N49) > 0, CONCATENATE("; 4. ", Environment!N49), ""), IF(LEN(Environment!N51) > 0, CONCATENATE("; 5. ", Environment!N51), ""), IF(LEN(Environment!N53) > 0, CONCATENATE("; 6. ", Environment!N53), ""), IF(LEN(Environment!N55) > 0, CONCATENATE("; 7. ", Environment!N55), ""), IF(LEN(Environment!N57) > 0, CONCATENATE("; 8. ", Environment!N57), ""), IF(LEN(Environment!N59) > 0, CONCATENATE("; 9. ", Environment!N59), ""), IF(LEN(Environment!N61) > 0, CONCATENATE("; 10. ", Environment!N61), ""), IF(LEN(Environment!N63) > 0, CONCATENATE("; 11. ", Environment!N63), ""), IF(LEN(Environment!N65) > 0, CONCATENATE("; 12. ", Environment!N65), ""), IF(LEN(Environment!N67) > 0, CONCATENATE("; 13. ", Environment!N67), ""), IF(LEN(Environment!N69) > 0, CONCATENATE("; 14. ", Environment!N69), ""), IF(LEN(Environment!N71) > 0, CONCATENATE("; 15. ", Environment!N71), "")) -> 1. Banned plastic bags in response to environmental concerns; 2. Smoking is banned in public space; 3. Employers have the right to terminate employment contracts on grounds such as misconduct and very poor performance
B74: 3.0. BUSINESS MODEL
B77: 3.1. VALUE PROPOSITION CANVAS
B80: GAIN CREATORS | E80: PRODUCTS & SERVICES
B81: =CONCATENATE(IF(LEN('Business Model'!D375) > 0, CONCATENATE("1. ", 'Business Model'!D375), ""), IF(LEN('Business Model'!D381) > 0, CONCATENATE("; 2. ", 'Business Model'!D381), ""), IF(LEN('Business Model'!D388) > 0, CONCATENATE("; 3. ", 'Business Model'!D388), ""), IF(LEN('Business Model'!D395) > 0, CONCATENATE("; 4. ", 'Business Model'!D395), ""), IF(LEN('Business Model'!D401) > 0, CONCATENATE("; 5. ", 'Business Model'!D401), ""), IF(LEN('Business Model'!D407) > 0, CONCATENATE("; 6. ", 'Business Model'!D407), ""), IF(LEN('Business Model'!D413) > 0, CONCATENATE("; 7. ", 'Business Model'!D413), ""), IF(LEN('Business Model'!D419) > 0, CONCATENATE("; 8. ", 'Business Model'!D419), ""), IF(LEN('Business Model'!D425) > 0, CONCATENATE("; 9. ", 'Business Model'!D425), ""), IF(LEN('Business Model'!D431) > 0, CONCATENATE("; 10. ", 'Business Model'!D431), ""), IF(LEN('Business Model'!D437) > 0, CONCATENATE("; 11. ", 'Business Model'!D437), ""), IF(LEN('Business Model'!D443) > 0, CONCATENATE("; 12. ", 'Business Model'!D443), ""), IF(LEN('Business Model'!D449) > 0, CONCATENATE("; 13. ", 'Business Model'!D449), ""), IF(LEN('Business Model'!D455) > 0, CONCATENATE("; 14. ", 'Business Model'!D455), ""), IF(LEN('Business Model'!D461) > 0, CONCATENATE("; 15. ", 'Business Model'!D461), "")) -> 1. Timely delivery of clean planting materials; 2. High yield due to planting of clean materials; 3. Lowers customers risk; 4. Reduced Investment required in seed production | E81: =CONCATENATE(IF(LEN('Business Model'!D242) > 0, CONCATENATE("1. ", 'Business Model'!D242), ""), IF(LEN('Business Model'!D244) > 0, CONCATENATE("; 2. ", 'Business Model'!D244), ""), IF(LEN('Business Model'!D246) > 0, CONCATENATE("; 3. ", 'Business Model'!D246), ""), IF(LEN('Business Model'!D248) > 0, CONCATENATE("; 4. ", 'Business Model'!D248), ""), IF(LEN('Business Model'!D250) > 0, CONCATENATE("; 5. ", 'Business Model'!D250), ""), IF(LEN('Business Model'!D252) > 0, CONCATENATE("; 6. ", 'Business Model'!D252), ""), IF(LEN('Business Model'!D254) > 0, CONCATENATE("; 7. ", 'Business Model'!D254), ""), IF(LEN('Business Model'!D256) > 0, CONCATENATE("; 8. ", 'Business Model'!D256), ""), IF(LEN('Business Model'!D258) > 0, CONCATENATE("; 9. ", 'Business Model'!D258), ""), IF(LEN('Business Model'!D260) > 0, CONCATENATE("; 10. ", 'Business Model'!D260), ""), IF(LEN('Business Model'!D262) > 0, CONCATENATE("; 11. ", 'Business Model'!D262), ""), IF(LEN('Business Model'!D264) > 0, CONCATENATE("; 12. ", 'Business Model'!D264), ""), IF(LEN('Business Model'!D266) > 0, CONCATENATE("; 13. ", 'Business Model'!D266), ""), IF(LEN('Business Model'!D268) > 0, CONCATENATE("; 14. ", 'Business Model'!D268), ""), IF(LEN('Business Model'!D270) > 0, CONCATENATE("; 15. ", 'Business Model'!D270), "")) -> 1. Cleaning of varieties (disease elimination); 2. Multiplication of cleaned varieties; 3. Disease Diagnostics; 4. Diagnostics sequencing; 5. Genotyping; 6. Training/ capacity building (Indexing/ cleaning, seed/ multiplication, seed/ screenhouse/ Tissue Culture); 7. Management training (Seed Entrepreneurship); 8. Conservation (Multiplication of conserved varieties); 9. Facilities for Research (PhD Students, postdocs, scientists); 10. Delivery of cleaned materials; 11. Diagnostics sequencing; 12. Advisory services (marketing advisory, value addition advisory)
B82: PAIN RELIEVERS
B83: =CONCATENATE(IF(LEN('Business Model'!D242) > 0, CONCATENATE("1. ", 'Business Model'!D242), ""), IF(LEN('Business Model'!D248) > 0, CONCATENATE("; 2. ", 'Business Model'!D248), ""), IF(LEN('Business Model'!D255) > 0, CONCATENATE("; 3. ", 'Business Model'!D255), ""), IF(LEN('Business Model'!D262) > 0, CONCATENATE("; 4. ", 'Business Model'!D262), ""), IF(LEN('Business Model'!D268) > 0, CONCATENATE("; 5. ", 'Business Model'!D268), ""), IF(LEN('Business Model'!D274) > 0, CONCATENATE("; 6. ", 'Business Model'!D274), ""), IF(LEN('Business Model'!D280) > 0, CONCATENATE("; 7. ", 'Business Model'!D280), ""), IF(LEN('Business Model'!D286) > 0, CONCATENATE("; 8. ", 'Business Model'!D286), ""), IF(LEN('Business Model'!D292) > 0, CONCATENATE("; 9. ", 'Business Model'!D292), ""), IF(LEN('Business Model'!D298) > 0, CONCATENATE("; 10. ", 'Business Model'!D298), ""), IF(LEN('Business Model'!D304) > 0, CONCATENATE("; 11. ", 'Business Model'!D304), ""), IF(LEN('Business Model'!D310) > 0, CONCATENATE("; 12. ", 'Business Model'!D310), ""), IF(LEN('Business Model'!D316) > 0, CONCATENATE("; 13. ", 'Business Model'!D316), ""), IF(LEN('Business Model'!D322) > 0, CONCATENATE("; 14. ", 'Business Model'!D322), ""), IF(LEN('Business Model'!D328) > 0, CONCATENATE("; 15. ", 'Business Model'!D328), "")) -> 1. Cleaning of varieties (disease elimination); 2. Diagnostics sequencing; 4. Diagnostics sequencing; 10. Well equipped research facilities; 11. Increased crop yield
B86: 3.2. BUSINESS MODEL CANVAS
B88: KEY PARTNERS | E88: KEY ACTIVITIES | H88: VALUE PROPOSITIONS | K88: CUSTOMER RELATIONSHIPS | O88: CUSTOMER SEGMENTS
B89: =CONCATENATE(IF(LEN('Business Model'!D714) > 0, CONCATENATE("1. ", 'Business Model'!D714), ""), IF(LEN('Business Model'!D716) > 0, CONCATENATE("; 2. ", 'Business Model'!D716), ""), IF(LEN('Business Model'!D718) > 0, CONCATENATE("; 3. ", 'Business Model'!D718), ""), IF(LEN('Business Model'!D720) > 0, CONCATENATE("; 4. ", 'Business Model'!D720), ""), IF(LEN('Business Model'!D722) > 0, CONCATENATE("; 5. ", 'Business Model'!D722), ""), IF(LEN('Business Model'!D724) > 0, CONCATENATE("; 6. ", 'Business Model'!D724), ""), IF(LEN('Business Model'!D726) > 0, CONCATENATE("; 7. ", 'Business Model'!D726), ""), IF(LEN('Business Model'!D728) > 0, CONCATENATE("; 8. ", 'Business Model'!D728), ""), IF(LEN('Business Model'!D730) > 0, CONCATENATE("; 9. ", 'Business Model'!D730), ""), IF(LEN('Business Model'!D732) > 0, CONCATENATE("; 10. ", 'Business Model'!D732), ""), IF(LEN('Business Model'!D734) > 0, CONCATENATE("; 11. ", 'Business Model'!D734), ""), IF(LEN('Business Model'!D736) > 0, CONCATENATE("; 12. ", 'Business Model'!D736), ""), IF(LEN('Business Model'!D738) > 0, CONCATENATE("; 13. ", 'Business Model'!D738), ""), IF(LEN('Business Model'!D740) > 0, CONCATENATE("; 14. ", 'Business Model'!D740), ""), IF(LEN('Business Model'!D742) > 0, CONCATENATE("; 15. ", 'Business Model'!D742), "")) -> 1. International Potato Center (CIP); 2. IITA; 3. KEPHIS | E89: =CONCATENATE(IF(LEN('Business Model'!D679) > 0, CONCATENATE("1. ", 'Business Model'!D679), ""), IF(LEN('Business Model'!D681) > 0, CONCATENATE("; 2. ", 'Business Model'!D681), ""), IF(LEN('Business Model'!D683) > 0, CONCATENATE("; 3. ", 'Business Model'!D683), ""), IF(LEN('Business Model'!D685) > 0, CONCATENATE("; 4. ", 'Business Model'!D685), ""), IF(LEN('Business Model'!D687) > 0, CONCATENATE("; 5. ", 'Business Model'!D687), ""), IF(LEN('Business Model'!D689) > 0, CONCATENATE("; 6. ", 'Business Model'!D689), ""), IF(LEN('Business Model'!D691) > 0, CONCATENATE("; 7. ", 'Business Model'!D691), ""), IF(LEN('Business Model'!D693) > 0, CONCATENATE("; 8. ", 'Business Model'!D693), ""), IF(LEN('Business Model'!D695) > 0, CONCATENATE("; 9. ", 'Business Model'!D695), ""), IF(LEN('Business Model'!D697) > 0, CONCATENATE("; 10. ", 'Business Model'!D697), ""), IF(LEN('Business Model'!D699) > 0, CONCATENATE("; 11. ", 'Business Model'!D699), ""), IF(LEN('Business Model'!D701) > 0, CONCATENATE("; 12. ", 'Business Model'!D701), ""), IF(LEN('Business Model'!D703) > 0, CONCATENATE("; 13. ", 'Business Model'!D703), ""), IF(LEN('Business Model'!D705) > 0, CONCATENATE("; 14. ", 'Business Model'!D705), ""), IF(LEN('Business Model'!D707) > 0, CONCATENATE("; 15. ", 'Business Model'!D707), "")) -> 1. Construction of modern laboratories; 2. Sourcing for reliable courier service provider for exporting of specimen; 3. Collaboration with NGOs | H89: =E81 -> 1. Cleaning of varieties (disease elimination); 2. Multiplication of cleaned varieties; 3. Disease Diagnostics; 4. Diagnostics sequencing; 5. Genotyping; 6. Training/ capacity building (Indexing/ cleaning, seed/ multiplication, seed/ screenhouse/ Tissue Culture); 7. Management training (Seed Entrepreneurship); 8. Conservation (Multiplication of conserved varieties); 9. Facilities for Research (PhD Students, postdocs, scientists); 10. Delivery of cleaned materials; 11. Diagnostics sequencing; 12. Advisory services (marketing advisory, value addition advisory) | K89: =CONCATENATE(IF(LEN('Business Model'!D514) > 0, CONCATENATE("1. ", 'Business Model'!D514), ""), IF(LEN('Business Model'!D520) > 0, CONCATENATE("; 2. ", 'Business Model'!D520), ""), IF(LEN('Business Model'!D527) > 0, CONCATENATE("; 3. ", 'Business Model'!D527), ""), IF(LEN('Business Model'!D534) > 0, CONCATENATE("; 4. ", 'Business Model'!D534), ""), IF(LEN('Business Model'!D540) > 0, CONCATENATE("; 5. ", 'Business Model'!D540), ""), IF(LEN('Business Model'!D546) > 0, CONCATENATE("; 6. ", 'Business Model'!D546), ""), IF(LEN('Business Model'!D552) > 0, CONCATENATE("; 7. ", 'Business Model'!D552), ""), IF(LEN('Business Model'!D558) > 0, CONCATENATE("; 8. ", 'Business Model'!D558), ""), IF(LEN('Business Model'!D564) > 0, CONCATENATE("; 9. ", 'Business Model'!D564), ""), IF(LEN('Business Model'!D570) > 0, CONCATENATE("; 10. ", 'Business Model'!D570), ""), IF(LEN('Business Model'!D576) > 0, CONCATENATE("; 11. ", 'Business Model'!D576), ""), IF(LEN('Business Model'!D582) > 0, CONCATENATE("; 12. ", 'Business Model'!D582), ""), IF(LEN('Business Model'!D588) > 0, CONCATENATE("; 13. ", 'Business Model'!D588), ""), IF(LEN('Business Model'!D594) > 0, CONCATENATE("; 14. ", 'Business Model'!D594), ""), IF(LEN('Business Model'!D600) > 0, CONCATENATE("; 15. ", 'Business Model'!D600), "")) -> 1. Ability to place orders online and pay using mobile phones (M-PESA) using E-Citizen System; 2. Open support phone line (Mon-Fri, 8am to 5pm); 3. Quick Support in getting diagnostic report within 1 day | O89: =CONCATENATE(IF(LEN(Background!D124) > 0, CONCATENATE("1. ", Background!D124), ""), IF(LEN(Background!D126) > 0, CONCATENATE("; 2. ", Background!D126), ""), IF(LEN(Background!D128) > 0, CONCATENATE("; 3. ", Background!D128), ""), IF(LEN(Background!D130) > 0, CONCATENATE("; 4. ", Background!D130), ""), IF(LEN(Background!D132) > 0, CONCATENATE("; 5. ", Background!D132), ""), IF(LEN(Background!D134) > 0, CONCATENATE("; 6. ", Background!D134), ""), IF(LEN(Background!D136) > 0, CONCATENATE("; 7. ", Background!D136), ""), IF(LEN(Background!D138) > 0, CONCATENATE("; 8. ", Background!D138), ""), IF(LEN(Background!D140) > 0, CONCATENATE("; 9. ", Background!D140), ""), IF(LEN(Background!D142) > 0, CONCATENATE("; 10. ", Background!D142), ""), IF(LEN(Background!D144) > 0, CONCATENATE("; 11. ", Background!D144), ""), IF(LEN(Background!D146) > 0, CONCATENATE("; 12. ", Background!D146), ""), IF(LEN(Background!D148) > 0, CONCATENATE("; 13. ", Background!D148), ""), IF(LEN(Background!D150) > 0, CONCATENATE("; 14. ", Background!D150), ""), IF(LEN(Background!D152) > 0, CONCATENATE("; 15. ", Background!D152), "")) -> 1. NARES; 2. Local Governments; 3. CGIAR Centers; 4. Private Companies; 5. Nurseries; 6. Seed Multipliers; 7. Academic Institutions; 8. NGOs; 9. UN Organisations (WFP, FAO, etc.)
E90: KEY RESOURCES | K90: DISTRIBUTION CHANNELS
E91: =CONCATENATE(IF(LEN('Business Model'!D646) > 0, CONCATENATE("1. ", 'Business Model'!D646), ""), IF(LEN('Business Model'!D648) > 0, CONCATENATE("; 2. ", 'Business Model'!D648), ""), IF(LEN('Business Model'!D650) > 0, CONCATENATE("; 3. ", 'Business Model'!D650), ""), IF(LEN('Business Model'!D652) > 0, CONCATENATE("; 4. ", 'Business Model'!D652), ""), IF(LEN('Business Model'!D654) > 0, CONCATENATE("; 5. ", 'Business Model'!D654), ""), IF(LEN('Business Model'!D656) > 0, CONCATENATE("; 6. ", 'Business Model'!D656), ""), IF(LEN('Business Model'!D658) > 0, CONCATENATE("; 7. ", 'Business Model'!D658), ""), IF(LEN('Business Model'!D660) > 0, CONCATENATE("; 8. ", 'Business Model'!D660), ""), IF(LEN('Business Model'!D662) > 0, CONCATENATE("; 9. ", 'Business Model'!D662), ""), IF(LEN('Business Model'!D664) > 0, CONCATENATE("; 10. ", 'Business Model'!D664), ""), IF(LEN('Business Model'!D666) > 0, CONCATENATE("; 11. ", 'Business Model'!D666), ""), IF(LEN('Business Model'!D668) > 0, CONCATENATE("; 12. ", 'Business Model'!D668), ""), IF(LEN('Business Model'!D670) > 0, CONCATENATE("; 13. ", 'Business Model'!D670), ""), IF(LEN('Business Model'!D672) > 0, CONCATENATE("; 14. ", 'Business Model'!D672), ""), IF(LEN('Business Model'!D674) > 0, CONCATENATE("; 15. ", 'Business Model'!D674), "")) -> 1. Vehicles; 2. Glass Houses; 3. Screen Houses; 4. Auto-clave machines; 5. Computers; 6. Tablets | K91: =CONCATENATE(IF(LEN('Business Model'!D480) > 0, CONCATENATE("1. ", 'Business Model'!D480), ""), IF(LEN('Business Model'!D482) > 0, CONCATENATE("; 2. ", 'Business Model'!D482), ""), IF(LEN('Business Model'!D484) > 0, CONCATENATE("; 3. ", 'Business Model'!D484), ""), IF(LEN('Business Model'!D486) > 0, CONCATENATE("; 4. ", 'Business Model'!D486), ""), IF(LEN('Business Model'!D488) > 0, CONCATENATE("; 5. ", 'Business Model'!D488), ""), IF(LEN('Business Model'!D490) > 0, CONCATENATE("; 6. ", 'Business Model'!D490), ""), IF(LEN('Business Model'!D492) > 0, CONCATENATE("; 7. ", 'Business Model'!D492), ""), IF(LEN('Business Model'!D494) > 0, CONCATENATE("; 8. ", 'Business Model'!D494), ""), IF(LEN('Business Model'!D496) > 0, CONCATENATE("; 9. ", 'Business Model'!D496), ""), IF(LEN('Business Model'!D498) > 0, CONCATENATE("; 10. ", 'Business Model'!D498), ""), IF(LEN('Business Model'!D500) > 0, CONCATENATE("; 11. ", 'Business Model'!D500), ""), IF(LEN('Business Model'!D502) > 0, CONCATENATE("; 12. ", 'Business Model'!D502), ""), IF(LEN('Business Model'!D504) > 0, CONCATENATE("; 13. ", 'Business Model'!D504), ""), IF(LEN('Business Model'!D506) > 0, CONCATENATE("; 14. ", 'Business Model'!D506), ""), IF(LEN('Business Model'!D508) > 0, CONCATENATE("; 15. ", 'Business Model'!D508), "")) -> 1. Emails; 2. Workshops; 3. Radio and TV broadcasts
B92: COST STRUCTURE | J92: REVENUE STREAMS
B93: =CONCATENATE(IF(LEN('Business Model'!D748) > 0, CONCATENATE("1. ", 'Business Model'!D748), ""), IF(LEN('Business Model'!D750) > 0, CONCATENATE("; 2. ", 'Business Model'!D750), ""), IF(LEN('Business Model'!D752) > 0, CONCATENATE("; 3. ", 'Business Model'!D752), ""), IF(LEN('Business Model'!D754) > 0, CONCATENATE("; 4. ", 'Business Model'!D754), ""), IF(LEN('Business Model'!D756) > 0, CONCATENATE("; 5. ", 'Business Model'!D756), ""), IF(LEN('Business Model'!D758) > 0, CONCATENATE("; 6. ", 'Business Model'!D758), ""), IF(LEN('Business Model'!D760) > 0, CONCATENATE("; 7. ", 'Business Model'!D760), ""), IF(LEN('Business Model'!D762) > 0, CONCATENATE("; 8. ", 'Business Model'!D762), ""), IF(LEN('Business Model'!D764) > 0, CONCATENATE("; 9. ", 'Business Model'!D764), ""), IF(LEN('Business Model'!D766) > 0, CONCATENATE("; 10. ", 'Business Model'!D766), ""), IF(LEN('Business Model'!D768) > 0, CONCATENATE("; 11. ", 'Business Model'!D768), ""), IF(LEN('Business Model'!D770) > 0, CONCATENATE("; 12. ", 'Business Model'!D770), ""), IF(LEN('Business Model'!D772) > 0, CONCATENATE("; 13. ", 'Business Model'!D772), ""), IF(LEN('Business Model'!D774) > 0, CONCATENATE("; 14. ", 'Business Model'!D774), ""), IF(LEN('Business Model'!D776) > 0, CONCATENATE("; 15. ", 'Business Model'!D776), "")) -> 1. Transportation cost; 2. Staff Salaries; 3. Electricity | J93: =CONCATENATE(IF(LEN('Business Model'!D613) > 0, CONCATENATE("1. ", 'Business Model'!D613), ""), IF(LEN('Business Model'!D615) > 0, CONCATENATE("; 2. ", 'Business Model'!D615), ""), IF(LEN('Business Model'!D617) > 0, CONCATENATE("; 3. ", 'Business Model'!D617), ""), IF(LEN('Business Model'!D619) > 0, CONCATENATE("; 4. ", 'Business Model'!D619), ""), IF(LEN('Business Model'!D621) > 0, CONCATENATE("; 5. ", 'Business Model'!D621), ""), IF(LEN('Business Model'!D623) > 0, CONCATENATE("; 6. ", 'Business Model'!D623), ""), IF(LEN('Business Model'!D625) > 0, CONCATENATE("; 7. ", 'Business Model'!D625), ""), IF(LEN('Business Model'!D627) > 0, CONCATENATE("; 8. ", 'Business Model'!D627), ""), IF(LEN('Business Model'!D629) > 0, CONCATENATE("; 9. ", 'Business Model'!D629), ""), IF(LEN('Business Model'!D631) > 0, CONCATENATE("; 10. ", 'Business Model'!D631), ""), IF(LEN('Business Model'!D633) > 0, CONCATENATE("; 11. ", 'Business Model'!D633), ""), IF(LEN('Business Model'!D635) > 0, CONCATENATE("; 12. ", 'Business Model'!D635), ""), IF(LEN('Business Model'!D637) > 0, CONCATENATE("; 13. ", 'Business Model'!D637), ""), IF(LEN('Business Model'!D639) > 0, CONCATENATE("; 14. ", 'Business Model'!D639), ""), IF(LEN('Business Model'!D641) > 0, CONCATENATE("; 15. ", 'Business Model'!D641), "")) -> 1. Charging customers for diagnostics; 2. Conservation of materials; 3. Phytosanitary Certificates; 4. Cleaning of diseased materials
B96: 4.0. BUSINESS OPERATIONS (WORKFLOW)
B98: 4.1. WORKFLOW STAGES
B100: STAGE | C100: PARTICULARS / DETAILS | G100: DESTINATION 1 | J100: DESTINATION 2 | M100: DESTINATION 3 | P100: DESTINATION 4
B101: =IF(LEN(TRIM(Operations!B57)) > 0, TRIM(Operations!B57), "") -> 1 | C101: =IF(LEN(TRIM(Operations!C57)) > 0, CONCATENATE(TRIM(Operations!C57), " [", Operations!E113, "]"), "") -> Stage 0. Sample reception and entry into database [7 Hours] | G101: =IF(LEN(TRIM(Operations!D57)) > 0, TRIM(Operations!D57), "") -> Stage 1A. Establish in quarantine glasshouse | J101: =IF(LEN(TRIM(Operations!E57)) > 0, TRIM(Operations!E57), "") ->  | M101: =IF(LEN(TRIM(Operations!F57)) > 0, TRIM(Operations!F57), "") ->  | P101: =IF(LEN(TRIM(Operations!G57)) > 0, TRIM(Operations!G57), "") -> 
B102: =IF(LEN(TRIM(Operations!B58)) > 0, TRIM(Operations!B58), "") -> 2 | C102: =IF(LEN(TRIM(Operations!C58)) > 0, CONCATENATE(TRIM(Operations!C58), " [", Operations!E140, "]"), "") -> Stage 1A. Establish in quarantine glasshouse (Stem Cuttings) [2.3 Months] | G102: =IF(LEN(TRIM(Operations!D58)) > 0, TRIM(Operations!D58), "") -> Stage 2A.1. Virus indexing by Convectional PCR | J102: =IF(LEN(TRIM(Operations!E58)) > 0, TRIM(Operations!E58), "") -> Stage 2A.2. Virus indexing by Real time PCR | M102: =IF(LEN(TRIM(Operations!F58)) > 0, TRIM(Operations!F58), "") -> Stage 2A.3. Virus indexing by grafting (SETOSA) | P102: =IF(LEN(TRIM(Operations!G58)) > 0, TRIM(Operations!G58), "") -> Stage 2A.4. Virus Indexing by ELISA
B103: =IF(LEN(TRIM(Operations!B59)) > 0, TRIM(Operations!B59), "") -> 3 | C103: =IF(LEN(TRIM(Operations!C59)) > 0, CONCATENATE(TRIM(Operations!C59), " [", Operations!E167, "]"), "") -> Stage 1B: Establish in post entry quarantine growthroom [1.1 Months] | G103: =IF(LEN(TRIM(Operations!D59)) > 0, TRIM(Operations!D59), "") -> Stage 1C: Hardening Invitro Plantlet (Quarantine Glasshouse) | J103: =IF(LEN(TRIM(Operations!E59)) > 0, TRIM(Operations!E59), "") ->  | M103: =IF(LEN(TRIM(Operations!F59)) > 0, TRIM(Operations!F59), "") ->  | P103: =IF(LEN(TRIM(Operations!G59)) > 0, TRIM(Operations!G59), "") -> 
B104: =IF(LEN(TRIM(Operations!B60)) > 0, TRIM(Operations!B60), "") -> 4 | C104: =IF(LEN(TRIM(Operations!C60)) > 0, CONCATENATE(TRIM(Operations!C60), " [", Operations!E194, "]"), "") -> Stage 1C: Hardening Invitro Plantlet (Quarantine Glasshouse) [2.8 Weeks] | G104: =IF(LEN(TRIM(Operations!D60)) > 0, TRIM(Operations!D60), "") -> Stage 1B: Establish in post entry quarantine growthroom | J104: =IF(LEN(TRIM(Operations!E60)) > 0, TRIM(Operations!E60), "") ->  | M104: =IF(LEN(TRIM(Operations!F60)) > 0, TRIM(Operations!F60), "") ->  | P104: =IF(LEN(TRIM(Operations!G60)) > 0, TRIM(Operations!G60), "") -> 
B105: =IF(LEN(TRIM(Operations!B61)) > 0, TRIM(Operations!B61), "") -> 5 | C105: =IF(LEN(TRIM(Operations!C61)) > 0, CONCATENATE(TRIM(Operations!C61), " [", Operations!E221, "]"), "") -> Stage 2A.1. Virus indexing by Convectional PCR [5 Hours] | G105: =IF(LEN(TRIM(Operations!D61)) > 0, TRIM(Operations!D61), "") -> Positive (diagnostic) | J105: =IF(LEN(TRIM(Operations!E61)) > 0, TRIM(Operations!E61), "") -> Negative (diagnostic) | M105: =IF(LEN(TRIM(Operations!F61)) > 0, TRIM(Operations!F61), "") ->  | P105: =IF(LEN(TRIM(Operations!G61)) > 0, TRIM(Operations!G61), "") -> 
B106: =IF(LEN(TRIM(Operations!B62)) > 0, TRIM(Operations!B62), "") -> 6 | C106: =IF(LEN(TRIM(Operations!C62)) > 0, CONCATENATE(TRIM(Operations!C62), " [", Operations!E248, "]"), "") -> Stage 2A.2. Virus indexing by Real time PCR [3 Hours] | G106: =IF(LEN(TRIM(Operations!D62)) > 0, TRIM(Operations!D62), "") -> Positive (diagnostic) | J106: =IF(LEN(TRIM(Operations!E62)) > 0, TRIM(Operations!E62), "") -> Negative (diagnostic) | M106: =IF(LEN(TRIM(Operations!F62)) > 0, TRIM(Operations!F62), "") ->  | P106: =IF(LEN(TRIM(Operations!G62)) > 0, TRIM(Operations!G62), "") -> 
B107: =IF(LEN(TRIM(Operations!B63)) > 0, TRIM(Operations!B63), "") -> 7 | C107: =IF(LEN(TRIM(Operations!C63)) > 0, CONCATENATE(TRIM(Operations!C63), " [", Operations!E275, "]"), "") -> Stage 2A.3. Virus indexing by grafting (SETOSA) [2 Hours] | G107: =IF(LEN(TRIM(Operations!D63)) > 0, TRIM(Operations!D63), "") -> Positive (diagnostic) | J107: =IF(LEN(TRIM(Operations!E63)) > 0, TRIM(Operations!E63), "") -> Negative (diagnostic) | M107: =IF(LEN(TRIM(Operations!F63)) > 0, TRIM(Operations!F63), "") ->  | P107: =IF(LEN(TRIM(Operations!G63)) > 0, TRIM(Operations!G63), "") -> 
B108: =IF(LEN(TRIM(Operations!B64)) > 0, TRIM(Operations!B64), "") -> 8 | C108: =IF(LEN(TRIM(Operations!C64)) > 0, CONCATENATE(TRIM(Operations!C64), " [", Operations!E302, "]"), "") -> Stage 2A.4. Virus Indexing by ELISA [2.1 Days] | G108: =IF(LEN(TRIM(Operations!D64)) > 0, TRIM(Operations!D64), "") -> Positive (diagnostic) | J108: =IF(LEN(TRIM(Operations!E64)) > 0, TRIM(Operations!E64), "") -> Negative (diagnostic) | M108: =IF(LEN(TRIM(Operations!F64)) > 0, TRIM(Operations!F64), "") ->  | P108: =IF(LEN(TRIM(Operations!G64)) > 0, TRIM(Operations!G64), "") -> 
B109: =IF(LEN(TRIM(Operations!B65)) > 0, TRIM(Operations!B65), "") -> 9 | C109: =IF(LEN(TRIM(Operations!C65)) > 0, CONCATENATE(TRIM(Operations!C65), " [", Operations!E329, "]"), "") -> Positive (diagnostic) [0 Minutes] | G109: =IF(LEN(TRIM(Operations!D65)) > 0, TRIM(Operations!D65), "") -> Stage 2C: Diagnostic report | J109: =IF(LEN(TRIM(Operations!E65)) > 0, TRIM(Operations!E65), "") -> Stage 3A1: Take explant through surface sterilization & Initiation (positive) | M109: =IF(LEN(TRIM(Operations!F65)) > 0, TRIM(Operations!F65), "") ->  | P109: =IF(LEN(TRIM(Operations!G65)) > 0, TRIM(Operations!G65), "") -> 
B110: =IF(LEN(TRIM(Operations!B66)) > 0, TRIM(Operations!B66), "") -> 10 | C110: =IF(LEN(TRIM(Operations!C66)) > 0, CONCATENATE(TRIM(Operations!C66), " [", Operations!E356, "]"), "") -> Negative (diagnostic) [0 Minutes] | G110: =IF(LEN(TRIM(Operations!D66)) > 0, TRIM(Operations!D66), "") -> Stage 2C: Diagnostic report | J110: =IF(LEN(TRIM(Operations!E66)) > 0, TRIM(Operations!E66), "") -> Stage 2B: Phytosanitary Certificate | M110: =IF(LEN(TRIM(Operations!F66)) > 0, TRIM(Operations!F66), "") -> Stage 3A2: Take explant through surface sterilization & Initiation (negative) | P110: =IF(LEN(TRIM(Operations!G66)) > 0, TRIM(Operations!G66), "") -> Stage 3D: Transfer to growth room for multiplication and sub-culturing
B111: =IF(LEN(TRIM(Operations!B67)) > 0, TRIM(Operations!B67), "") -> 11 | C111: =IF(LEN(TRIM(Operations!C67)) > 0, CONCATENATE(TRIM(Operations!C67), " [", Operations!E383, "]"), "") -> Stage 2C: Diagnostic report [0 Minutes] | G111: =IF(LEN(TRIM(Operations!D67)) > 0, TRIM(Operations!D67), "") -> Stage 2B: Phytosanitary Certificate | J111: =IF(LEN(TRIM(Operations!E67)) > 0, TRIM(Operations!E67), "") -> End/Final Stage | M111: =IF(LEN(TRIM(Operations!F67)) > 0, TRIM(Operations!F67), "") ->  | P111: =IF(LEN(TRIM(Operations!G67)) > 0, TRIM(Operations!G67), "") -> 
B112: =IF(LEN(TRIM(Operations!B68)) > 0, TRIM(Operations!B68), "") -> 12 | C112: =IF(LEN(TRIM(Operations!C68)) > 0, CONCATENATE(TRIM(Operations!C68), " [", Operations!E410, "]"), "") -> Stage 2B: Phytosanitary Certificate [0 Minutes] | G112: =IF(LEN(TRIM(Operations!D68)) > 0, TRIM(Operations!D68), "") -> End/Final Stage | J112: =IF(LEN(TRIM(Operations!E68)) > 0, TRIM(Operations!E68), "") ->  | M112: =IF(LEN(TRIM(Operations!F68)) > 0, TRIM(Operations!F68), "") ->  | P112: =IF(LEN(TRIM(Operations!G68)) > 0, TRIM(Operations!G68), "") -> 
B113: =IF(LEN(TRIM(Operations!B69)) > 0, TRIM(Operations!B69), "") -> 13 | C113: =IF(LEN(TRIM(Operations!C69)) > 0, CONCATENATE(TRIM(Operations!C69), " [", Operations!E437, "]"), "") -> Stage 3A1: Take explant through surface sterilization & Initiation (positive) [2 Hours] | G113: =IF(LEN(TRIM(Operations!D69)) > 0, TRIM(Operations!D69), "") -> Stage 3B: Thermotherapy and meristem tip culture | J113: =IF(LEN(TRIM(Operations!E69)) > 0, TRIM(Operations!E69), "") ->  | M113: =IF(LEN(TRIM(Operations!F69)) > 0, TRIM(Operations!F69), "") ->  | P113: =IF(LEN(TRIM(Operations!G69)) > 0, TRIM(Operations!G69), "") -> 
B114: =IF(LEN(TRIM(Operations!B70)) > 0, TRIM(Operations!B70), "") -> 14 | C114: =IF(LEN(TRIM(Operations!C70)) > 0, CONCATENATE(TRIM(Operations!C70), " [", Operations!E464, "]"), "") -> Stage 3A2: Take explant through surface sterilization & Initiation (negative) [2 Hours] | G114: =IF(LEN(TRIM(Operations!D70)) > 0, TRIM(Operations!D70), "") -> Stage 3D: Transfer to growth room for multiplication and sub-culturing | J114: =IF(LEN(TRIM(Operations!E70)) > 0, TRIM(Operations!E70), "") ->  | M114: =IF(LEN(TRIM(Operations!F70)) > 0, TRIM(Operations!F70), "") ->  | P114: =IF(LEN(TRIM(Operations!G70)) > 0, TRIM(Operations!G70), "") -> 
B115: =IF(LEN(TRIM(Operations!B71)) > 0, TRIM(Operations!B71), "") -> 15 | C115: =IF(LEN(TRIM(Operations!C71)) > 0, CONCATENATE(TRIM(Operations!C71), " [", Operations!E491, "]"), "") -> Stage 3B: Thermotherapy and meristem tip culture [2 Months] | G115: =IF(LEN(TRIM(Operations!D71)) > 0, TRIM(Operations!D71), "") -> Stage 3C: Hardening Invitro plantlet (After cleaning) | J115: =IF(LEN(TRIM(Operations!E71)) > 0, TRIM(Operations!E71), "") ->  | M115: =IF(LEN(TRIM(Operations!F71)) > 0, TRIM(Operations!F71), "") ->  | P115: =IF(LEN(TRIM(Operations!G71)) > 0, TRIM(Operations!G71), "") -> 
B116: =IF(LEN(TRIM(Operations!B72)) > 0, TRIM(Operations!B72), "") -> 16 | C116: =IF(LEN(TRIM(Operations!C72)) > 0, CONCATENATE(TRIM(Operations!C72), " [", Operations!E518, "]"), "") -> Stage 3C: Hardening Invitro plantlet (After cleaning) [1.9 Months] | G116: =IF(LEN(TRIM(Operations!D72)) > 0, TRIM(Operations!D72), "") -> Stage 2A.1. Virus indexing by Convectional PCR | J116: =IF(LEN(TRIM(Operations!E72)) > 0, TRIM(Operations!E72), "") -> Stage 2A.2. Virus indexing by Real time PCR | M116: =IF(LEN(TRIM(Operations!F72)) > 0, TRIM(Operations!F72), "") -> Stage 2A.3. Virus Indexing by ELISA | P116: =IF(LEN(TRIM(Operations!G72)) > 0, TRIM(Operations!G72), "") -> Stage 2A.4. Virus indexing by grafting (SETOSA)
B117: =IF(LEN(TRIM(Operations!B73)) > 0, TRIM(Operations!B73), "") -> 17 | C117: =IF(LEN(TRIM(Operations!C73)) > 0, CONCATENATE(TRIM(Operations!C73), " [", Operations!E545, "]"), "") -> Stage 3D: Transfer to growth room for multiplication and sub-culturing [1.3 Months] | G117: =IF(LEN(TRIM(Operations!D73)) > 0, TRIM(Operations!D73), "") -> Stage 4A. Harden plantlets in a glasshouse or screenhouse (After testing Negative) | J117: =IF(LEN(TRIM(Operations!E73)) > 0, TRIM(Operations!E73), "") -> Stage 4B: Distribute in vitro plantlets | M117: =IF(LEN(TRIM(Operations!F73)) > 0, TRIM(Operations!F73), "") -> Stage 4C: In vitro conservation (growth room) | P117: =IF(LEN(TRIM(Operations!G73)) > 0, TRIM(Operations!G73), "") -> 
B118: =IF(LEN(TRIM(Operations!B74)) > 0, TRIM(Operations!B74), "") -> 18 | C118: =IF(LEN(TRIM(Operations!C74)) > 0, CONCATENATE(TRIM(Operations!C74), " [", Operations!E572, "]"), "") -> Stage 4A. Harden plantlets in a glasshouse or screenhouse (After testing Negative) [2.8 Weeks] | G118: =IF(LEN(TRIM(Operations!D74)) > 0, TRIM(Operations!D74), "") -> Stage 5A in vivo Conservation (screenhouse) | J118: =IF(LEN(TRIM(Operations!E74)) > 0, TRIM(Operations!E74), "") -> Stage 5B: Invivo Multiplication (screenhouse) | M118: =IF(LEN(TRIM(Operations!F74)) > 0, TRIM(Operations!F74), "") -> Stage 5C: Distribute cuttings (15cm) | P118: =IF(LEN(TRIM(Operations!G74)) > 0, TRIM(Operations!G74), "") -> 
B119: =IF(LEN(TRIM(Operations!B75)) > 0, TRIM(Operations!B75), "") -> 19 | C119: =IF(LEN(TRIM(Operations!C75)) > 0, CONCATENATE(TRIM(Operations!C75), " [", Operations!E599, "]"), "") -> Stage 4B: Distribute in vitro plantlets [2 Hours] | G119: =IF(LEN(TRIM(Operations!D75)) > 0, TRIM(Operations!D75), "") -> End/Final Stage | J119: =IF(LEN(TRIM(Operations!E75)) > 0, TRIM(Operations!E75), "") ->  | M119: =IF(LEN(TRIM(Operations!F75)) > 0, TRIM(Operations!F75), "") ->  | P119: =IF(LEN(TRIM(Operations!G75)) > 0, TRIM(Operations!G75), "") -> 
B120: =IF(LEN(TRIM(Operations!B76)) > 0, TRIM(Operations!B76), "") -> 20 | C120: =IF(LEN(TRIM(Operations!C76)) > 0, CONCATENATE(TRIM(Operations!C76), " [", Operations!E626, "]"), "") -> Stage 4C: In vitro conservation (growth room) [1 Years] | G120: =IF(LEN(TRIM(Operations!D76)) > 0, TRIM(Operations!D76), "") -> Stage 3D: Transfer to growth room for multiplication and sub-culturing | J120: =IF(LEN(TRIM(Operations!E76)) > 0, TRIM(Operations!E76), "") ->  | M120: =IF(LEN(TRIM(Operations!F76)) > 0, TRIM(Operations!F76), "") ->  | P120: =IF(LEN(TRIM(Operations!G76)) > 0, TRIM(Operations!G76), "") -> 
B121: =IF(LEN(TRIM(Operations!B77)) > 0, TRIM(Operations!B77), "") -> 21 | C121: =IF(LEN(TRIM(Operations!C77)) > 0, CONCATENATE(TRIM(Operations!C77), " [", Operations!E653, "]"), "") -> Stage 5A: Invivo Conservation (screenhouse) [1.8 Months] | G121: =IF(LEN(TRIM(Operations!D77)) > 0, TRIM(Operations!D77), "") -> End/Final Stage | J121: =IF(LEN(TRIM(Operations!E77)) > 0, TRIM(Operations!E77), "") ->  | M121: =IF(LEN(TRIM(Operations!F77)) > 0, TRIM(Operations!F77), "") ->  | P121: =IF(LEN(TRIM(Operations!G77)) > 0, TRIM(Operations!G77), "") -> 
B122: =IF(LEN(TRIM(Operations!B78)) > 0, TRIM(Operations!B78), "") -> 22 | C122: =IF(LEN(TRIM(Operations!C78)) > 0, CONCATENATE(TRIM(Operations!C78), " [", Operations!E680, "]"), "") -> Stage 5B: Invivo Multiplication (screenhouse) [2 Weeks] | G122: =IF(LEN(TRIM(Operations!D78)) > 0, TRIM(Operations!D78), "") -> End/Final Stage | J122: =IF(LEN(TRIM(Operations!E78)) > 0, TRIM(Operations!E78), "") ->  | M122: =IF(LEN(TRIM(Operations!F78)) > 0, TRIM(Operations!F78), "") ->  | P122: =IF(LEN(TRIM(Operations!G78)) > 0, TRIM(Operations!G78), "") -> 
B123: =IF(LEN(TRIM(Operations!B79)) > 0, TRIM(Operations!B79), "") -> 23 | C123: =IF(LEN(TRIM(Operations!C79)) > 0, CONCATENATE(TRIM(Operations!C79), " [", Operations!E707, "]"), "") -> Stage 5C: Distribute cuttings (15cm) [2 Hours] | G123: =IF(LEN(TRIM(Operations!D79)) > 0, TRIM(Operations!D79), "") -> End/Final Stage | J123: =IF(LEN(TRIM(Operations!E79)) > 0, TRIM(Operations!E79), "") ->  | M123: =IF(LEN(TRIM(Operations!F79)) > 0, TRIM(Operations!F79), "") ->  | P123: =IF(LEN(TRIM(Operations!G79)) > 0, TRIM(Operations!G79), "") -> 
B124: =IF(LEN(TRIM(Operations!B80)) > 0, TRIM(Operations!B80), "") ->  | C124: =IF(LEN(TRIM(Operations!C80)) > 0, CONCATENATE(TRIM(Operations!C80), " [", Operations!E734, "]"), "") ->  | G124: =IF(LEN(TRIM(Operations!D80)) > 0, TRIM(Operations!D80), "") ->  | J124: =IF(LEN(TRIM(Operations!E80)) > 0, TRIM(Operations!E80), "") ->  | M124: =IF(LEN(TRIM(Operations!F80)) > 0, TRIM(Operations!F80), "") ->  | P124: =IF(LEN(TRIM(Operations!G80)) > 0, TRIM(Operations!G80), "") -> 
B125: =IF(LEN(TRIM(Operations!B81)) > 0, TRIM(Operations!B81), "") ->  | C125: =IF(LEN(TRIM(Operations!C81)) > 0, CONCATENATE(TRIM(Operations!C81), " [", Operations!E761, "]"), "") ->  | G125: =IF(LEN(TRIM(Operations!D81)) > 0, TRIM(Operations!D81), "") ->  | J125: =IF(LEN(TRIM(Operations!E81)) > 0, TRIM(Operations!E81), "") ->  | M125: =IF(LEN(TRIM(Operations!F81)) > 0, TRIM(Operations!F81), "") ->  | P125: =IF(LEN(TRIM(Operations!G81)) > 0, TRIM(Operations!G81), "") -> 
B128: 4.2. WORKFLOW DIAGRAM
B141: 5.0. FINANCIAL MANAGEMENT
B144: 5.1. COSTING
B146: COST SUMMARIES
B148: Particulars | F148: =IFERROR(IF(LEN('Sales Projections'!B8) > 1, 'Sales Projections'!B8, "Product 1"), "") -> Cleaning of varieties (disease elimination) | H148: =IF(LEN('Sales Projections'!B9) > 1, 'Sales Projections'!B9, "Product 2") -> Multiplication of cleaned varieties | J148: =IF(LEN('Sales Projections'!B10) > 1, 'Sales Projections'!B10, "Product 3") -> Disease Diagnostics | L148: =IF(LEN('Sales Projections'!B11) > 1, 'Sales Projections'!B11, "Product 4") -> Diagnostics sequencing | N148: =IF(LEN('Sales Projections'!B12) > 1, 'Sales Projections'!B12, "Product 5") -> Genotyping | P148: =IF(LEN('Sales Projections'!B13) > 1, 'Sales Projections'!B13, "Product 6") -> Training/ capacity building (Indexing/ cleaning, seed/ multiplication, seed/ screenhouse/ Tissue Culture) | R148: =IF(LEN('Sales Projections'!B14) > 1, 'Sales Projections'!B14, "Product 7") -> Management training (Seed Entrepreneurship) | T148: =IF(LEN('Sales Projections'!B15) > 1, 'Sales Projections'!B15, "Product 8") -> Conservation (Multiplication of conserved varieties) | V148: =IF(LEN('Sales Projections'!B16) > 1, 'Sales Projections'!B16, "Product 9") -> Facilities for Research (PhD Students, postdocs, scientists) | X148: =IF(LEN('Sales Projections'!B17) > 1, 'Sales Projections'!B17, "Product 10") -> Delivery of cleaned materials | Z148: =IF(LEN('Sales Projections'!B18) > 1, 'Sales Projections'!B18, "Product 11") -> Diagnostics sequencing | AB148: =IF(LEN('Sales Projections'!B19) > 1, 'Sales Projections'!B19, "Product 12") -> Advisory services (marketing advisory, value addition advisory)
B149: Total cost | F149: =IFERROR((F150*F154)+(F151*F154)+F152+F153, "") -> 14219589.1 | H149: =IFERROR((H150*H154)+(H151*H154)+H152+H153, "") -> 0 | J149: =IFERROR((J150*J154)+(J151*J154)+J152+J153, "") -> 0 | L149: =IFERROR((L150*L154)+(L151*L154)+L152+L153, "") -> 0 | N149: =IFERROR((N150*N154)+(N151*N154)+N152+N153, "") -> 0 | P149: =IFERROR((P150*P154)+(P151*P154)+P152+P153, "") -> 0 | R149: =IFERROR((R150*R154)+(R151*R154)+R152+R153, "") -> 0 | T149: =IFERROR((T150*T154)+(T151*T154)+T152+T153, "") -> 0 | V149: =IFERROR((V150*V154)+(V151*V154)+V152+V153, "") -> 0 | X149: =IFERROR((X150*X154)+(X151*X154)+X152+X153, "") -> 0 | Z149: =IFERROR((Z150*Z154)+(Z151*Z154)+Z152+Z153, "") -> 0 | AB149: =IFERROR((AB150*AB154)+(AB151*AB154)+AB152+AB153, "") -> 0
B150: Consumables cost per unit | F150: =Consumables_Inputs!M1320 -> 5266.99885
B151: Labour cost per unit | F151: =LabourCost!R1012 -> 349.5743584
B152: Depreciation per year | F152: =AssetsEquip!N1192 -> 3207526.533
B153: Overheads per year | F153: =OverheadCosts!M1022 -> 879764.5
B154: Units produced per year | F154: ='Sales Projections'!T8 -> 1804 | H154: ='Sales Projections'!T9 -> 358 | J154: ='Sales Projections'!T10 -> 0 | L154: ='Sales Projections'!T11 -> 0 | N154: ='Sales Projections'!T12 -> 0 | P154: ='Sales Projections'!T13 -> 0 | R154: ='Sales Projections'!T14 -> 0 | T154: ='Sales Projections'!T15 -> 0 | V154: ='Sales Projections'!T16 -> 0 | X154: ='Sales Projections'!T17 -> 0 | Z154: ='Sales Projections'!T18 -> 0 | AB154: ='Sales Projections'!T19 -> 0
B155: Variable cost per unit | F155: =IFERROR(F150+F151, "") -> 5616.573209 | H155: =IFERROR(H150+H151, "") -> 0 | J155: =IFERROR(J150+J151, "") -> 0 | L155: =IFERROR(L150+L151, "") -> 0 | N155: =IFERROR(N150+N151, "") -> 0 | P155: =IFERROR(P150+P151, "") -> 0 | R155: =IFERROR(R150+R151, "") -> 0 | T155: =IFERROR(T150+T151, "") -> 0 | V155: =IFERROR(V150+V151, "") -> 0 | X155: =IFERROR(X150+X151, "") -> 0 | Z155: =IFERROR(Z150+Z151, "") -> 0 | AB155: =IFERROR(AB150+AB151, "") -> 0
B156: Fixed cost per unit | F156: =IFERROR((F152+F153)/F154, "") -> 2265.682391 | H156: =IFERROR((H152+H153)/H154, "") -> 0 | J156: =IFERROR((J152+J153)/J154, "") ->  | L156: =IFERROR((L152+L153)/L154, "") ->  | N156: =IFERROR((N152+N153)/N154, "") ->  | P156: =IFERROR((P152+P153)/P154, "") ->  | R156: =IFERROR((R152+R153)/R154, "") ->  | T156: =IFERROR((T152+T153)/T154, "") ->  | V156: =IFERROR((V152+V153)/V154, "") ->  | X156: =IFERROR((X152+X153)/X154, "") ->  | Z156: =IFERROR((Z152+Z153)/Z154, "") ->  | AB156: =IFERROR((AB152+AB153)/AB154, "") -> 
B157: Cost per unit | F157: =IFERROR(F155+F156, "") -> 7882.2556 | H157: =IFERROR(H155+H156, "") -> 0 | J157: =IFERROR(J155+J156, "") ->  | L157: =IFERROR(L155+L156, "") ->  | N157: =IFERROR(N155+N156, "") ->  | P157: =IFERROR(P155+P156, "") ->  | R157: =IFERROR(R155+R156, "") ->  | T157: =IFERROR(T155+T156, "") ->  | V157: =IFERROR(V155+V156, "") ->  | X157: =IFERROR(X155+X156, "") ->  | Z157: =IFERROR(Z155+Z156, "") ->  | AB157: =IFERROR(AB155+AB156, "") -> 
B158: Profit margin | F158: =Parameters!D6 -> 0.2 | H158: =Parameters!D6 -> 0.2 | J158: =Parameters!D6 -> 0.2 | L158: =Parameters!D6 -> 0.2 | N158: =Parameters!D6 -> 0.2 | P158: =Parameters!D6 -> 0.2 | R158: =Parameters!D6 -> 0.2 | T158: =Parameters!D6 -> 0.2 | V158: =Parameters!D6 -> 0.2 | X158: =Parameters!D6 -> 0.2 | Z158: =Parameters!D6 -> 0.2 | AB158: =Parameters!D6 -> 0.2
B159: Selling price per unit | F159: =IF('Sales Projections'!D8 > 0, 'Sales Projections'!D8, 'Sales Projections'!C8) -> 9458.70672 | H159: =IF('Sales Projections'!D9 > 0, 'Sales Projections'!D9, 'Sales Projections'!C9) -> 1500 | J159: =IF('Sales Projections'!D10 > 0, 'Sales Projections'!D10, 'Sales Projections'!C10) ->  | L159: =IF('Sales Projections'!D11 > 0, 'Sales Projections'!D11, 'Sales Projections'!C11) ->  | N159: =IF('Sales Projections'!D12 > 0, 'Sales Projections'!D12, 'Sales Projections'!C12) ->  | P159: =IF('Sales Projections'!D13 > 0, 'Sales Projections'!D13, 'Sales Projections'!C13) ->  | R159: =IF('Sales Projections'!D14 > 0, 'Sales Projections'!D14, 'Sales Projections'!C14) ->  | T159: =IF('Sales Projections'!D15 > 0, 'Sales Projections'!D15, 'Sales Projections'!C15) ->  | V159: =IF('Sales Projections'!D16 > 0, 'Sales Projections'!D16, 'Sales Projections'!C16) ->  | X159: =IF('Sales Projections'!D17 > 0, 'Sales Projections'!D17, 'Sales Projections'!C17) ->  | Z159: =IF('Sales Projections'!D18 > 0, 'Sales Projections'!D18, 'Sales Projections'!C18) ->  | AB159: =IF('Sales Projections'!D19 > 0, 'Sales Projections'!D19, 'Sales Projections'!C19) -> 
B162: 5.2. FINANCIAL STATEMENTS
B164: PROJECTED PROFIT & LOSS (YEAR 1)
B166: Sales
B168: Particulars (products) | F168: Price | G168: ='Sales Projections'!G7 -> 2025-01-01 | I168: ='Sales Projections'!H7 -> 2025-02-01 | K168: ='Sales Projections'!I7 -> 2025-03-01 | M168: ='Sales Projections'!J7 -> 2025-04-01 | O168: ='Sales Projections'!K7 -> 2025-05-01 | Q168: ='Sales Projections'!L7 -> 2025-06-01 | S168: ='Sales Projections'!M7 -> 2025-07-01 | U168: ='Sales Projections'!N7 -> 2025-08-01 | W168: ='Sales Projections'!O7 -> 2025-09-01 | Y168: ='Sales Projections'!P7 -> 2025-10-01 | AA168: ='Sales Projections'!Q7 -> 2025-11-01 | AC168: ='Sales Projections'!R7 -> 2025-12-01
G169: Sales | H169: Revenue | I169: Sales | J169: Revenue | K169: Sales | L169: Revenue | M169: Sales | N169: Revenue | O169: Sales | P169: Revenue | Q169: Sales | R169: Revenue | S169: Sales | T169: Revenue | U169: Sales | V169: Revenue | W169: Sales | X169: Revenue | Y169: Sales | Z169: Revenue | AA169: Sales | AB169: Revenue | AC169: Sales | AD169: Revenue
B170: =IF(LEN('Sales Projections'!B8) > 1, 'Sales Projections'!B8, "") -> Cleaning of varieties (disease elimination) | F170: =IF('Sales Projections'!D8 > 0, 'Sales Projections'!D8, 'Sales Projections'!C8) -> 9458.70672 | G170: =IF('Sales Projections'!G8>0, 'Sales Projections'!G8, "") -> 140 | H170: =IF(AND(ISNUMBER(F170), F170>0, ISNUMBER(G170), G170>0), F170*G170, "") -> 1324218.941 | I170: =IF('Sales Projections'!H8>0, 'Sales Projections'!H8, "") -> 145 | J170: =IF(AND(ISNUMBER(F170), F170>0, ISNUMBER(I170), I170>0), F170*I170, "") -> 1371512.474 | K170: =IF('Sales Projections'!I8>0, 'Sales Projections'!I8, "") -> 125 | L170: =IF(AND(ISNUMBER(F170), F170>0, ISNUMBER(K170), K170>0), F170*K170, "") -> 1182338.34 | M170: =IF('Sales Projections'!J8>0, 'Sales Projections'!J8, "") -> 142 | N170: =IF(AND(ISNUMBER(F170), F170>0, ISNUMBER(M170), M170>0), F170*M170, "") -> 1343136.354 | O170: =IF('Sales Projections'!K8>0, 'Sales Projections'!K8, "") -> 150 | P170: =IF(AND(ISNUMBER(F170), F170>0, ISNUMBER(O170), O170>0), F170*O170, "") -> 1418806.008 | Q170: =IF('Sales Projections'!L8>0, 'Sales Projections'!L8, "") -> 160 | R170: =IF(AND(ISNUMBER(F170), F170>0, ISNUMBER(Q170), Q170>0), F170*Q170, "") -> 1513393.075 | S170: =IF('Sales Projections'!M8>0, 'Sales Projections'!M8, "") -> 122 | T170: =IF(AND(ISNUMBER(F170), F170>0, ISNUMBER(S170), S170>0), F170*S170, "") -> 1153962.22 | U170: =IF('Sales Projections'!N8>0, 'Sales Projections'!N8, "") -> 165 | V170: =IF(AND(ISNUMBER(F170), F170>0, ISNUMBER(U170), U170>0), F170*U170, "") -> 1560686.609 | W170: =IF('Sales Projections'!O8>0, 'Sales Projections'!O8, "") -> 135 | X170: =IF(AND(ISNUMBER(F170), F170>0, ISNUMBER(W170), W170>0), F170*W170, "") -> 1276925.407 | Y170: =IF('Sales Projections'!P8>0, 'Sales Projections'!P8, "") -> 150 | Z170: =IF(AND(ISNUMBER(F170), F170>0, ISNUMBER(Y170), Y170>0), F170*Y170, "") -> 1418806.008 | AA170: =IF('Sales Projections'!Q8>0, 'Sales Projections'!Q8, "") -> 90 | AB170: =IF(AND(ISNUMBER(F170), F170>0, ISNUMBER(AA170), AA170>0), F170*AA170, "") -> 851283.6048 | AC170: =IF('Sales Projections'!R8>0, 'Sales Projections'!R8, "") -> 280 | AD170: =IF(AND(ISNUMBER(F170), F170>0, ISNUMBER(AC170), AC170>0), F170*AC170, "") -> 2648437.881
B171: =IF(LEN('Sales Projections'!B9) > 1, 'Sales Projections'!B9, "") -> Multiplication of cleaned varieties | F171: =IF('Sales Projections'!D9 > 0, 'Sales Projections'!D9, 'Sales Projections'!C9) -> 1500 | G171: =IF('Sales Projections'!G9>0, 'Sales Projections'!G9, "") -> 25 | H171: =IF(AND(ISNUMBER(F171), F171>0, ISNUMBER(G171), G171>0), F171*G171, "") -> 37500 | I171: =IF('Sales Projections'!H9>0, 'Sales Projections'!H9, "") -> 20 | J171: =IF(AND(ISNUMBER(F171), F171>0, ISNUMBER(I171), I171>0), F171*I171, "") -> 30000 | K171: =IF('Sales Projections'!I9>0, 'Sales Projections'!I9, "") -> 19 | L171: =IF(AND(ISNUMBER(F171), F171>0, ISNUMBER(K171), K171>0), F171*K171, "") -> 28500 | M171: =IF('Sales Projections'!J9>0, 'Sales Projections'!J9, "") -> 30 | N171: =IF(AND(ISNUMBER(F171), F171>0, ISNUMBER(M171), M171>0), F171*M171, "") -> 45000 | O171: =IF('Sales Projections'!K9>0, 'Sales Projections'!K9, "") -> 21 | P171: =IF(AND(ISNUMBER(F171), F171>0, ISNUMBER(O171), O171>0), F171*O171, "") -> 31500 | Q171: =IF('Sales Projections'!L9>0, 'Sales Projections'!L9, "") -> 35 | R171: =IF(AND(ISNUMBER(F171), F171>0, ISNUMBER(Q171), Q171>0), F171*Q171, "") -> 52500 | S171: =IF('Sales Projections'!M9>0, 'Sales Projections'!M9, "") -> 35 | T171: =IF(AND(ISNUMBER(F171), F171>0, ISNUMBER(S171), S171>0), F171*S171, "") -> 52500 | U171: =IF('Sales Projections'!N9>0, 'Sales Projections'!N9, "") -> 28 | V171: =IF(AND(ISNUMBER(F171), F171>0, ISNUMBER(U171), U171>0), F171*U171, "") -> 42000 | W171: =IF('Sales Projections'!O9>0, 'Sales Projections'!O9, "") -> 25 | X171: =IF(AND(ISNUMBER(F171), F171>0, ISNUMBER(W171), W171>0), F171*W171, "") -> 37500 | Y171: =IF('Sales Projections'!P9>0, 'Sales Projections'!P9, "") -> 35 | Z171: =IF(AND(ISNUMBER(F171), F171>0, ISNUMBER(Y171), Y171>0), F171*Y171, "") -> 52500 | AA171: =IF('Sales Projections'!Q9>0, 'Sales Projections'!Q9, "") -> 40 | AB171: =IF(AND(ISNUMBER(F171), F171>0, ISNUMBER(AA171), AA171>0), F171*AA171, "") -> 60000 | AC171: =IF('Sales Projections'!R9>0, 'Sales Projections'!R9, "") -> 45 | AD171: =IF(AND(ISNUMBER(F171), F171>0, ISNUMBER(AC171), AC171>0), F171*AC171, "") -> 67500
B172: =IF(LEN('Sales Projections'!B10) > 1, 'Sales Projections'!B10, "") -> Disease Diagnostics | F172: =IF('Sales Projections'!D10 > 0, 'Sales Projections'!D10, 'Sales Projections'!C10) -> 
B173: =IF(LEN('Sales Projections'!B11) > 1, 'Sales Projections'!B11, "") -> Diagnostics sequencing | F173: =IF('Sales Projections'!D11 > 0, 'Sales Projections'!D11, 'Sales Projections'!C11) -> 
B174: =IF(LEN('Sales Projections'!B12) > 1, 'Sales Projections'!B12, "") -> Genotyping | F174: =IF('Sales Projections'!D12 > 0, 'Sales Projections'!D12, 'Sales Projections'!C12) -> 
B175: =IF(LEN('Sales Projections'!B13) > 1, 'Sales Projections'!B13, "") -> Training/ capacity building (Indexing/ cleaning, seed/ multiplication, seed/ screenhouse/ Tissue Culture) | F175: =IF('Sales Projections'!D13 > 0, 'Sales Projections'!D13, 'Sales Projections'!C13) -> 
B176: =IF(LEN('Sales Projections'!B14) > 1, 'Sales Projections'!B14, "") -> Management training (Seed Entrepreneurship) | F176: =IF('Sales Projections'!D14 > 0, 'Sales Projections'!D14, 'Sales Projections'!C14) -> 
B177: =IF(LEN('Sales Projections'!B15) > 1, 'Sales Projections'!B15, "") -> Conservation (Multiplication of conserved varieties) | F177: =IF('Sales Projections'!D15 > 0, 'Sales Projections'!D15, 'Sales Projections'!C15) -> 
B178: =IF(LEN('Sales Projections'!B16) > 1, 'Sales Projections'!B16, "") -> Facilities for Research (PhD Students, postdocs, scientists) | F178: =IF('Sales Projections'!D16 > 0, 'Sales Projections'!D16, 'Sales Projections'!C16) -> 
B179: =IF(LEN('Sales Projections'!B17) > 1, 'Sales Projections'!B17, "") -> Delivery of cleaned materials | F179: =IF('Sales Projections'!D17 > 0, 'Sales Projections'!D17, 'Sales Projections'!C17) -> 
B180: =IF(LEN('Sales Projections'!B18) > 1, 'Sales Projections'!B18, "") -> Diagnostics sequencing | F180: =IF('Sales Projections'!D18 > 0, 'Sales Projections'!D18, 'Sales Projections'!C18) -> 
B181: =IF(LEN('Sales Projections'!B19) > 1, 'Sales Projections'!B19, "") -> Advisory services (marketing advisory, value addition advisory) | F181: =IF('Sales Projections'!D19 > 0, 'Sales Projections'!D19, 'Sales Projections'!C19) -> 
B182: =IF(LEN('Sales Projections'!B20) > 1, 'Sales Projections'!B20, "") -> 
B183: Total | F183: =IF('Sales Projections'!C19>0, 'Sales Projections'!C19, "") ->  | H183: =SUM(H170:H180) -> 1361718.941 | J183: =SUM(J170:J180) -> 1401512.474 | L183: =SUM(L170:L180) -> 1210838.34 | N183: =SUM(N170:N180) -> 1388136.354 | P183: =SUM(P170:P180) -> 1450306.008 | R183: =SUM(R170:R180) -> 1565893.075 | T183: =SUM(T170:T180) -> 1206462.22 | V183: =SUM(V170:V180) -> 1602686.609 | X183: =SUM(X170:X180) -> 1314425.407 | Z183: =SUM(Z170:Z180) -> 1471306.008 | AB183: =SUM(AB170:AB180) -> 911283.6048 | AD183: =SUM(AD170:AD180) -> 2715937.881
B185: Expenses
B187: Particulars | G187: ='Sales Projections'!G7 -> 2025-01-01 | I187: ='Sales Projections'!H7 -> 2025-02-01 | K187: ='Sales Projections'!I7 -> 2025-03-01 | M187: ='Sales Projections'!J7 -> 2025-04-01 | O187: ='Sales Projections'!K7 -> 2025-05-01 | Q187: ='Sales Projections'!L7 -> 2025-06-01 | S187: ='Sales Projections'!M7 -> 2025-07-01 | U187: ='Sales Projections'!N7 -> 2025-08-01 | W187: ='Sales Projections'!O7 -> 2025-09-01 | Y187: ='Sales Projections'!P7 -> 2025-10-01 | AA187: ='Sales Projections'!Q7 -> 2025-11-01 | AC187: ='Sales Projections'!R7 -> 2025-12-01
B188: Consumables/ Materials/ Purchases | G188: =IF(ISNUMBER(G170), Consumables_Inputs!$M$1320*G170, "") -> 737379.839 | I188: =IF(ISNUMBER(I170), Consumables_Inputs!$M$1320*I170, "") -> 763714.8333 | K188: =IF(ISNUMBER(K170), Consumables_Inputs!$M$1320*K170, "") -> 658374.8563 | M188: =IF(ISNUMBER(M170), Consumables_Inputs!$M$1320*M170, "") -> 747913.8367 | O188: =IF(ISNUMBER(O170), Consumables_Inputs!$M$1320*O170, "") -> 790049.8275 | Q188: =IF(ISNUMBER(Q170), Consumables_Inputs!$M$1320*Q170, "") -> 842719.816 | S188: =IF(ISNUMBER(S170), Consumables_Inputs!$M$1320*S170, "") -> 642573.8597 | U188: =IF(ISNUMBER(U170), Consumables_Inputs!$M$1320*U170, "") -> 869054.8103 | W188: =IF(ISNUMBER(W170), Consumables_Inputs!$M$1320*W170, "") -> 711044.8448 | Y188: =IF(ISNUMBER(Y170), Consumables_Inputs!$M$1320*Y170, "") -> 790049.8275 | AA188: =IF(ISNUMBER(AA170), Consumables_Inputs!$M$1320*AA170, "") -> 474029.8965 | AC188: =IF(ISNUMBER(AC170), Consumables_Inputs!$M$1320*AC170, "") -> 1474759.678
B189: Labour Costs | G189: =IF(ISNUMBER(G170), LabourCost!$R$1012*G170, "") -> 48940.41018 | I189: =IF(ISNUMBER(I170), LabourCost!$R$1012*I170, "") -> 50688.28197 | K189: =IF(ISNUMBER(K170), LabourCost!$R$1012*K170, "") -> 43696.7948 | M189: =IF(ISNUMBER(M170), LabourCost!$R$1012*M170, "") -> 49639.55889 | O189: =IF(ISNUMBER(O170), LabourCost!$R$1012*O170, "") -> 52436.15376 | Q189: =IF(ISNUMBER(Q170), LabourCost!$R$1012*Q170, "") -> 55931.89735 | S189: =IF(ISNUMBER(S170), LabourCost!$R$1012*S170, "") -> 42648.07173 | U189: =IF(ISNUMBER(U170), LabourCost!$R$1012*U170, "") -> 57679.76914 | W189: =IF(ISNUMBER(W170), LabourCost!$R$1012*W170, "") -> 47192.53839 | Y189: =IF(ISNUMBER(Y170), LabourCost!$R$1012*Y170, "") -> 52436.15376 | AA189: =IF(ISNUMBER(AA170), LabourCost!$R$1012*AA170, "") -> 31461.69226 | AC189: =IF(ISNUMBER(AC170), LabourCost!$R$1012*AC170, "") -> 97880.82035
B190: Depreciation | G190: =AssetsEquip!$N$1192/12 -> 267293.8778 | I190: =AssetsEquip!$N$1192/12 -> 267293.8778 | K190: =AssetsEquip!$N$1192/12 -> 267293.8778 | M190: =AssetsEquip!$N$1192/12 -> 267293.8778 | O190: =AssetsEquip!$N$1192/12 -> 267293.8778 | Q190: =AssetsEquip!$N$1192/12 -> 267293.8778 | S190: =AssetsEquip!$N$1192/12 -> 267293.8778 | U190: =AssetsEquip!$N$1192/12 -> 267293.8778 | W190: =AssetsEquip!$N$1192/12 -> 267293.8778 | Y190: =AssetsEquip!$N$1192/12 -> 267293.8778 | AA190: =AssetsEquip!$N$1192/12 -> 267293.8778 | AC190: =AssetsEquip!$N$1192/12 -> 267293.8778
B191: Overheads | G191: =OverheadCosts!$M$1022/12 -> 73313.70833 | I191: =OverheadCosts!$M$1022/12 -> 73313.70833 | K191: =OverheadCosts!$M$1022/12 -> 73313.70833 | M191: =OverheadCosts!$M$1022/12 -> 73313.70833 | O191: =OverheadCosts!$M$1022/12 -> 73313.70833 | Q191: =OverheadCosts!$M$1022/12 -> 73313.70833 | S191: =OverheadCosts!$M$1022/12 -> 73313.70833 | U191: =OverheadCosts!$M$1022/12 -> 73313.70833 | W191: =OverheadCosts!$M$1022/12 -> 73313.70833 | Y191: =OverheadCosts!$M$1022/12 -> 73313.70833 | AA191: =OverheadCosts!$M$1022/12 -> 73313.70833 | AC191: =OverheadCosts!$M$1022/12 -> 73313.70833
B192: Total | G192: =SUM(G188:H191) -> 1126927.835 | I192: =SUM(I188:J191) -> 1155010.701 | K192: =SUM(K188:L191) -> 1042679.237 | M192: =SUM(M188:N191) -> 1138160.982 | O192: =SUM(O188:P191) -> 1183093.567 | Q192: =SUM(Q188:R191) -> 1239259.299 | S192: =SUM(S188:T191) -> 1025829.518 | U192: =SUM(U188:V191) -> 1267342.166 | W192: =SUM(W188:X191) -> 1098844.969 | Y192: =SUM(Y188:Z191) -> 1183093.567 | AA192: =SUM(AA188:AB191) -> 846099.1749 | AC192: =SUM(AC188:AD191) -> 1913248.085
F193: =IF('Sales Projections'!#REF!>0, 'Sales Projections'!#REF!, "") ->  | G193: =IF('Sales Projections'!#REF!>0, 'Sales Projections'!#REF!, "") -> 
B194: Profit/ (loss) | G194: =H183-G192 -> 234791.1054 | I194: =J183-I192 -> 246501.773 | K194: =L183-K192 -> 168159.1028 | M194: =N183-M192 -> 249975.3724 | O194: =P183-O192 -> 267212.4405 | Q194: =R183-Q192 -> 326633.7756 | S194: =T183-S192 -> 180632.7022 | U194: =V183-U192 -> 335344.4432 | W194: =X183-W192 -> 215580.4379 | Y194: =Z183-Y192 -> 288212.4405 | AA194: =AB183-AA192 -> 65184.42987 | AC194: =AD183-AC192 -> 802689.7969
B196: REVOLVING FUNDS (YEAR 1)
B198: Particulars | G198: ='Sales Projections'!G7 -> 2025-01-01 | I198: ='Sales Projections'!H7 -> 2025-02-01 | K198: ='Sales Projections'!I7 -> 2025-03-01 | M198: ='Sales Projections'!J7 -> 2025-04-01 | O198: ='Sales Projections'!K7 -> 2025-05-01 | Q198: ='Sales Projections'!L7 -> 2025-06-01 | S198: ='Sales Projections'!M7 -> 2025-07-01 | U198: ='Sales Projections'!N7 -> 2025-08-01 | W198: ='Sales Projections'!O7 -> 2025-09-01 | Y198: ='Sales Projections'!P7 -> 2025-10-01 | AA198: ='Sales Projections'!Q7 -> 2025-11-01 | AC198: ='Sales Projections'!R7 -> 2025-12-01
B199: Excess of expenses over incomes | G199: =G192-H183 -> -234791.1054 | I199: =I192-J183 -> -246501.773 | K199: =K192-L183 -> -168159.1028 | M199: =M192-N183 -> -249975.3724 | O199: =O192-P183 -> -267212.4405 | Q199: =Q192-R183 -> -326633.7756 | S199: =S192-T183 -> -180632.7022 | U199: =U192-V183 -> -335344.4432 | W199: =W192-X183 -> -215580.4379 | Y199: =Y192-Z183 -> -288212.4405 | AA199: =AA192-AB183 -> -65184.42987 | AC199: =AC192-AD183 -> -802689.7969
B200: Capital Investment | G200: =Parameters!D11 -> 12500000
B202: Total funds required | G202: =G199+G200 -> 12265208.89 | I202: =I199+I200 -> -246501.773 | K202: =K199+K200 -> -168159.1028 | M202: =M199+M200 -> -249975.3724 | O202: =O199+O200 -> -267212.4405 | Q202: =Q199+Q200 -> -326633.7756 | S202: =S199+S200 -> -180632.7022 | U202: =U199+U200 -> -335344.4432 | W202: =W199+W200 -> -215580.4379 | Y202: =Y199+Y200 -> -288212.4405 | AA202: =AA199+AA200 -> -65184.42987 | AC202: =AC199+AC200 -> -802689.7969
B206: PROJECTED PROFIT & LOSS (YEAR 1-5)
G208: Year 1 | I208: Year 2 | K208: Year 3 | M208: Year 4 | O208: Year 5
B209: Revenue | G209: =H183+J183+L183+N183+P183+R183+T183+V183+X183+Z183+AB183+AD183 -> 17600506.92 | I209: =G209*115% -> 20240582.96 | K209: =I209*115% -> 23276670.4 | M209: =K209*115% -> 26768170.97 | O209: =M209*115% -> 30783396.61
B210: Other Incomes
B211: Total Revenue | G211: =SUM(G209:H210) -> 17600506.92 | I211: =SUM(I209:J210) -> 20240582.96 | K211: =SUM(K209:L210) -> 23276670.4 | M211: =SUM(M209:N210) -> 26768170.97 | O211: =SUM(O209:P210) -> 30783396.61
B213: Expenses
B214: Consumables/ Material | G214: =SUM(G188:AD188) -> 9501665.926 | I214: =G214 -> 9501665.926 | K214: =I214 -> 9501665.926 | M214: =K214 -> 9501665.926 | O214: =M214 -> 9501665.926
B215: Labour cost | G215: =SUM(G189:AD189) -> 630632.1426 | I215: =G215 -> 630632.1426 | K215: =I215 -> 630632.1426 | M215: =K215 -> 630632.1426 | O215: =M215 -> 630632.1426
B216: Overheads | G216: =SUM(G191:AD191) -> 879764.5 | I216: 879764.5 | K216: 879764.5 | M216: 879764.5 | O216: 879764.5
B217: Total expenses | G217: =SUM(G214:H216) -> 11012062.57 | I217: =SUM(I214:J216) -> 11012062.57 | K217: =SUM(K214:L216) -> 11012062.57 | M217: =SUM(M214:N216) -> 11012062.57 | O217: =SUM(O214:P216) -> 11012062.57
B219: EBITDA | G219: =G211-G217 -> 6588444.354 | I219: =I211-I217 -> 9228520.392 | K219: =K211-K217 -> 12264607.84 | M219: =M211-M217 -> 15756108.4 | O219: =O211-O217 -> 19771334.04
B220: Depreciation | G220: =SUM(G190:AD190) -> 3207526.533 | I220: =G220*90% -> 2886773.88 | K220: =I220*90% -> 2598096.492 | M220: =K220*90% -> 2338286.843 | O220: =M220*90% -> 2104458.159
B221: EBIT | G221: =G219-G220 -> 3380917.82 | I221: =I219-I220 -> 6341746.512 | K221: =K219-K220 -> 9666511.344 | M221: =M219-M220 -> 13417821.55 | O221: =O219-O220 -> 17666875.88
B222: Interest | G222: =Parameters!D26 -> 246000 | I222: =Parameters!D26 -> 246000 | K222: =Parameters!D26 -> 246000 | M222: =Parameters!D26 -> 246000 | O222: =Parameters!D26 -> 246000
B223: EBT/PBT | G223: =G221-G222 -> 3134917.82 | I223: =I221-I222 -> 6095746.512 | K223: =K221-K222 -> 9420511.344 | M223: =M221-M222 -> 13171821.55 | O223: =O221-O222 -> 17420875.88
B224: Taxation | G224: =G223*Parameters!$D$7 -> 470237.6731 | I224: =I223*Parameters!$D$7 -> 914361.9768 | K224: =K223*Parameters!$D$7 -> 1413076.702 | M224: =M223*Parameters!$D$7 -> 1975773.233 | O224: =O223*Parameters!$D$7 -> 2613131.382
B225: EAT/PAT | G225: =G223-G224 -> 2664680.147 | I225: =I223-I224 -> 5181384.535 | K225: =K223-K224 -> 8007434.642 | M225: =M223-M224 -> 11196048.32 | O225: =O223-O224 -> 14807744.5
B228: PROJECTED BALANCE SHEET (YEAR 1-5)
G230: Year 1 | I230: Year 2 | K230: Year 3 | M230: Year 4 | O230: Year 5
B231: Liabilities
B232: Proprietor's Capital Account
B233: Opening Balance | G233: =Parameters!D11 -> 12500000 | I233: =G238 -> 15164680.15 | K233: =I238 -> 20346064.68 | M233: =K238 -> 28353499.32 | O233: =M238 -> 39549547.65
B234: Additions during the year
B235: (+) Transfers during the year
B236: (-) Drawings
B237: (+/-) Share of Profit from P/L | G237: =G225 -> 2664680.147 | I237: =I225 -> 5181384.535 | K237: =K225 -> 8007434.642 | M237: =M225 -> 11196048.32 | O237: =O225 -> 14807744.5
B238: Closing Balance | G238: =G233+G235+G237-G236 -> 15164680.15 | I238: =I233+I235+I237-I236 -> 20346064.68 | K238: =K233+K235+K237-K236 -> 28353499.32 | M238: =M233+M235+M237-M236 -> 39549547.65 | O238: =O233+O235+O237-O236 -> 54357292.15
B239: Long term Loans and Borrowings | G239: =Parameters!D17 -> 1200000 | I239: =Parameters!D17 -> 1200000 | K239: =Parameters!D17 -> 1200000 | M239: =Parameters!D17 -> 1200000 | O239: =Parameters!D17 -> 1200000
B240: Short term Loan and Borrowings | G240: =Parameters!D18+Parameters!D19 -> 650000 | I240: =Parameters!D18+Parameters!D19 -> 650000 | K240: =Parameters!D18+Parameters!D19 -> 650000 | M240: =Parameters!D18+Parameters!D19 -> 650000 | O240: =Parameters!D18+Parameters!D19 -> 650000
B241: Trade Payables
B242: Total Liabilities | G242: =SUM(G238:H241) -> 17014680.15 | I242: =SUM(I238:J241) -> 22196064.68 | K242: =SUM(K238:L241) -> 30203499.32 | M242: =SUM(M238:N241) -> 41399547.65 | O242: =SUM(O238:P241) -> 56207292.15
B244: Assets
B245: PPE (Plants, Properties and Equipment) | G245: =AssetsEquip!H1192 -> 42002801 | I245: =G245-G247 -> 38795274.47 | K245: =I245-I247 -> 35908500.59 | M245: =K245-K247 -> 33310404.09 | O245: =M245-M247 -> 30972117.25
B246: Intangibles
B247: Less: Depreciation | G247: =AssetsEquip!N1192 -> 3207526.533 | I247: =G247*90% -> 2886773.88 | K247: =I247*90% -> 2598096.492 | M247: =K247*90% -> 2338286.843 | O247: =M247*90% -> 2104458.159
B248: Non Current Investments & Deposits
B249: Loan and Advances
B250: Trade Receivables
B251: Inventories
B252: Cash and Bank Balances | G252: =G282 -> 5872206.681 | I252: =I282 -> 13940365.1 | K252: =K282 -> 24545896.23 | M252: =M282 -> 38080231.39 | O252: =O282 -> 54992434.05
B253: Total Assets | G253: =G245+G246-G247+G248+G249+G250+G251+G252 -> 44667481.15 | I253: =I245+I246-I247+I248+I249+I250+I251+I252 -> 49848865.68 | K253: =K245+K246-K247+K248+K249+K250+K251+K252 -> 57856300.32 | M253: =M245+M246-M247+M248+M249+M250+M251+M252 -> 69052348.65 | O253: =O245+O246-O247+O248+O249+O250+O251+O252 -> 83860093.15
B256: PROJECTED CASHFLOW STATEMENT (YEAR 1-5)
G258: Year 1 | I258: Year 2 | K258: Year 3 | M258: Year 4 | O258: Year 5
B259: Cash Flows from Operating Activities
B260: Net Income | G260: =G225 -> 2664680.147 | I260: =I225 -> 5181384.535 | K260: =K225 -> 8007434.642 | M260: =M225 -> 11196048.32 | O260: =O225 -> 14807744.5
B261: Adjustments for Non-Cash Items
B262: Depreciation and Amortization | G262: =G220 -> 3207526.533 | I262: =I220 -> 2886773.88 | K262: =K220 -> 2598096.492 | M262: =M220 -> 2338286.843 | O262: =O220 -> 2104458.159
B263: Changes in Working Capital
B264: Increase in Accounts Receivable | G264: =(G250) -> 0 | I264: =I250-G250 -> 0 | K264: =K250-I250 -> 0 | M264: =M250-K250 -> 0 | O264: =O250-M250 -> 0
B265: Increase in Inventory | G265: =G251 -> 0 | I265: =I251-G251 -> 0 | K265: =K251-I251 -> 0 | M265: =M251-K251 -> 0 | O265: =O251-M251 -> 0
B266: Decrease in Accounts Payable | G266: =(G241) -> 0 | I266: =I241-G241 -> 0 | K266: =K241-I241 -> 0 | M266: =M241-K241 -> 0 | O266: =O241-M241 -> 0
B267: Net Cash from Operating Activities | G267: =G260+G262+G264+G265+G266 -> 5872206.681 | I267: =I260+I262+I264+I265+I266 -> 8068158.415 | K267: =K260+K262+K264+K265+K266 -> 10605531.13 | M267: =M260+M262+M264+M265+M266 -> 13534335.16 | O267: =O260+O262+O264+O265+O266 -> 16912202.66
B269: Cash Flows from Investing Activities
B270: Purchases/(sale) of Property, Plant, and Equipment (PP&E)
B271: Purchases/(sale) of Investments | G271: =G248 -> 0 | I271: =I248-G248 -> 0 | K271: =K248-I248 -> 0 | M271: =M248-K248 -> 0 | O271: =O248-M248 -> 0
B272: Net Cash Used in Investing Activities | G272: =SUM(G270:H271) -> 0 | I272: =SUM(I270:J271) -> 0 | K272: =SUM(K270:L271) -> 0 | M272: =SUM(M270:N271) -> 0 | O272: =SUM(O270:P271) -> 0
B274: Cash Flows from Financing Activities
B275: Issuance of Stock | G275: =G235 -> 0 | I275: =I235 -> 0 | K275: =K235 -> 0 | M275: =M235 -> 0 | O275: =O235 -> 0
B276: Repayment of Debt | I276: =I239-G239 -> 0 | K276: =K239-I239 -> 0 | M276: =M239-K239 -> 0 | O276: =O239-M239 -> 0
B277: Dividend Payments | I277: =I236 -> 0 | K277: =K236 -> 0 | M277: =M236 -> 0 | O277: =O236 -> 0
B278: Net Cash from Financing Activities | G278: =SUM(G275:H277) -> 0 | I278: =SUM(I275:J277) -> 0 | K278: =SUM(K275:L277) -> 0 | M278: =SUM(M275:N277) -> 0 | O278: =SUM(O275:P277) -> 0
B280: Net Increase (Decrease) in Cash and Cash Equivalents | G280: =G267+G272+G278 -> 5872206.681 | I280: =I267+I272+I278 -> 8068158.415 | K280: =K267+K272+K278 -> 10605531.13 | M280: =M267+M272+M278 -> 13534335.16 | O280: =O267+O272+O278 -> 16912202.66
B281: Beginning Cash Balance | G281: 0 | I281: =G252 -> 5872206.681 | K281: =I252 -> 13940365.1 | M281: =K252 -> 24545896.23 | O281: =M252 -> 38080231.39
B282: Ending Cash Balance | G282: =G280+G281 -> 5872206.681 | I282: =I280+I281 -> 13940365.1 | K282: =K280+K281 -> 24545896.23 | M282: =M280+M281 -> 38080231.39 | O282: =O280+O281 -> 54992434.05
B287: 5.3. RATIO ANALYSIS
B289: 5.3.1 Financial Statement (FS) Ratios
B291: PROFITABILITY RATIOS (YEAR 1-5)
B293: Particulars | G293: Year 1 | I293: Year 2 | K293: Year 3 | M293: Year 4 | O293: Year 5
B294: Gross profit margin | G294: =IFERROR(G219/G211, "") -> 0.3743326475 | I294: =IFERROR(I219/I211, "") -> 0.4559414326 | K294: =IFERROR(K219/K211, "") -> 0.5269055936 | M294: =IFERROR(M219/M211, "") -> 0.5886135596 | O294: =IFERROR(O219/O211, "") -> 0.6422726606
B295: Operating profit margin | G295: =IFERROR(G221/G211, "") -> 0.1920920707 | I295: =IFERROR(I221/I211, "") -> 0.3133183725 | K295: =IFERROR(K221/K211, "") -> 0.4152875465 | M295: =IFERROR(M221/M211, "") -> 0.5012603054 | O295: =IFERROR(O221/O211, "") -> 0.5739092442
B296: Net profit margin | G296: =IFERROR(G225/G211, "") -> 0.1513979205 | I296: =IFERROR(I225/I211, "") -> 0.2559898865 | K296: =IFERROR(K225/K211, "") -> 0.344011171 | M296: =IFERROR(M225/M211, "") -> 0.4182597435 | O296: =IFERROR(O225/O211, "") -> 0.4810302348
B297: Return on Assets | G297: =IFERROR(G225/G253, "") -> 0.05965593042 | I297: =IFERROR(I225/I253, "") -> 0.1039418744 | K297: =IFERROR(K225/K253, "") -> 0.1384021204 | M297: =IFERROR(M225/M253, "") -> 0.1621385592 | O297: =IFERROR(O225/O253, "") -> 0.1765767714
B298: Return on Equity | G298: =IFERROR(G225/G238, "") -> 0.1757162117 | I298: =IFERROR(I225/I238, "") -> 0.2546627378 | K298: =IFERROR(K225/K238, "") -> 0.2824143345 | M298: =IFERROR(M225/M238, "") -> 0.2830891625 | O298: =IFERROR(O225/O238, "") -> 0.2724150508
B299: Earnings per share | G299: =IFERROR(G242/Parameters!$D$12, "") -> 136.1174412 | I299: =IFERROR(I242/Parameters!$D$12, "") -> 177.5685175 | K299: =IFERROR(K242/Parameters!$D$12, "") -> 241.6279946 | M299: =IFERROR(M242/Parameters!$D$12, "") -> 331.1963812 | O299: =IFERROR(O242/Parameters!$D$12, "") -> 449.6583372
B300: Return on Capital employed | G300: =IFERROR(G221/(G253-(G239+G240)), "") -> 0.07896115628 | I300: =IFERROR(I221/(I253-(I239+I240)), "") -> 0.1321228413 | K300: =IFERROR(K221/(K253-(K239+K240)), "") -> 0.1725968559 | M300: =IFERROR(M221/(M253-(M239+M240)), "") -> 0.1996629854 | O300: =IFERROR(O221/(O253-(O239+O240)), "") -> 0.2154231901
B302: LIQUIDITY MEASURES (YEAR 1-5)
B304: Particulars | G304: Year 1 | I304: Year 2 | K304: Year 3 | M304: Year 4 | O304: Year 5
B305: Current ratio/WC ratio | G305: =IFERROR(SUM(G249:H252)/SUM(G240:H241), "") -> 9.034164124 | I305: =IFERROR(SUM(I249:J252)/SUM(I240:J241), "") -> 21.44671553 | K305: =IFERROR(SUM(K249:L252)/SUM(K240:L241), "") -> 37.76291728 | M305: =IFERROR(SUM(M249:N252)/SUM(M240:N241), "") -> 58.58497138 | O305: =IFERROR(SUM(O249:P252)/SUM(O240:P241), "") -> 84.6037447
B306: Quick ratio | G306: =IFERROR((G249+G250+G252)/SUM(G240:H241), "") -> 9.034164124 | I306: =IFERROR((I249+I250+I252)/SUM(I240:J241), "") -> 21.44671553 | K306: =IFERROR((K249+K250+K252)/SUM(K240:L241), "") -> 37.76291728 | M306: =IFERROR((M249+M250+M252)/SUM(M240:N241), "") -> 58.58497138 | O306: =IFERROR((O249+O250+O252)/SUM(O240:P241), "") -> 84.6037447
B307: Cash ratio | G307: =IFERROR(G252/SUM(G240:H241), "") -> 9.034164124 | I307: =IFERROR(I252/SUM(I240:J241), "") -> 21.44671553 | K307: =IFERROR(K252/SUM(K240:L241), "") -> 37.76291728 | M307: =IFERROR(M252/SUM(M240:N241), "") -> 58.58497138 | O307: =IFERROR(O252/SUM(O240:P241), "") -> 84.6037447
B308: Working Capital (WC) | G308: =IFERROR(SUM(G250:H252)-SUM(G240:H241), "") -> 5222206.681 | I308: =IFERROR(SUM(I250:J252)-SUM(I240:J241), "") -> 13290365.1 | K308: =IFERROR(SUM(K250:L252)-SUM(K240:L241), "") -> 23895896.23 | M308: =IFERROR(SUM(M250:N252)-SUM(M240:N241), "") -> 37430231.39 | O308: =IFERROR(SUM(O250:P252)-SUM(O240:P241), "") -> 54342434.05
B310: EFFICIENCY MEASURES (YEAR 1-5)
... 169 more rows

Sheet Background
B2: BUSINESS BACKGROUND
B4: Replace the logo in cell D4 with your own logo
B6: Business Name | D6: Hudson and Florence Investments Ltd (HFL)
B9: Country | D9: Uganda | F9: Select the country where the enterprise is located (head office)
B12: Physical Address | D12: P.O Box 119659, Kampala, Uganda.
B15: Telephone & Email | D15: Mobile: +256 704 913399 / +256 782 602963 Email: info@mt.co.ug
B18: Mission Statement | D18: To protect plants from pests, weeds and invasive species. To facilitate review and strengthening of the policy, legal and regulatory framework, so that it is in tandem with both local and international agricultural sector emerging issues. | F18: Our mission is to [primary activity or offering] by [core approach or method] to [specific goal or benefit] for [target audience or stakeholders] while [values or guiding principles]."
B21: Vision Statement | D21: To provide a science based regulatory service by assuring plant health, quality of agricultural inputs and produce for food security, globally competitive agriculture and sustainable development. | F21: To [aspirational goal or purpose] by [core strategy or action] in order to [desired impact or outcome] for [target audience or stakeholders] and [broader aspiration or impact].
B24: Objectives | D24: Regulate matters relating to plant protection, seeds and plant varieties; Administer and enforce Sanitary and Phytosanitary measures; Support the administration and enforcement of food safety measures; | F24: Our objective is to [achieve specific goal] by [quantifiable target or measure] within [specific timeframe], in order to [desired outcome or impact].
B27: Values | D27: Assure the quality of agricultural inputs and produce to prevent adverse impact on the economy, the environment and human health. | F27: Our core values are [value #1], [value #2], and [value #3], which guide our [actions/decisions/behaviors] and reflect our commitment to [desired outcome or impact].
B30: SECTORS
B32: Sector 01 | D32: Agriculture | F32: Select sector from list
B34: Sector 02 | D34: Services | F34: Select sector from list
B36: Sector 03 | F36: Select sector from list
B38: Sector 04 | F38: Select sector from list
B40: Sector 05 | F40: Select sector from list
B43: PRODUCTS/ SERVICES
B46: Product/ Service 01 | D46: Cleaning of varieties (disease elimination) | F46: product or service offered
B48: Product/ Service 02 | D48: Multiplication of cleaned varieties | F48: product or service offered
B50: Product/ Service 03 | D50: Disease Diagnostics | F50: product or service offered
B52: Product/ Service 04 | D52: Diagnostics sequencing | F52: product or service offered
B54: Product/ Service 05 | D54: Genotyping | F54: product or service offered
B56: Product/ Service 06 | D56: Training/ capacity building (Indexing/ cleaning, seed/ multiplication, seed/ screenhouse/ Tissue Culture) | F56: product or service offered
B58: Product/ Service 07 | D58: Management training (Seed Entrepreneurship) | F58: product or service offered
B60: Product/ Service 08 | D60: Conservation (Multiplication of conserved varieties) | F60: product or service offered
B62: Product/ Service 09 | D62: Facilities for Research (PhD Students, postdocs, scientists) | F62: product or service offered
B64: Product/ Service 10 | D64: Delivery of cleaned materials | F64: product or service offered
B66: Product/ Service 11 | D66: Diagnostics sequencing | F66: product or service offered
B68: Product/ Service 12 | D68: Advisory services (marketing advisory, value addition advisory) | F68: product or service offered
B70: Product/ Service 13 | F70: product or service offered
B72: Product/ Service 14 | F72: product or service offered
B74: Product/ Service 15 | F74: product or service offered
B76: ORGANISATION STRUCTURE
D78: STAFF NAMES | F78: DESIGNATION | H78: STAFF ROLES & RESPONSIBILITIES | J78: STAFF REPORTS TO
B79: Staff 01 | D79: Hudson O. Alim | F79: Country Manager | H79: Heads Uganda Office | J79: Not Applicable
B81: Staff 02 | D81: Florence Akullu | F81: Administrative Assistant | H81: Procurement and travel processing | J81: Country Manager
B83: Staff 03 | D83: Fred Tema | F83: Lab Technician | H83: Diagnostics of samples | J83: Administrative Assistant
B85: Staff 04
B87: Staff 05
B89: Staff 06
B91: Staff 07
B93: Staff 08
B95: Staff 09
B97: Staff 10
B99: Staff 11
B101: Staff 12
B103: Staff 13
B105: Staff 14
B107: Staff 15
B109: Staff 16
B111: Staff 17
B113: Staff 18
B115: Staff 19
B117: Staff 20
B120: CUSTOMER SEGMENTS ----- [Description of the ideal customer group]
D123: CUSTOMER SEGMENT | F123: BUSINESS TYPE | H123: STAFF ROLES & RESPONSIBILITIES
B124: Customer 01 | D124: NARES | F124: B2G (Business to Government) | H124: [Description of the ideal customer group E.g. Seed Multipliers]
B126: Customer 02 | D126: Local Governments | F126: B2G (Business to Government) | H126: [Description of the ideal customer group E.g. Seed Multipliers]
B128: Customer 03 | D128: CGIAR Centers | F128: B2N (Business to NGOs) | H128: [Description of the ideal customer group E.g. Seed Multipliers]
B130: Customer 04 | D130: Private Companies | F130: B2B (Business to Business) | H130: [Description of the ideal customer group E.g. Seed Multipliers]
B132: Customer 05 | D132: Nurseries | F132: B2B (Business to Business) | H132: [Description of the ideal customer group E.g. Seed Multipliers]
B134: Customer 06 | D134: Seed Multipliers | F134: B2B (Business to Business) | H134: [Description of the ideal customer group E.g. Seed Multipliers]
B136: Customer 07 | D136: Academic Institutions | F136: B2C (Business to Consumer) | H136: [Description of the ideal customer group E.g. Seed Multipliers]
B138: Customer 08 | D138: NGOs | F138: B2N (Business to NGOs) | H138: [Description of the ideal customer group E.g. Seed Multipliers]
B140: Customer 09 | D140: UN Organisations (WFP, FAO, etc.) | F140: B2N (Business to NGOs) | H140: [Description of the ideal customer group E.g. Seed Multipliers]
B142: Customer 10 | H142: [Description of the ideal customer group E.g. Seed Multipliers]
B144: Customer 11 | H144: [Description of the ideal customer group E.g. Seed Multipliers]
B146: Customer 12 | H146: [Description of the ideal customer group E.g. Seed Multipliers]
B148: Customer 13 | H148: [Description of the ideal customer group E.g. Seed Multipliers]
B150: Customer 14 | H150: [Description of the ideal customer group E.g. Seed Multipliers]
B152: Customer 15 | H152: [Description of the ideal customer group E.g. Seed Multipliers]

Sheet Environment
B3: BUSINESS ENVIRONMENT
B6: SWOT
D8: STRENGTHS [Internal factors that gives the business a competitive advantage i.e. factors within your control] | F8: WEAKNESSES [Internal factors that places the business at a disadvantage i.e. which are within your control] | H8: OPPORTUNITIES [External factors that the business could capitalize on i.e. which are not under your control] | J8: THREATS [External factors that the business could capitalize on i.e. which are not under your control]
B9: SWOT 01 | D9: Strong Brands | F9: Limited resources | H9: Growing clean seed market | J9: Fast emerging new laboratories giving fake phytosanitary services
B11: SWOT 02 | D11: Technologies to test for viruses | F11: High cost of chemicals | H11: New and fater equipment | J11: New technologies that could make VPC entrepreneurs to self test varieties using mobile apps
B13: SWOT 03 | D13: Skilled workforce | F13: Lack of effective ICT system | H13: Involvement of many NGOs in clean seed promotion | J13: Many farmers prefering local varieties instead of improved ones
B15: SWOT 04
B17: SWOT 05
B19: SWOT 06
B21: SWOT 07
B23: SWOT 08
B25: SWOT 09
B27: SWOT 10
B29: SWOT 11
B31: SWOT 12
B33: SWOT 13
B35: SWOT 14
B37: SWOT 15
B40: PESTEL
D42: POLITICAL [What political factors affect the business? Consider government policies, regulations, trade tariffs, and political stability] | F42: ECONOMIC [What economic factors impact the business? Consider economic growth, exchange rates, inflation, and employment rates] | H42: SOCIAL [What social factors influence the business? Consider demographics, cultural trends, lifestyle changes, and consumer behaviors] | J42: TECHNOLOGICAL [What technological factors affect the business? Consider technological advancements, innovation, automation, and R&D activity] | L42: ENVIRONMENTAL [What environmental factors impact the business? Consider climate change, environmental regulations, sustainability, and resource availability] | N42: LEGAL [What legal factors influence the business? E.g. laws regarding employment, consumer protection, health and safety, and regulations]
B43: PESTEL 01 | D43: Constitutional and legal frameworks | F43: State of economy (economic inequality) | H43: Traditional practices, rituals and customs | J43: State of the telecoms sector | L43: Recent and damaging drought | N43: Banned plastic bags in response to environmental concerns
B45: PESTEL 02 | D45: Political and administrative frameworks | F45: COVID19 Lockdown and restrictions | H45: Lack of opportunities for the poor | J45: Digital infrastructure | L45: Industrial pollution | N45: Smoking is banned in public space
B47: PESTEL 03 | D47: Security | F47: Rising unemployment | H47: Lack of public services | J47: Internet and digital literacy | L47: Deforestation | N47: Employers have the right to terminate employment contracts on grounds such as misconduct and very poor performance
B49: PESTEL 04 | D49: Governance | F49: Weakened public investments | H49: Corruption | J49: Availability of electricity | L49: Land degradation
B51: PESTEL 05 | H51: High crime rates | L51: desertification
B53: PESTEL 06 | H53: Poverty | L53: Loss of biodiversity
B55: PESTEL 07 | H55: A large gap between the rich and the poor
B57: PESTEL 08 | H57: Food insecurity
B59: PESTEL 09 | H59: Poor nutrition
B61: PESTEL 10 | H61: Crime rates
B63: PESTEL 11 | H63: Exploitation of labor
B65: PESTEL 12 | H65: Preventable diseases
B67: PESTEL 13
B69: PESTEL 14
B71: PESTEL 15

Sheet Business Model
B2: BUSINESS MODEL
B5: VALUE PROPOSITION CANVAS
B8: CUSTOMER JOBS ---- [What tasks, problems, or needs do customers aim to accomplish or solve?]
B11: Product/ Service 01 | D11: Cleaning of varieties (disease elimination) | F11: [Task, problem, or a need which customers aim to accomplish or solve]
B13: Product/ Service 02 | D13: Multiplication of cleaned varieties | F13: [Task, problem, or a need which customers aim to accomplish or solve]
B15: Product/ Service 03 | D15: Disease Diagnostics | F15: [Task, problem, or a need which customers aim to accomplish or solve]
B17: Product/ Service 04 | D17: Multiplying conserved varieties | F17: [Task, problem, or a need which customers aim to accomplish or solve]
B19: Product/ Service 05 | D19: Genotyping | F19: [Task, problem, or a need which customers aim to accomplish or solve]
B21: Product/ Service 06 | D21: Training/ capacity building (Indexing/ cleaning, seed/ multiplication, seed/ screenhouse/ Tissue Culture) | F21: [Task, problem, or a need which customers aim to accomplish or solve]
B23: Product/ Service 07 | D23: Management training (Seed Entrepreneurship) | F23: [Task, problem, or a need which customers aim to accomplish or solve]
B25: Product/ Service 08 | D25: Conservation (Multiplication of conserved varieties) | F25: [Task, problem, or a need which customers aim to accomplish or solve]
B27: Product/ Service 09 | D27: Facilities for Research (PhD Students, postdocs, scientists) | F27: [Task, problem, or a need which customers aim to accomplish or solve]
B29: Product/ Service 10 | D29: Delivery of cleaned materials | F29: [Task, problem, or a need which customers aim to accomplish or solve]
B31: Product/ Service 11 | D31: Diagnostics sequencing | F31: [Task, problem, or a need which customers aim to accomplish or solve]
B33: Product/ Service 12 | D33: Advisory services (marketing advisory, value addition advisory) | F33: [Task, problem, or a need which customers aim to accomplish or solve]
B35: Product/ Service 13 | F35: [Task, problem, or a need which customers aim to accomplish or solve]
B37: Product/ Service 14 | F37: [Task, problem, or a need which customers aim to accomplish or solve]
B39: Product/ Service 15 | F39: [Task, problem, or a need which customers aim to accomplish or solve]
B43: CUSTOMER PAINS ---- [What challenges, obstacles, or negative experiences do customers face when trying to accomplish their jobs?]
D46: CUSTOMER PAINS [Primary needs, and problems of the customers] | F46: CUSTOMER SEGMENTS [Description of the ideal customer group]
B47: Customer Pain 01 | D47: Expensive cleaning and testing | F47: NARES | H47: [Select customer from list]
H48: [Select customer from list]
H49: [Select customer from list]
H50: [Select customer from list]
H51: [Select customer from list]
B53: Customer Pain 02 | D53: Limited availability/ accessibility of cleaned seeds of preferred varieties (landrace, improved varieties) | F53: ALL | H53: [Select customer from list]
H54: [Select customer from list]
H55: [Select customer from list]
H56: [Select customer from list]
H57: [Select customer from list]
B60: Customer Pain 03 | D60: Lack of support for distribution for the late stage breeding materials | F60: CGIAR Centers | H60: [Select customer from list]
H61: [Select customer from list]
H62: [Select customer from list]
H63: [Select customer from list]
H64: [Select customer from list]
B67: Customer Pain 04 | D67: Non availability of research facilities | F67: NARES | H67: [Select customer from list]
F68: CGIAR Centers | H68: [Select customer from list]
F69: Academic Institutions | H69: [Select customer from list]
H70: [Select customer from list]
H71: [Select customer from list]
B73: Customer Pain 05 | D73: Low yields/incomes | F73: Nurseries | H73: [Select customer from list]
F74: Seed Multipliers | H74: [Select customer from list]
H75: [Select customer from list]
H76: [Select customer from list]
H77: [Select customer from list]
B79: Customer Pain 06 | D79: Unviable farming | F79: Seed Multipliers | H79: [Select customer from list]
H80: [Select customer from list]
H81: [Select customer from list]
H82: [Select customer from list]
H83: [Select customer from list]
B85: Customer Pain 07 | D85: Incurs loss in farming/seed business | F85: Nurseries | H85: [Select customer from list]
F86: Seed Multipliers | H86: [Select customer from list]
H87: [Select customer from list]
H88: [Select customer from list]
H89: [Select customer from list]
B91: Customer Pain 08 | D91: Mixing of varieties | F91: Private Companies | H91: [Select customer from list]
F92: Seed Multipliers | H92: [Select customer from list]
H93: [Select customer from list]
H94: [Select customer from list]
H95: [Select customer from list]
B97: Customer Pain 09 | H97: [Select customer from list]
H98: [Select customer from list]
H99: [Select customer from list]
H100: [Select customer from list]
H101: [Select customer from list]
B103: Customer Pain 10 | H103: [Select customer from list]
H104: [Select customer from list]
H105: [Select customer from list]
H106: [Select customer from list]
H107: [Select customer from list]
B109: Customer Pain 11 | H109: [Select customer from list]
H110: [Select customer from list]
H111: [Select customer from list]
H112: [Select customer from list]
H113: [Select customer from list]
B115: Customer Pain 12 | H115: [Select customer from list]
H116: [Select customer from list]
H117: [Select customer from list]
H118: [Select customer from list]
H119: [Select customer from list]
B121: Customer Pain 13 | H121: [Select customer from list]
H122: [Select customer from list]
H123: [Select customer from list]
H124: [Select customer from list]
H125: [Select customer from list]
B127: Customer Pain 14 | H127: [Select customer from list]
H128: [Select customer from list]
H129: [Select customer from list]
H130: [Select customer from list]
H131: [Select customer from list]
B133: Customer Pain 15 | H133: [Select customer from list]
H134: [Select customer from list]
H135: [Select customer from list]
H136: [Select customer from list]
H137: [Select customer from list]
B140: CUSTOMER GAINS ---- [What positive outcomes, benefits, or desires do customers seek when performing their jobs?]
D143: CUSTOMER GAINS [Practical, Emotional or psychological benefits provided to customers] | F143: CUSTOMER SEGMENTS [Description of the ideal customer group]
B144: Customer Gain 01 | D144: Disease free seeds | F144: ALL | H144: [Select customer from list]
H145: [Select customer from list]
H146: [Select customer from list]
H147: [Select customer from list]
H148: [Select customer from list]
B150: Customer Gain 02 | D150: Reduced risk in farming | F150: ALL | H150: [Select customer from list]
H151: [Select customer from list]
H152: [Select customer from list]
H153: [Select customer from list]
H154: [Select customer from list]
B157: Customer Gain 03 | D157: Reduced risk in seed business | F157: NARES | H157: [Select customer from list]
F158: CGIAR Centers | H158: [Select customer from list]
F159: Academic Institutions | H159: [Select customer from list]
H160: [Select customer from list]
H161: [Select customer from list]
B164: Customer Gain 04 | D164: Better seed performance | F164: ALL | H164: [Select customer from list]
H165: [Select customer from list]
H166: [Select customer from list]
H167: [Select customer from list]
H168: [Select customer from list]
B170: Customer Gain 05 | D170: Reduced expenditure on pest control | H170: [Select customer from list]
H171: [Select customer from list]
H172: [Select customer from list]
H173: [Select customer from list]
H174: [Select customer from list]
B176: Customer Gain 06 | D176: Market preferred variety | F176: ALL | H176: [Select customer from list]
H177: [Select customer from list]
H178: [Select customer from list]
H179: [Select customer from list]
H180: [Select customer from list]
B182: Customer Gain 07 | D182: Improved nutrition (varieties) | F182: ALL | H182: [Select customer from list]
H183: [Select customer from list]
H184: [Select customer from list]
H185: [Select customer from list]
H186: [Select customer from list]
B188: Customer Gain 08 | D188: True to type variety | F188: NARES | H188: [Select customer from list]
F189: Local Governments | H189: [Select customer from list]
F190: CGIAR Centers | H190: [Select customer from list]
H191: [Select customer from list]
H192: [Select customer from list]
B194: Customer Gain 09 | D194: Training materials | F194: Academic Institutions | H194: [Select customer from list]
H195: [Select customer from list]
H196: [Select customer from list]
H197: [Select customer from list]
H198: [Select customer from list]
B200: Customer Gain 10 | D200: Reliable Research outcomes | F200: NARES | H200: [Select customer from list]
F201: CGIAR Centers | H201: [Select customer from list]
H202: [Select customer from list]
H203: [Select customer from list]
H204: [Select customer from list]
B206: Customer Gain 11 | D206: Faster adoption of good varieties | F206: ALL | H206: [Select customer from list]
H207: [Select customer from list]
H208: [Select customer from list]
H209: [Select customer from list]
H210: [Select customer from list]
B212: Customer Gain 12 | D212: Yield improvement | F212: NARES | H212: [Select customer from list]
F213: Seed Multipliers | H213: [Select customer from list]
H214: [Select customer from list]
H215: [Select customer from list]
H216: [Select customer from list]
B218: Customer Gain 13 | D218: Reduced Post harvest loses | F218: Seed Multipliers | H218: [Select customer from list]
H219: [Select customer from list]
H220: [Select customer from list]
H221: [Select customer from list]
H222: [Select customer from list]
B224: Customer Gain 14 | H224: [Select customer from list]
H225: [Select customer from list]
H226: [Select customer from list]
H227: [Select customer from list]
H228: [Select customer from list]
B230: Customer Gain 15 | H230: [Select customer from list]
H231: [Select customer from list]
H232: [Select customer from list]
H233: [Select customer from list]
H234: [Select customer from list]
B237: VALUE MAP
B239: PRODUCTS AND SERVICES ----- [What are the main products or services offered that help customers perform their jobs?]
B242: Product/ Service 01 | D242: Cleaning of varieties (disease elimination) | F242: [Product or service offered that help customers perform their jobs]
B244: Product/ Service 02 | D244: Multiplication of cleaned varieties | F244: [Product or service offered that help customers perform their jobs]
B246: Product/ Service 03 | D246: Disease Diagnostics | F246: [Product or service offered that help customers perform their jobs]
B248: Product/ Service 04 | D248: Diagnostics sequencing | F248: [Product or service offered that help customers perform their jobs]
B250: Product/ Service 05 | D250: Genotyping | F250: [Product or service offered that help customers perform their jobs]
B252: Product/ Service 06 | D252: Training/ capacity building (Indexing/ cleaning, seed/ multiplication, seed/ screenhouse/ Tissue Culture) | F252: [Product or service offered that help customers perform their jobs]
B254: Product/ Service 07 | D254: Management training (Seed Entrepreneurship) | F254: [Product or service offered that help customers perform their jobs]
B256: Product/ Service 08 | D256: Conservation (Multiplication of conserved varieties) | F256: [Product or service offered that help customers perform their jobs]
B258: Product/ Service 09 | D258: Facilities for Research (PhD Students, postdocs, scientists) | F258: [Product or service offered that help customers perform their jobs]
B260: Product/ Service 10 | D260: Delivery of cleaned materials | F260: [Product or service offered that help customers perform their jobs]
B262: Product/ Service 11 | D262: Diagnostics sequencing | F262: [Product or service offered that help customers perform their jobs]
B264: Product/ Service 12 | D264: Advisory services (marketing advisory, value addition advisory) | F264: [Product or service offered that help customers perform their jobs]
B266: Product/ Service 13 | F266: [Product or service offered that help customers perform their jobs]
B268: Product/ Service 14 | F268: [Product or service offered that help customers perform their jobs]
B270: Product/ Service 15 | F270: [Product or service offered that help customers perform their jobs]
B274: PAIN RELIEVERS ---- [How does your product/service address or eliminate specific customer pains?]
D277: PAIN RELIEVERS [How does your product/service address or eliminate specific customer pains?] | F277: CUSTOMER SEGMENTS [Description of the ideal customer group]
B278: Pain Reliever 01 | D278: Reduced cost of virus cleaning and indexing | F278: ALL | H278: [Select customer from list]
H279: [Select customer from list]
F280: Local Governments | H280: [Select customer from list]
H281: [Select customer from list]
H282: [Select customer from list]
B284: Pain Reliever 02 | D284: More access to clean seeds of preferred varieties | H284: [Select customer from list]
H285: [Select customer from list]
H286: [Select customer from list]
H287: [Select customer from list]
... 321 more rows

Sheet Operations
B2: BUSINESS OPERATIONS (WORKFLOWS)
B5: WORKFLOW
B8: STAGES- Define all major stages involved in business operation
B10: No | C10: Stage Name (Details)
B11: 1 | C11: Stage 0. Sample reception and entry into database
B12: 2 | C12: Stage 1A. Establish in quarantine glasshouse (Stem Cuttings)
B13: 3 | C13: Stage 1B: Establish in post entry quarantine growthroom
B14: 4 | C14: Stage 1C: Hardening Invitro Plantlet (Quarantine Glasshouse)
B15: 5 | C15: Stage 2A.1. Virus indexing by Convectional PCR
B16: 6 | C16: Stage 2A.2. Virus indexing by Real time PCR
B17: 7 | C17: Stage 2A.3. Virus indexing by grafting (SETOSA)
B18: 8 | C18: Stage 2A.4. Virus Indexing by ELISA
B19: 9 | C19: Positive (diagnostic)
B20: 10 | C20: Negative (diagnostic)
B21: 11 | C21: Stage 2C: Diagnostic report
B22: 12 | C22: Stage 2B: Phytosanitary Certificate
B23: 13 | C23: Stage 3A1: Take explant through surface sterilization & Initiation (positive)
B24: 14 | C24: Stage 3A2: Take explant through surface sterilization & Initiation (negative)
B25: 15 | C25: Stage 3B: Thermotherapy and meristem tip culture
B26: 16 | C26: Stage 3C: Hardening Invitro plantlet (After cleaning)
B27: 17 | C27: Stage 3D: Transfer to growth room for multiplication and sub-culturing
B28: 18 | C28: Stage 4A. Harden plantlets in a glasshouse or screenhouse (After testing Negative)
B29: 19 | C29: Stage 4B: Distribute in vitro plantlets
B30: 20 | C30: Stage 4C: In vitro conservation (growth room)
B31: 21 | C31: Stage 5A: Invivo Conservation (screenhouse)
B32: 22 | C32: Stage 5B: Invivo Multiplication (screenhouse)
B33: 23 | C33: Stage 5C: Distribute cuttings (15cm)
B39: PRODUCT LINKAGES- Provide the linkages between products and the stages involved in the product process
B41: No | C41: Product Name (Details) | D41: Stage Applicable 1 | E41: Stage Applicable 2 | F41: Stage Applicable 3 | G41: Stage Applicable 4 | H41: Comments
B42: 1 | C42: =IF(LEN(TRIM(ChoiceList!F3)) > 0, ChoiceList!F3, "") -> Cleaning of varieties (disease elimination) | D42: Stage 2A.1. Virus indexing by Convectional PCR | E42: Stage 2A.2. Virus indexing by Real time PCR | F42: Stage 2A.3. Virus indexing by grafting (SETOSA) | G42: Stage 2A.4. Virus Indexing by ELISA
B43: 2 | C43: =IF(LEN(TRIM(ChoiceList!F4)) > 0, ChoiceList!F4, "") -> Multiplication of cleaned varieties | D43: Stage 0. Sample reception and entry into database | E43: Stage 2A.2. Virus indexing by Real time PCR | F43: Stage 2A.3. Virus indexing by grafting (SETOSA) | G43: Stage 5B: Invivo Multiplication (screenhouse)
B44: 3 | C44: =IF(LEN(TRIM(ChoiceList!F5)) > 0, ChoiceList!F5, "") -> Disease Diagnostics | D44: Stage 0. Sample reception and entry into database | E44: Stage 2A.3. Virus indexing by grafting (SETOSA) | F44: Stage 2C: Diagnostic report
B45: 4 | C45: =IF(LEN(TRIM(ChoiceList!F6)) > 0, ChoiceList!F6, "") -> Multiplying conserved varieties | D45: Stage 1B: Establish in post entry quarantine growthroom | E45: Stage 5B: Invivo Multiplication (screenhouse)
B46: 5 | C46: =IF(LEN(TRIM(ChoiceList!F7)) > 0, ChoiceList!F7, "") -> Genotyping | D46: Stage 0. Sample reception and entry into database | E46: Stage 3B: Thermotherapy and meristem tip culture
B47: 6 | C47: =IF(LEN(TRIM(ChoiceList!F8)) > 0, ChoiceList!F8, "") -> Training/ capacity building (Indexing/ cleaning, seed/ multiplication, seed/ screenhouse/ Tissue Culture) | D47: Stage 2A.1. Virus indexing by Convectional PCR | E47: Stage 2A.2. Virus indexing by Real time PCR | F47: Stage 2A.3. Virus indexing by grafting (SETOSA) | G47: Stage 2A.4. Virus Indexing by ELISA
B48: 7 | C48: =IF(LEN(TRIM(ChoiceList!F9)) > 0, ChoiceList!F9, "") -> Management training (Seed Entrepreneurship) | D48: Stage 4A. Harden plantlets in a glasshouse or screenhouse (After testing Negative) | E48: Stage 2A.2. Virus indexing by Real time PCR | F48: Stage 2A.3. Virus indexing by grafting (SETOSA)
B49: 8 | C49: =IF(LEN(TRIM(ChoiceList!F10)) > 0, ChoiceList!F10, "") -> Conservation (Multiplication of conserved varieties) | D49: Stage 0. Sample reception and entry into database | E49: Stage 1A. Establish in quarantine glasshouse (Stem Cuttings) | F49: Stage 4C: In vitro conservation (growth room)
B50: 9 | C50: =IF(LEN(TRIM(ChoiceList!F11)) > 0, ChoiceList!F11, "") -> Facilities for Research (PhD Students, postdocs, scientists) | D50: End/Final Stage
B51: 10 | C51: =IF(LEN(TRIM(ChoiceList!F12)) > 0, ChoiceList!F12, "") -> Delivery of cleaned materials | D51: End/Final Stage
B54: STAGE LINKAGES- Provide the linkages between stages i.e. Start stage, next stage, etc
B56: No | C56: Stage Name (Details) | D56: Destination 1 | E56: Destination 2 | F56: Destination 3 | G56: Destination 4 | H56: Comments
B57: =IF(LEN(TRIM(B11)) > 0, B11, "") -> 1 | C57: =IF(LEN(TRIM(C11)) > 0, TRIM(C11), "") -> Stage 0. Sample reception and entry into database | D57: Stage 1A. Establish in quarantine glasshouse
B58: 2 | C58: Stage 1A. Establish in quarantine glasshouse (Stem Cuttings) | D58: Stage 2A.1. Virus indexing by Convectional PCR | E58: Stage 2A.2. Virus indexing by Real time PCR | F58: Stage 2A.3. Virus indexing by grafting (SETOSA) | G58: Stage 2A.4. Virus Indexing by ELISA
B59: 3 | C59: Stage 1B: Establish in post entry quarantine growthroom | D59: Stage 1C: Hardening Invitro Plantlet (Quarantine Glasshouse)
B60: 4 | C60: Stage 1C: Hardening Invitro Plantlet (Quarantine Glasshouse) | D60: Stage 1B: Establish in post entry quarantine growthroom
B61: 5 | C61: Stage 2A.1. Virus indexing by Convectional PCR | D61: Positive (diagnostic) | E61: Negative (diagnostic)
B62: 6 | C62: Stage 2A.2. Virus indexing by Real time PCR | D62: Positive (diagnostic) | E62: Negative (diagnostic)
B63: 7 | C63: Stage 2A.3. Virus indexing by grafting (SETOSA) | D63: Positive (diagnostic) | E63: Negative (diagnostic)
B64: 8 | C64: Stage 2A.4. Virus Indexing by ELISA | D64: Positive (diagnostic) | E64: Negative (diagnostic)
B65: 9 | C65: Positive (diagnostic) | D65: Stage 2C: Diagnostic report | E65: Stage 3A1: Take explant through surface sterilization & Initiation (positive)
B66: 10 | C66: Negative (diagnostic) | D66: Stage 2C: Diagnostic report | E66: Stage 2B: Phytosanitary Certificate | F66: Stage 3A2: Take explant through surface sterilization & Initiation (negative) | G66: Stage 3D: Transfer to growth room for multiplication and sub-culturing
B67: 11 | C67: Stage 2C: Diagnostic report | D67: Stage 2B: Phytosanitary Certificate | E67: End/Final Stage
B68: 12 | C68: Stage 2B: Phytosanitary Certificate | D68: End/Final Stage
B69: 13 | C69: Stage 3A1: Take explant through surface sterilization & Initiation (positive) | D69: Stage 3B: Thermotherapy and meristem tip culture
B70: 14 | C70: Stage 3A2: Take explant through surface sterilization & Initiation (negative) | D70: Stage 3D: Transfer to growth room for multiplication and sub-culturing
B71: 15 | C71: Stage 3B: Thermotherapy and meristem tip culture | D71: Stage 3C: Hardening Invitro plantlet (After cleaning)
B72: 16 | C72: Stage 3C: Hardening Invitro plantlet (After cleaning) | D72: Stage 2A.1. Virus indexing by Convectional PCR | E72: Stage 2A.2. Virus indexing by Real time PCR | F72: Stage 2A.3. Virus Indexing by ELISA | G72: Stage 2A.4. Virus indexing by grafting (SETOSA)
B73: 17 | C73: Stage 3D: Transfer to growth room for multiplication and sub-culturing | D73: Stage 4A. Harden plantlets in a glasshouse or screenhouse (After testing Negative) | E73: Stage 4B: Distribute in vitro plantlets | F73: Stage 4C: In vitro conservation (growth room)
B74: 18 | C74: Stage 4A. Harden plantlets in a glasshouse or screenhouse (After testing Negative) | D74: Stage 5A in vivo Conservation (screenhouse) | E74: Stage 5B: Invivo Multiplication (screenhouse) | F74: Stage 5C: Distribute cuttings (15cm)
B75: 19 | C75: Stage 4B: Distribute in vitro plantlets | D75: End/Final Stage
B76: 20 | C76: Stage 4C: In vitro conservation (growth room) | D76: Stage 3D: Transfer to growth room for multiplication and sub-culturing
B77: 21 | C77: Stage 5A: Invivo Conservation (screenhouse) | D77: End/Final Stage
B78: 22 | C78: Stage 5B: Invivo Multiplication (screenhouse) | D78: End/Final Stage
B79: 23 | C79: Stage 5C: Distribute cuttings (15cm) | D79: End/Final Stage
B87: STEPS INVOLVED IN EVERY STAGE- Provide activities conducted under each stage
B90: =IF(LEN(TRIM(B11)) > 0, CONCATENATE("No. ", B11, ":"), "") -> No. 1: | C90: =IF(LEN(TRIM(C11)) > 0, TRIM(C11), "") -> Stage 0. Sample reception and entry into database
B92: Steps | C92: Particulars | E92: Timeline (e.g. 30) | F92: Time Unit (e.g. Minutes) | I92: convert time to minutes
B93: 1 | C93: Condition of sample is assessed and accepted/rejected | E93: 3 | F93: Minutes | I93: =IFERROR(E93 * VLOOKUP(F93, ChoiceList!$N$2:$Q$10, 4, FALSE), "") -> 3
B94: 2 | C94: Entering sample details in registration system and filing printouts | E94: 180 | F94: Minutes | I94: =IFERROR(E94 * VLOOKUP(F94, ChoiceList!$N$2:$Q$10, 4, FALSE), "") -> 180
B95: 3 | C95: Print barcode label | E95: 72 | F95: Minutes | I95: =IFERROR(E95 * VLOOKUP(F95, ChoiceList!$N$2:$Q$10, 4, FALSE), "") -> 72
B96: 4 | C96: Record Samples in QMS book and lab staff signing | E96: 180 | F96: Minutes | I96: =IFERROR(E96 * VLOOKUP(F96, ChoiceList!$N$2:$Q$10, 4, FALSE), "") -> 180
B97: 5 | C97: Transfer samples to Labs | E97: 5 | F97: Minutes | I97: =IFERROR(E97 * VLOOKUP(F97, ChoiceList!$N$2:$Q$10, 4, FALSE), "") -> 5
B98: 6 | C98: Send payment schedule (invoice) to client | E98: 3 | F98: Minutes | I98: =IFERROR(E98 * VLOOKUP(F98, ChoiceList!$N$2:$Q$10, 4, FALSE), "") -> 3
B99: 7 | C99: Client sends Mpesa payment message to confirm payment | E99: 3 | F99: Minutes | I99: =IFERROR(E99 * VLOOKUP(F99, ChoiceList!$N$2:$Q$10, 4, FALSE), "") -> 3
B100: 8 | I100: =IFERROR(E100 * VLOOKUP(F100, ChoiceList!$N$2:$Q$10, 4, FALSE), "") -> 
B101: 9 | I101: =IFERROR(E101 * VLOOKUP(F101, ChoiceList!$N$2:$Q$10, 4, FALSE), "") -> 
B102: 10 | I102: =IFERROR(E102 * VLOOKUP(F102, ChoiceList!$N$2:$Q$10, 4, FALSE), "") -> 
B103: 11 | I103: =IFERROR(E103 * VLOOKUP(F103, ChoiceList!$N$2:$Q$10, 4, FALSE), "") -> 
B104: 12 | I104: =IFERROR(E104 * VLOOKUP(F104, ChoiceList!$N$2:$Q$10, 4, FALSE), "") -> 
B105: 13 | I105: =IFERROR(E105 * VLOOKUP(F105, ChoiceList!$N$2:$Q$10, 4, FALSE), "") -> 
B106: 14 | I106: =IFERROR(E106 * VLOOKUP(F106, ChoiceList!$N$2:$Q$10, 4, FALSE), "") -> 
B107: 15 | I107: =IFERROR(E107 * VLOOKUP(F107, ChoiceList!$N$2:$Q$10, 4, FALSE), "") -> 
B108: 16 | I108: =IFERROR(E108 * VLOOKUP(F108, ChoiceList!$N$2:$Q$10, 4, FALSE), "") -> 
B109: 17 | I109: =IFERROR(E109 * VLOOKUP(F109, ChoiceList!$N$2:$Q$10, 4, FALSE), "") -> 
B110: 18 | I110: =IFERROR(E110 * VLOOKUP(F110, ChoiceList!$N$2:$Q$10, 4, FALSE), "") -> 
B111: 19 | I111: =IFERROR(E111 * VLOOKUP(F111, ChoiceList!$N$2:$Q$10, 4, FALSE), "") -> 
B112: 20 | I112: =IFERROR(E112 * VLOOKUP(F112, ChoiceList!$N$2:$Q$10, 4, FALSE), "") -> 
D113: Total Duration | E113: =IF(I113 < ChoiceList!$Q$5, CONCATENATE(I113, " ", ChoiceList!$N$4), IF(I113 < ChoiceList!$Q$6, CONCATENATE(ROUNDDOWN(I113/ChoiceList!$Q$5, 0), " ", ChoiceList!$N$5), IF(I113 < ChoiceList!$Q$7, CONCATENATE(ROUNDDOWN(I113/ChoiceList!$Q$6, 1), " ", ChoiceList!$N$6), IF(I113 < ChoiceList!$Q$8, CONCATENATE(ROUNDDOWN(I113/ChoiceList!$Q$7, 1), " ", ChoiceList!$N$7), IF(I113 < ChoiceList!$Q$9, CONCATENATE(ROUNDDOWN(I113/ChoiceList!$Q$8, 1), " ", ChoiceList!$N$8), IF(I113 < ChoiceList!$Q$10, CONCATENATE(ROUNDDOWN(I113/ChoiceList!$Q$9, 1), " ", ChoiceList!$N$9), "")))))) -> 7 Hours | I113: =SUM(I93:I112) -> 446
B117: =IF(LEN(TRIM(B12)) > 0, CONCATENATE("No. ", B12, ":"), "") -> No. 2: | C117: =IF(LEN(TRIM(C12)) > 0, TRIM(C12), "") -> Stage 1A. Establish in quarantine glasshouse (Stem Cuttings)
B119: Steps | C119: Particulars | E119: Timeline (e.g. 30) | F119: Time Unit (e.g. Minutes) | I119: convert time to minutes
B120: 1 | C120: Preparation of quarantine glasshouse area | E120: 2 | F120: Hours | I120: =IFERROR(E120 * VLOOKUP(F120, ChoiceList!$N$2:$Q$10, 4, FALSE), "") -> 120
B121: 2 | C121: Pottingof sterile soil | E121: 200 | F121: Minutes | I121: =IFERROR(E121 * VLOOKUP(F121, ChoiceList!$N$2:$Q$10, 4, FALSE), "") -> 200
B122: 3 | C122: Transport vine cuttings from sample reception area to glasshouse | E122: 5 | F122: Minutes | I122: =IFERROR(E122 * VLOOKUP(F122, ChoiceList!$N$2:$Q$10, 4, FALSE), "") -> 5
B123: 4 | C123: Inspect, trim, treat and label vine cuttings | E123: 200 | F123: Minutes | I123: =IFERROR(E123 * VLOOKUP(F123, ChoiceList!$N$2:$Q$10, 4, FALSE), "") -> 200
B124: 5 | C124: Acclimatizing and rejuvenating vine cuttings | E124: 24 | F124: Hours | I124: =IFERROR(E124 * VLOOKUP(F124, ChoiceList!$N$2:$Q$10, 4, FALSE), "") -> 1440
B125: 6 | C125: Planting vine cuttings in sterile soil and labelling pot | E125: 200 | F125: Minutes | I125: =IFERROR(E125 * VLOOKUP(F125, ChoiceList!$N$2:$Q$10, 4, FALSE), "") -> 200
B126: 7 | C126: Humidity doming ( Cover with a transparent polythene sheet) | E126: 7 | F126: Days | I126: =IFERROR(E126 * VLOOKUP(F126, ChoiceList!$N$2:$Q$10, 4, FALSE), "") -> 3360
B127: 8 | C127: Spraying insecticides and Foliar fertilizer (Twice a week for 8 weeks) | E127: 800 | F127: Minutes | I127: =IFERROR(E127 * VLOOKUP(F127, ChoiceList!$N$2:$Q$10, 4, FALSE), "") -> 800
B128: 9 | C128: Watering (Three times a week for 8 weeks) | E128: 1200 | F128: Minutes | I128: =IFERROR(E128 * VLOOKUP(F128, ChoiceList!$N$2:$Q$10, 4, FALSE), "") -> 1200
B129: 10 | C129: Glasshouse maintenance (Weeding, cleaning, structural inspections etc) | E129: 240 | F129: Hours | I129: =IFERROR(E129 * VLOOKUP(F129, ChoiceList!$N$2:$Q$10, 4, FALSE), "") -> 14400
B130: 11 | C130: Record keeping and scoring (Once a week for 8 weeks) | E130: 800 | F130: Minutes | I130: =IFERROR(E130 * VLOOKUP(F130, ChoiceList!$N$2:$Q$10, 4, FALSE), "") -> 800
B131: 12 | I131: =IFERROR(E131 * VLOOKUP(F131, ChoiceList!$N$2:$Q$10, 4, FALSE), "") -> 
B132: 13 | I132: =IFERROR(E132 * VLOOKUP(F132, ChoiceList!$N$2:$Q$10, 4, FALSE), "") -> 
B133: 14 | I133: =IFERROR(E133 * VLOOKUP(F133, ChoiceList!$N$2:$Q$10, 4, FALSE), "") -> 
B134: 15 | I134: =IFERROR(E134 * VLOOKUP(F134, ChoiceList!$N$2:$Q$10, 4, FALSE), "") -> 
B135: 16 | I135: =IFERROR(E135 * VLOOKUP(F135, ChoiceList!$N$2:$Q$10, 4, FALSE), "") -> 
B136: 17 | I136: =IFERROR(E136 * VLOOKUP(F136, ChoiceList!$N$2:$Q$10, 4, FALSE), "") -> 
B137: 18 | I137: =IFERROR(E137 * VLOOKUP(F137, ChoiceList!$N$2:$Q$10, 4, FALSE), "") -> 
B138: 19 | I138: =IFERROR(E138 * VLOOKUP(F138, ChoiceList!$N$2:$Q$10, 4, FALSE), "") -> 
B139: 20 | I139: =IFERROR(E139 * VLOOKUP(F139, ChoiceList!$N$2:$Q$10, 4, FALSE), "") -> 
D140: Total Duration | E140: =IF(I140 < ChoiceList!$Q$5, CONCATENATE(I140, " ", ChoiceList!$N$4), IF(I140 < ChoiceList!$Q$6, CONCATENATE(ROUNDDOWN(I140/ChoiceList!$Q$5, 0), " ", ChoiceList!$N$5), IF(I140 < ChoiceList!$Q$7, CONCATENATE(ROUNDDOWN(I140/ChoiceList!$Q$6, 1), " ", ChoiceList!$N$6), IF(I140 < ChoiceList!$Q$8, CONCATENATE(ROUNDDOWN(I140/ChoiceList!$Q$7, 1), " ", ChoiceList!$N$7), IF(I140 < ChoiceList!$Q$9, CONCATENATE(ROUNDDOWN(I140/ChoiceList!$Q$8, 1), " ", ChoiceList!$N$8), IF(I140 < ChoiceList!$Q$10, CONCATENATE(ROUNDDOWN(I140/ChoiceList!$Q$9, 1), " ", ChoiceList!$N$9), "")))))) -> 2.3 Months | I140: =SUM(I120:I139) -> 22725
B144: =IF(LEN(TRIM(B13)) > 0, CONCATENATE("No. ", B13, ":"), "") -> No. 3: | C144: =IF(LEN(TRIM(C13)) > 0, TRIM(C13), "") -> Stage 1B: Establish in post entry quarantine growthroom
B146: Steps | C146: Particulars | E146: Timeline (e.g. 30) | F146: Time Unit (e.g. Minutes) | I146: convert time to minutes
B147: 1 | C147: Transfer invitros and jars into growthroom | E147: 3 | F147: Minutes | I147: =IFERROR(E147 * VLOOKUP(F147, ChoiceList!$N$2:$Q$10, 4, FALSE), "") -> 3
B148: 2 | C148: Monitoring for fungal infections | E148: 4 | F148: Days | I148: =IFERROR(E148 * VLOOKUP(F148, ChoiceList!$N$2:$Q$10, 4, FALSE), "") -> 1920
B149: 3 | C149: Bacterial contamination screening | E149: 3 | F149: Days | I149: =IFERROR(E149 * VLOOKUP(F149, ChoiceList!$N$2:$Q$10, 4, FALSE), "") -> 1440
B150: 4 | C150: Cleaning of growthroom | E150: 8 | F150: Days | I150: =IFERROR(E150 * VLOOKUP(F150, ChoiceList!$N$2:$Q$10, 4, FALSE), "") -> 3840
B151: 5 | C151: Monitoring and maintenance | E151: 8 | F151: Days | I151: =IFERROR(E151 * VLOOKUP(F151, ChoiceList!$N$2:$Q$10, 4, FALSE), "") -> 3840
B152: 6 | I152: =IFERROR(E152 * VLOOKUP(F152, ChoiceList!$N$2:$Q$10, 4, FALSE), "") -> 
B153: 7 | I153: =IFERROR(E153 * VLOOKUP(F153, ChoiceList!$N$2:$Q$10, 4, FALSE), "") -> 
B154: 8 | I154: =IFERROR(E154 * VLOOKUP(F154, ChoiceList!$N$2:$Q$10, 4, FALSE), "") -> 
B155: 9 | I155: =IFERROR(E155 * VLOOKUP(F155, ChoiceList!$N$2:$Q$10, 4, FALSE), "") -> 
B156: 10 | I156: =IFERROR(E156 * VLOOKUP(F156, ChoiceList!$N$2:$Q$10, 4, FALSE), "") -> 
B157: 11 | I157: =IFERROR(E157 * VLOOKUP(F157, ChoiceList!$N$2:$Q$10, 4, FALSE), "") -> 
B158: 12 | I158: =IFERROR(E158 * VLOOKUP(F158, ChoiceList!$N$2:$Q$10, 4, FALSE), "") -> 
B159: 13 | I159: =IFERROR(E159 * VLOOKUP(F159, ChoiceList!$N$2:$Q$10, 4, FALSE), "") -> 
B160: 14 | I160: =IFERROR(E160 * VLOOKUP(F160, ChoiceList!$N$2:$Q$10, 4, FALSE), "") -> 
B161: 15 | I161: =IFERROR(E161 * VLOOKUP(F161, ChoiceList!$N$2:$Q$10, 4, FALSE), "") -> 
B162: 16 | I162: =IFERROR(E162 * VLOOKUP(F162, ChoiceList!$N$2:$Q$10, 4, FALSE), "") -> 
B163: 17 | I163: =IFERROR(E163 * VLOOKUP(F163, ChoiceList!$N$2:$Q$10, 4, FALSE), "") -> 
B164: 18 | I164: =IFERROR(E164 * VLOOKUP(F164, ChoiceList!$N$2:$Q$10, 4, FALSE), "") -> 
B165: 19 | I165: =IFERROR(E165 * VLOOKUP(F165, ChoiceList!$N$2:$Q$10, 4, FALSE), "") -> 
B166: 20 | I166: =IFERROR(E166 * VLOOKUP(F166, ChoiceList!$N$2:$Q$10, 4, FALSE), "") -> 
D167: Total Duration | E167: =IF(I167 < ChoiceList!$Q$5, CONCATENATE(I167, " ", ChoiceList!$N$4), IF(I167 < ChoiceList!$Q$6, CONCATENATE(ROUNDDOWN(I167/ChoiceList!$Q$5, 0), " ", ChoiceList!$N$5), IF(I167 < ChoiceList!$Q$7, CONCATENATE(ROUNDDOWN(I167/ChoiceList!$Q$6, 1), " ", ChoiceList!$N$6), IF(I167 < ChoiceList!$Q$8, CONCATENATE(ROUNDDOWN(I167/ChoiceList!$Q$7, 1), " ", ChoiceList!$N$7), IF(I167 < ChoiceList!$Q$9, CONCATENATE(ROUNDDOWN(I167/ChoiceList!$Q$8, 1), " ", ChoiceList!$N$8), IF(I167 < ChoiceList!$Q$10, CONCATENATE(ROUNDDOWN(I167/ChoiceList!$Q$9, 1), " ", ChoiceList!$N$9), "")))))) -> 1.1 Months | I167: =SUM(I147:I166) -> 11043
B171: =IF(LEN(TRIM(B14)) > 0, CONCATENATE("No. ", B14, ":"), "") -> No. 4: | C171: =IF(LEN(TRIM(C14)) > 0, TRIM(C14), "") -> Stage 1C: Hardening Invitro Plantlet (Quarantine Glasshouse)
B173: Steps | C173: Particulars | E173: Timeline (e.g. 30) | F173: Time Unit (e.g. Minutes) | I173: convert time to minutes
B174: 1 | C174: Preparation of hardening glasshouse area | E174: 2 | F174: Hours | I174: =IFERROR(E174 * VLOOKUP(F174, ChoiceList!$N$2:$Q$10, 4, FALSE), "") -> 120
B175: 2 | C175: Potting of sterile soil | E175: 200 | F175: Minutes | I175: =IFERROR(E175 * VLOOKUP(F175, ChoiceList!$N$2:$Q$10, 4, FALSE), "") -> 200
B176: 3 | C176: Transport invitro plantlets from Tissue culture lab to glasshouse | E176: 5 | F176: Minutes | I176: =IFERROR(E176 * VLOOKUP(F176, ChoiceList!$N$2:$Q$10, 4, FALSE), "") -> 5
B177: 4 | C177: Invitro hardening-off of plantlets in glasshouse reception area | E177: 3 | F177: Days | I177: =IFERROR(E177 * VLOOKUP(F177, ChoiceList!$N$2:$Q$10, 4, FALSE), "") -> 1440
B178: 5 | C178: Transfer plantlets from invitro to invivo conditions and labelling (Planting) | E178: 1000 | F178: Minutes | I178: =IFERROR(E178 * VLOOKUP(F178, ChoiceList!$N$2:$Q$10, 4, FALSE), "") -> 1000
B179: 6 | C179: Humidity doming (Cover with a transparent polythene covering sheet) | E179: 7 | F179: Days | I179: =IFERROR(E179 * VLOOKUP(F179, ChoiceList!$N$2:$Q$10, 4, FALSE), "") -> 3360
B180: 7 | C180: Spraying insecticides and Foliar fertilizer (Twice a week) | E180: 200 | F180: Minutes | I180: =IFERROR(E180 * VLOOKUP(F180, ChoiceList!$N$2:$Q$10, 4, FALSE), "") -> 200
B181: 8 | C181: Watering (Three times a week) | E181: 300 | F181: Minutes | I181: =IFERROR(E181 * VLOOKUP(F181, ChoiceList!$N$2:$Q$10, 4, FALSE), "") -> 300
B182: 9 | C182: Greenhouse maintenance (weeding, cleaning structural inspections etc.) Once a week | E182: 1 | F182: Hours | I182: =IFERROR(E182 * VLOOKUP(F182, ChoiceList!$N$2:$Q$10, 4, FALSE), "") -> 60
B183: 10 | C183: Record keeping and scoring (Once a week) | E183: 200 | F183: Minutes | I183: =IFERROR(E183 * VLOOKUP(F183, ChoiceList!$N$2:$Q$10, 4, FALSE), "") -> 200
B184: 11 | I184: =IFERROR(E184 * VLOOKUP(F184, ChoiceList!$N$2:$Q$10, 4, FALSE), "") -> 
B185: 12 | I185: =IFERROR(E185 * VLOOKUP(F185, ChoiceList!$N$2:$Q$10, 4, FALSE), "") -> 
B186: 13 | I186: =IFERROR(E186 * VLOOKUP(F186, ChoiceList!$N$2:$Q$10, 4, FALSE), "") -> 
B187: 14 | I187: =IFERROR(E187 * VLOOKUP(F187, ChoiceList!$N$2:$Q$10, 4, FALSE), "") -> 
B188: 15 | I188: =IFERROR(E188 * VLOOKUP(F188, ChoiceList!$N$2:$Q$10, 4, FALSE), "") -> 
B189: 16 | I189: =IFERROR(E189 * VLOOKUP(F189, ChoiceList!$N$2:$Q$10, 4, FALSE), "") -> 
B190: 17 | I190: =IFERROR(E190 * VLOOKUP(F190, ChoiceList!$N$2:$Q$10, 4, FALSE), "") -> 
B191: 18 | I191: =IFERROR(E191 * VLOOKUP(F191, ChoiceList!$N$2:$Q$10, 4, FALSE), "") -> 
B192: 19 | I192: =IFERROR(E192 * VLOOKUP(F192, ChoiceList!$N$2:$Q$10, 4, FALSE), "") -> 
B193: 20 | I193: =IFERROR(E193 * VLOOKUP(F193, ChoiceList!$N$2:$Q$10, 4, FALSE), "") -> 
D194: Total Duration | E194: =IF(I194 < ChoiceList!$Q$5, CONCATENATE(I194, " ", ChoiceList!$N$4), IF(I194 < ChoiceList!$Q$6, CONCATENATE(ROUNDDOWN(I194/ChoiceList!$Q$5, 0), " ", ChoiceList!$N$5), IF(I194 < ChoiceList!$Q$7, CONCATENATE(ROUNDDOWN(I194/ChoiceList!$Q$6, 1), " ", ChoiceList!$N$6), IF(I194 < ChoiceList!$Q$8, CONCATENATE(ROUNDDOWN(I194/ChoiceList!$Q$7, 1), " ", ChoiceList!$N$7), IF(I194 < ChoiceList!$Q$9, CONCATENATE(ROUNDDOWN(I194/ChoiceList!$Q$8, 1), " ", ChoiceList!$N$8), IF(I194 < ChoiceList!$Q$10, CONCATENATE(ROUNDDOWN(I194/ChoiceList!$Q$9, 1), " ", ChoiceList!$N$9), "")))))) -> 2.8 Weeks | I194: =SUM(I174:I193) -> 6885
B198: =IF(LEN(TRIM(B15)) > 0, CONCATENATE("No. ", B15, ":"), "") -> No. 5: | C198: =IF(LEN(TRIM(C15)) > 0, TRIM(C15), "") -> Stage 2A.1. Virus indexing by Convectional PCR
B200: Steps | C200: Particulars | E200: Timeline (e.g. 30) | F200: Time Unit (e.g. Minutes) | I200: convert time to minutes
B201: 1 | C201: Sampling in the greenhouse/Lab | E201: 30 | F201: Minutes | I201: =IFERROR(E201 * VLOOKUP(F201, ChoiceList!$N$2:$Q$10, 4, FALSE), "") -> 30
B202: 2 | C202: Nucleic Acid extraction and Quantification | E202: 1 | F202: Hours | I202: =IFERROR(E202 * VLOOKUP(F202, ChoiceList!$N$2:$Q$10, 4, FALSE), "") -> 60
B203: 3 | C203: PCR Amplification - Convectional | E203: 2 | F203: Hours | I203: =IFERROR(E203 * VLOOKUP(F203, ChoiceList!$N$2:$Q$10, 4, FALSE), "") -> 120
B204: 4 | C204: PCR Result Analysis- Convectional | E204: 1.5 | F204: Hours | I204: =IFERROR(E204 * VLOOKUP(F204, ChoiceList!$N$2:$Q$10, 4, FALSE), "") -> 90
B205: 5 | C205: Reporting | E205: 10 | F205: Minutes | I205: =IFERROR(E205 * VLOOKUP(F205, ChoiceList!$N$2:$Q$10, 4, FALSE), "") -> 10
B206: 6 | I206: =IFERROR(E206 * VLOOKUP(F206, ChoiceList!$N$2:$Q$10, 4, FALSE), "") -> 
B207: 7 | I207: =IFERROR(E207 * VLOOKUP(F207, ChoiceList!$N$2:$Q$10, 4, FALSE), "") -> 
B208: 8 | I208: =IFERROR(E208 * VLOOKUP(F208, ChoiceList!$N$2:$Q$10, 4, FALSE), "") -> 
B209: 9 | I209: =IFERROR(E209 * VLOOKUP(F209, ChoiceList!$N$2:$Q$10, 4, FALSE), "") -> 
B210: 10 | I210: =IFERROR(E210 * VLOOKUP(F210, ChoiceList!$N$2:$Q$10, 4, FALSE), "") -> 
B211: 11 | I211: =IFERROR(E211 * VLOOKUP(F211, ChoiceList!$N$2:$Q$10, 4, FALSE), "") -> 
B212: 12 | I212: =IFERROR(E212 * VLOOKUP(F212, ChoiceList!$N$2:$Q$10, 4, FALSE), "") -> 
B213: 13 | I213: =IFERROR(E213 * VLOOKUP(F213, ChoiceList!$N$2:$Q$10, 4, FALSE), "") -> 
B214: 14 | I214: =IFERROR(E214 * VLOOKUP(F214, ChoiceList!$N$2:$Q$10, 4, FALSE), "") -> 
B215: 15 | I215: =IFERROR(E215 * VLOOKUP(F215, ChoiceList!$N$2:$Q$10, 4, FALSE), "") -> 
B216: 16 | I216: =IFERROR(E216 * VLOOKUP(F216, ChoiceList!$N$2:$Q$10, 4, FALSE), "") -> 
B217: 17 | I217: =IFERROR(E217 * VLOOKUP(F217, ChoiceList!$N$2:$Q$10, 4, FALSE), "") -> 
B218: 18 | I218: =IFERROR(E218 * VLOOKUP(F218, ChoiceList!$N$2:$Q$10, 4, FALSE), "") -> 
B219: 19 | I219: =IFERROR(E219 * VLOOKUP(F219, ChoiceList!$N$2:$Q$10, 4, FALSE), "") -> 
B220: 20 | I220: =IFERROR(E220 * VLOOKUP(F220, ChoiceList!$N$2:$Q$10, 4, FALSE), "") -> 
D221: Total Duration | E221: =IF(I221 < ChoiceList!$Q$5, CONCATENATE(I221, " ", ChoiceList!$N$4), IF(I221 < ChoiceList!$Q$6, CONCATENATE(ROUNDDOWN(I221/ChoiceList!$Q$5, 0), " ", ChoiceList!$N$5), IF(I221 < ChoiceList!$Q$7, CONCATENATE(ROUNDDOWN(I221/ChoiceList!$Q$6, 1), " ", ChoiceList!$N$6), IF(I221 < ChoiceList!$Q$8, CONCATENATE(ROUNDDOWN(I221/ChoiceList!$Q$7, 1), " ", ChoiceList!$N$7), IF(I221 < ChoiceList!$Q$9, CONCATENATE(ROUNDDOWN(I221/ChoiceList!$Q$8, 1), " ", ChoiceList!$N$8), IF(I221 < ChoiceList!$Q$10, CONCATENATE(ROUNDDOWN(I221/ChoiceList!$Q$9, 1), " ", ChoiceList!$N$9), "")))))) -> 5 Hours | I221: =SUM(I201:I220) -> 310
B225: =IF(LEN(TRIM(B16)) > 0, CONCATENATE("No. ", B16, ":"), "") -> No. 6: | C225: =IF(LEN(TRIM(C16)) > 0, TRIM(C16), "") -> Stage 2A.2. Virus indexing by Real time PCR
B227: Steps | C227: Particulars | E227: Timeline (e.g. 30) | F227: Time Unit (e.g. Minutes) | I227: convert time to minutes
B228: 1 | C228: Sampling in the greenhouse/Lab | E228: 30 | F228: Minutes | I228: =IFERROR(E228 * VLOOKUP(F228, ChoiceList!$N$2:$Q$10, 4, FALSE), "") -> 30
B229: 2 | C229: Nucleic Acid extraction and Quantification | E229: 1 | F229: Hours | I229: =IFERROR(E229 * VLOOKUP(F229, ChoiceList!$N$2:$Q$10, 4, FALSE), "") -> 60
B230: 3 | C230: PCR Amplification - Real Time | E230: 2 | F230: Hours | I230: =IFERROR(E230 * VLOOKUP(F230, ChoiceList!$N$2:$Q$10, 4, FALSE), "") -> 120
B231: 4 | C231: PCR Result Analysis- Real Time | E231: 15 | F231: Minutes | I231: =IFERROR(E231 * VLOOKUP(F231, ChoiceList!$N$2:$Q$10, 4, FALSE), "") -> 15
B232: 5 | C232: Reporting | E232: 10 | F232: Minutes | I232: =IFERROR(E232 * VLOOKUP(F232, ChoiceList!$N$2:$Q$10, 4, FALSE), "") -> 10
B233: 6 | I233: =IFERROR(E233 * VLOOKUP(F233, ChoiceList!$N$2:$Q$10, 4, FALSE), "") -> 
B234: 7 | I234: =IFERROR(E234 * VLOOKUP(F234, ChoiceList!$N$2:$Q$10, 4, FALSE), "") -> 
B235: 8 | I235: =IFERROR(E235 * VLOOKUP(F235, ChoiceList!$N$2:$Q$10, 4, FALSE), "") -> 
B236: 9 | I236: =IFERROR(E236 * VLOOKUP(F236, ChoiceList!$N$2:$Q$10, 4, FALSE), "") -> 
B237: 10 | I237: =IFERROR(E237 * VLOOKUP(F237, ChoiceList!$N$2:$Q$10, 4, FALSE), "") -> 
B238: 11 | I238: =IFERROR(E238 * VLOOKUP(F238, ChoiceList!$N$2:$Q$10, 4, FALSE), "") -> 
B239: 12 | I239: =IFERROR(E239 * VLOOKUP(F239, ChoiceList!$N$2:$Q$10, 4, FALSE), "") -> 
B240: 13 | I240: =IFERROR(E240 * VLOOKUP(F240, ChoiceList!$N$2:$Q$10, 4, FALSE), "") -> 
B241: 14 | I241: =IFERROR(E241 * VLOOKUP(F241, ChoiceList!$N$2:$Q$10, 4, FALSE), "") -> 
B242: 15 | I242: =IFERROR(E242 * VLOOKUP(F242, ChoiceList!$N$2:$Q$10, 4, FALSE), "") -> 
B243: 16 | I243: =IFERROR(E243 * VLOOKUP(F243, ChoiceList!$N$2:$Q$10, 4, FALSE), "") -> 
B244: 17 | I244: =IFERROR(E244 * VLOOKUP(F244, ChoiceList!$N$2:$Q$10, 4, FALSE), "") -> 
B245: 18 | I245: =IFERROR(E245 * VLOOKUP(F245, ChoiceList!$N$2:$Q$10, 4, FALSE), "") -> 
... 440 more rows

Sheet Consumables_Inputs
B2: FINANCIAL MANAGEMENT- VARIABLE COSTS
E5: Input | J5: Output
B6: Stage No | C6: Stage Name | D6: Step reference | E6: Consumable/Inputs | F6: Category | G6: No of units | H6: Unit Name | I6: Price per unit | J6: For how many units | K6: Unit Name | L6: Remarks (if any) | M6: Unit cost | N6: Total cost
C7: Stage 0. Sample reception and entry into database | D7: 2 | E7: Printing Paper | F7: Consumables | G7: 1 | H7: Ream | I7: 2000 | J7: 756 | K7: Plants | L7: 1 ream used monthly | M7: =IFERROR(N7/J7, "") -> 2.645502646 | N7: =IFERROR(G7*I7, "") -> 2000
C8: Stage 0. Sample reception and entry into database | D8: 3 | E8: Barcode Labels | F8: Consumables | H8: Roll | J8: 756 | K8: Plants | M8: =IFERROR(N8/J8, "") -> 0 | N8: =IFERROR(G8*I8, "") -> 0
C9: Stage 0. Sample reception and entry into database | D9: 2 | E9: Staples | F9: Maintenance/ supplies | G9: 1 | H9: Pkt | I9: 600 | J9: 756 | K9: Plants | L9: 1 pkt is used monthly | M9: 0.7936507937 | N9: 600
C10: Stage 0. Sample reception and entry into database | D10: 2 | E10: Box files | F10: Consumables | G10: 1 | H10: Pc | I10: 1600 | J10: 756 | K10: Plants | L10: 1 boxfile is used per month | M10: 2.116402116 | N10: 1600
C11: Stage 0. Sample reception and entry into database | D11: 2 | E11: Printer cartridge | F11: Consumables | G11: 0.3 | H11: pc | I11: 3340 | J11: 756 | K11: Plants | L11: 1/3 cartridge is used per month, 1 cartridge is Ksh 10,000 | M11: 1.325396825 | N11: 1002
C12: Stage 0. Sample reception and entry into database | D12: 4 | E12: Pen | F12: Consumables | G12: 1 | H12: pc | I12: 20 | J12: 756 | K12: Plants | L12: 1 pen is used per month, cost of 1 pen is Ksh 20 | M12: 0.02645502646 | N12: 20
C13: Stage 0. Sample reception and entry into database | D13: 4 | E13: 4 Quire counter book | F13: Consumables | G13: 0.3 | H13: pc | I13: 134 | J13: 756 | K13: Plants | L13: 0.3 book used per month, cost of 1 unit is Ksh 400 | M13: 0.05317460317 | N13: 40.2
C14: Stage 0. Sample reception and entry into database | D14: 1 | E14: Hand gloves | F14: Consumables | G14: 2 | H14: pkt | I14: 3000 | J14: 756 | K14: Plants | L14: 2 pkts used per month, 1 pkt is 1500 | M14: 7.936507937 | N14: 6000
N15: 0
B16: 1 | C16: Stage 1A. Establish in quarantine glasshouse (Stem Cuttings) | D16: 4 | E16: Barcode Labels (Self Adhesive) | F16: Raw materials | G16: 400 | H16: Labels | I16: 0.3 | J16: 200 | K16: Plants | L16: 1 roll of 5,000 labels | M16: 0.6 | N16: 120
B17: 2 | C17: Stage 1A. Establish in quarantine glasshouse (Stem Cuttings) | D17: 11 | E17: Counter book (4 Quire) | F17: Raw materials | G17: 1 | H17: Piece | I17: 400 | J17: 200 | K17: Plants | M17: 2 | N17: 400
B18: 3 | C18: Stage 1A. Establish in quarantine glasshouse (Stem Cuttings) | D18: 1,2,3, 4,5,6, 7,8 | E18: Disposable nitrile Gloves | F18: Energy/ Utilities | G18: 4 | H18: Pair | I18: 50 | J18: 200 | K18: Plants | M18: 1 | N18: 200
B19: 4 | C19: Stage 1A. Establish in quarantine glasshouse (Stem Cuttings) | D19: 4 | E19: Ethanol | F19: Energy/ Utilities | G19: 700 | H19: Ml | I19: 4.4 | J19: 200 | K19: Plants | L19: To make 1 liter of 70% Ethanol | M19: 15.4 | N19: 3080
C20: Stage 1A. Establish in quarantine glasshouse (Stem Cuttings) | D20: 8 | E20: Insecticide (Dynamec) | F20: Miscellaneous | G20: 20 | H20: Ml | I20: 10 | J20: 200 | K20: Plants | M20: 1 | N20: 200
C21: Stage 1A. Establish in quarantine glasshouse (Stem Cuttings) | D21: 1 | E21: Jik Bleach (Disinfectant) | F21: Miscellaneous | G21: 10 | H21: Ml | I21: 0.4 | J21: 200 | K21: Plants | M21: 0.02 | N21: 4
C22: Stage 1A. Establish in quarantine glasshouse (Stem Cuttings) | D22: 1 | E22: Kerol | G22: 100 | H22: Ml | I22: 1.5 | J22: 200 | K22: Plants | M22: 0.75 | N22: 150
C23: Stage 1A. Establish in quarantine glasshouse (Stem Cuttings) | D23: 1 | E23: Liquid soap detergent | G23: 20 | H23: Ml | I23: 0.15 | J23: 200 | K23: Plants | M23: 0.015 | N23: 3
C24: Stage 1A. Establish in quarantine glasshouse (Stem Cuttings) | D24: 11 | E24: Pen | G24: 1 | H24: Piece | I24: 30 | J24: 200 | K24: Plants | M24: 0.15 | N24: 30
C25: Stage 1A. Establish in quarantine glasshouse (Stem Cuttings) | D25: 11 | E25: Pencil | G25: 1 | H25: Piece | I25: 50 | J25: 200 | K25: Plants | M25: 0.25 | N25: 50
C26: Stage 1A. Establish in quarantine glasshouse (Stem Cuttings) | D26: 4 | E26: Sterile Scapel blades (Size 24) | G26: 20 | H26: Blade | I26: 8 | J26: 200 | K26: Plants | M26: 0.8 | N26: 160
C27: Stage 1A. Establish in quarantine glasshouse (Stem Cuttings) | D27: 2 | E27: Sterile soil compost mix (3:2:1) Loam, manure, gravel | G27: 200 | H27: Kg | I27: 20 | J27: 200 | K27: Plants | M27: 20 | N27: 4000
N28: 0
C29: Stage 1B: Establish in post entry quarantine growthroom | D29: 1 | E29: Gloves | G29: 1 | H29: Pcs | I29: 50 | J29: 36 | K29: Plants | L29: 36 invitros | M29: 1.388888889 | N29: 50
C30: Stage 1B: Establish in post entry quarantine growthroom | D30: 2,3,4,5 | E30: Jik | G30: 1 | H30: litres | I30: 400 | J30: 2000 | K30: Plants | L30: 1 litre montly, 2000 invitros capacity room | M30: 0.2 | N30: 400
C31: Stage 1B: Establish in post entry quarantine growthroom | D31: 1,2,3,4,5 | E31: Ethanol | G31: 1 | H31: litres | I31: 308 | J31: 2000 | K31: Plants | L31: 1 litre montly, 2000 invitros capacity room | M31: 0.154 | N31: 308
C32: Stage 1B: Establish in post entry quarantine growthroom | D32: 3 | E32: Nutrient broth agar | G32: 2 | H32: gms | I32: 45 | J32: 1 | K32: Plants | L32: 1 plant | M32: 90 | N32: 90
C33: Stage 1B: Establish in post entry quarantine growthroom | D33: 3 | E33: Blades | G33: 2 | H33: Pcs | I33: 8 | J33: 1 | K33: Plants | L33: 1 explant | M33: 16 | N33: 16
C34: Stage 1B: Establish in post entry quarantine growthroom | D34: 3 | E34: Petridish | G34: 1 | H34: pcs | I34: 200 | J34: 36 | K34: Plants | L34: 1 pkt disposal for 36 samples | M34: 5.555555556 | N34: 200
C35: Stage 1B: Establish in post entry quarantine growthroom | D35: 2,3,4,5 | E35: Liquid soap | G35: 1 | H35: litres | I35: 300 | J35: 2000 | K35: Plants | L35: 1 litre montly, 2000 invitros capacity room | M35: 0.15 | N35: 300
C36: Stage 1B: Establish in post entry quarantine growthroom | D36: 3 | E36: Labels | G36: 1 | H36: Pcs | I36: 50 | J36: 36 | K36: Plants | L36: 1 pkt for 36 samples | M36: 1.388888889 | N36: 50
C37: Stage 1B: Establish in post entry quarantine growthroom | D37: 1 | E37: Book | G37: 1 | H37: Pcs | I37: 1 | J37: 36 | K37: Plants | M37: 0.02777777778 | N37: 1
C38: Stage 1B: Establish in post entry quarantine growthroom | D38: 1,3 | E38: Marker pen | G38: 1 | H38: Pcs | I38: 100 | J38: 36 | K38: Plants | M38: 2.777777778 | N38: 100
C39: Stage 1B: Establish in post entry quarantine growthroom | D39: 2,3,4,5 | E39: Dettol | G39: 1 | H39: litres | I39: 2000 | J39: 2000 | K39: Plants | L39: 1 litre montly, 2000 invitros capacity | M39: 1 | N39: 2000
N40: 0
C41: Stage 1C: Hardening Invitro Plantlet (Quarantine Glasshouse) | D41: 5 | E41: Barcode Labels (Self Adhesive) | G41: 200 | H41: Labels | I41: 0.3 | J41: 200 | K41: Plants | L41: 1 roll has 5,000 labels | M41: 0.3 | N41: 60
C42: Stage 1C: Hardening Invitro Plantlet (Quarantine Glasshouse) | D42: 10 | E42: Counter book (4 Quire) | G42: 1 | H42: Piece | I42: 400 | J42: 200 | K42: Plants | M42: 2 | N42: 400
C43: Stage 1C: Hardening Invitro Plantlet (Quarantine Glasshouse) | D43: 1,2,3,4,5,6,7,9 | E43: Disposable nitrile Gloves | G43: 4 | H43: Pair | I43: 50 | J43: 200 | K43: Plants | M43: 1 | N43: 200
C44: Stage 1C: Hardening Invitro Plantlet (Quarantine Glasshouse) | D44: 5 | E44: Ethanol | G44: 700 | H44: Ml | I44: 4.4 | J44: 200 | K44: Plants | L44: To make 1 liter of 70% Ethanol | M44: 15.4 | N44: 3080
C45: Stage 1C: Hardening Invitro Plantlet (Quarantine Glasshouse) | D45: 5 | E45: Fungicide (Milraz) | G45: 20 | H45: Grams | I45: 8 | J45: 200 | K45: Plants | M45: 0.8 | N45: 160
C46: Stage 1C: Hardening Invitro Plantlet (Quarantine Glasshouse) | D46: 7 | E46: Insecticide (Dynamec) | G46: 20 | H46: Ml | I46: 10 | J46: 200 | K46: Plants | M46: 1 | N46: 200
C47: Stage 1C: Hardening Invitro Plantlet (Quarantine Glasshouse) | D47: 1 | E47: Jik Bleach (Disinfectant) | G47: 10 | H47: Ml | I47: 0.4 | J47: 200 | K47: Plants | M47: 0.02 | N47: 4
C48: Stage 1C: Hardening Invitro Plantlet (Quarantine Glasshouse) | D48: 1 | E48: Kerol | G48: 100 | H48: Ml | I48: 1.5 | J48: 200 | K48: Plants | M48: 0.75 | N48: 150
C49: Stage 1C: Hardening Invitro Plantlet (Quarantine Glasshouse) | D49: 1 | E49: Liquid soap detergent | G49: 20 | H49: Ml | I49: 0.15 | J49: 200 | K49: Plants | M49: 0.015 | N49: 3
C50: Stage 1C: Hardening Invitro Plantlet (Quarantine Glasshouse) | D50: 10 | E50: Pen | G50: 1 | H50: Piece | I50: 30 | J50: 200 | K50: Plants | M50: 0.15 | N50: 30
C51: Stage 1C: Hardening Invitro Plantlet (Quarantine Glasshouse) | D51: 10 | E51: Pencil | G51: 1 | H51: Piece | I51: 50 | J51: 200 | K51: Plants | M51: 0.25 | N51: 50
C52: Stage 1C: Hardening Invitro Plantlet (Quarantine Glasshouse) | D52: 5 | E52: Serviettes | G52: 20 | H52: Sheet | I52: 1.5 | J52: 200 | K52: Plants | L52: A pack of 100 pieces | M52: 0.15 | N52: 30
C53: Stage 1C: Hardening Invitro Plantlet (Quarantine Glasshouse) | D53: 5 | E53: Sterile Scapel blades (Size 24) | G53: 20 | H53: Blade | I53: 8 | J53: 200 | K53: Plants | M53: 0.8 | N53: 160
C54: Stage 1C: Hardening Invitro Plantlet (Quarantine Glasshouse) | D54: 2 | E54: Sterile soil compost mix (3:2:1) Loam, manure, gravel | G54: 100 | H54: Kg | I54: 20 | J54: 200 | K54: Plants | M54: 10 | N54: 2000
N55: 0
C56: Stage 2A.1. Virus indexing by Convectional PCR | D56: 1 | E56: Labels (Self adhesive, Hand written)(5.1*2.5cm, 96 pieces) | G56: 1 | H56: Roll | I56: 50 | J56: 1 | K56: Samples | L56: Sampling in the greenhouse/Lab (for PCR); A roll has 96 labels sufficient for 96 labels | M56: 50 | N56: 50
C57: Stage 2A.1. Virus indexing by Convectional PCR | D57: 1,2,3, 6,8,9 | E57: Book | H57: pcs | J57: 1 | K57: Samples | L57: Sampling in the greenhouse/Lab (for PCR); one book to records samples collected from green house. The others to be one in virology and the other in molecular for daily activity recording. | M57: 0 | N57: 0
C58: Stage 2A.1. Virus indexing by Convectional PCR | D58: 1 | E58: gloves | G58: 1 | H58: pair | I58: 50 | J58: 1 | K58: Samples | L58: Sampling in the greenhouse/Lab (for PCR); | M58: 50 | N58: 50
C59: Stage 2A.1. Virus indexing by Convectional PCR | D59: 1 | E59: Jik | H59: Litres | J59: 100 | K59: Samples | L59: Sampling in the greenhouse/Lab (for PCR); 1 litre montly | M59: 0 | N59: 0
C60: Stage 2A.1. Virus indexing by Convectional PCR | D60: 1 | E60: Sterile Scapel blades (size 24) | G60: 1 | H60: pcs | I60: 8 | J60: 1 | K60: Samples | L60: Sampling in the greenhouse/Lab (for PCR) | M60: 8 | N60: 8
C61: Stage 2A.1. Virus indexing by Convectional PCR | D61: 1 | E61: Sampling bags (Ziplock) | G61: 1 | H61: Pcs | I61: 10 | J61: 1 | K61: Samples | L61: Sampling in the greenhouse/Lab (for PCR) | M61: 10 | N61: 10
C62: Stage 2A.1. Virus indexing by Convectional PCR | D62: 1 | E62: Ethanol | H62: Litres | J62: 1000 | K62: Samples | L62: Sampling in the greenhouse/Lab (for PCR); 2.5 litres montly | M62: 0 | N62: 0
C63: Stage 2A.1. Virus indexing by Convectional PCR | D63: 1 | E63: Marker pens | G63: 1 | H63: Pcs | I63: 100 | J63: 50 | K63: Samples | L63: Sampling in the greenhouse/Lab (for PCR) | M63: 2 | N63: 100
C64: Stage 2A.1. Virus indexing by Convectional PCR | D64: 2 | E64: DNA/RNA extraction kit | G64: 1 | H64: rxn | I64: 500 | J64: 1 | K64: Samples | L64: Nucleic Acid extraction (PCR) | M64: 500 | N64: 500
C65: Stage 2A.1. Virus indexing by Convectional PCR | D65: 2 | E65: Pippet tips | G65: 10 | H65: Pcs | I65: 3 | J65: 5 | K65: Samples | L65: Nucleic Acid extraction (PCR) | M65: 6 | N65: 30
C66: Stage 2A.1. Virus indexing by Convectional PCR | D66: 2 | E66: waste bags | G66: 1 | H66: Pcs | I66: 50 | J66: 500 | K66: Samples | L66: Nucleic Acid extraction (PCR); 4 pcs montly. Used to collect waste | M66: 0.1 | N66: 50
C67: Stage 2A.1. Virus indexing by Convectional PCR | D67: 2 | E67: Serveitte | G67: 1 | H67: Pcs | I67: 2 | J67: 1 | K67: Samples | L67: Nucleic Acid extraction (PCR); 1 pkt | M67: 2 | N67: 2
C68: Stage 2A.1. Virus indexing by Convectional PCR | D68: 2 | E68: Nuclease free water | G68: 1 | H68: mls | I68: 7 | J68: 1 | K68: Samples | L68: Nucleic Acid extraction (PCR) | M68: 7 | N68: 7
C69: Stage 2A.1. Virus indexing by Convectional PCR | E69: Eppendorf tubes | G69: 2 | H69: pcs | I69: 5 | J69: 1 | K69: Samples | L69: Nucleic Acid extraction (PCR) | M69: 10 | N69: 10
C70: Stage 2A.1. Virus indexing by Convectional PCR | D70: 2,3,4,6 | E70: Marker pen | G70: 1 | H70: pcs | I70: 100 | J70: 100 | K70: Samples | L70: Nucleic Acid extraction (PCR); To be used for labeling within the lab for 1 week | M70: 1 | N70: 100
C71: Stage 2A.1. Virus indexing by Convectional PCR | D71: 3 | E71: Master mix | G71: 1 | H71: rxn | I71: 200 | J71: 1 | K71: Samples | L71: PCR Amplification | M71: 200 | N71: 200
C72: Stage 2A.1. Virus indexing by Convectional PCR | D72: 3 | E72: PCR plates/Tubes | G72: 1 | H72: rxn | I72: 5 | J72: 1 | K72: Samples | L72: PCR Amplification | M72: =IFERROR(N72/J72, "") -> 5 | N72: =IFERROR(G72*I72, "") -> 5
C73: Stage 2A.1. Virus indexing by Convectional PCR | D73: 3 | E73: Plate seal | G73: 1 | H73: pcs | I73: 5 | J73: 1 | K73: Samples | L73: PCR Amplification | M73: 5 | N73: 5
C74: Stage 2A.1. Virus indexing by Convectional PCR | D74: 3 | E74: Pippete tips Filtered | G74: 6 | H74: pcs | I74: 10 | J74: 1 | K74: Samples | L74: PCR Amplification; 5 tips used for media prep. Can be used to prepare media to be used for more than 30 down strem activities | M74: 60 | N74: 60
C75: Stage 2A.1. Virus indexing by Convectional PCR | D75: 3 | E75: Primers (forward and Reverse) | G75: 1 | H75: rxn | I75: 20 | J75: 1 | K75: Samples | L75: PCR Amplification | M75: 20 | N75: 20
C76: Stage 2A.1. Virus indexing by Convectional PCR | D76: 3 | E76: Nuclease free water | G76: 1 | H76: mls | I76: 7 | J76: 1 | K76: Samples | L76: PCR Amplification | M76: 7 | N76: 7
C77: Stage 2A.1. Virus indexing by Convectional PCR | D77: 4 | E77: Agarose | G77: 1 | H77: gms | I77: 174 | J77: 20 | K77: Samples | L77: PCR Result Analysis; the 1gm is capable of running more than 20 samples. 8 sh calculated on basis of 20 samples | M77: 8.7 | N77: 174
C78: Stage 2A.1. Virus indexing by Convectional PCR | D78: 4 | E78: TE buffer | G78: 1 | H78: rxn | I78: 20 | J78: 20 | K78: Samples | L78: PCR Result Analysis | M78: 1 | N78: 20
C79: Stage 2A.1. Virus indexing by Convectional PCR | D79: 4 | E79: Loading dye | G79: 1 | H79: rxn | I79: 1 | J79: 20 | K79: Samples | L79: PCR Result Analysis; 250 mls montly | M79: 0.05 | N79: 1
C80: Stage 2A.1. Virus indexing by Convectional PCR | D80: 4 | E80: Gel stain | G80: 1 | H80: rxn | I80: 3 | J80: 20 | K80: Samples | L80: PCR Result Analysis | M80: 0.15 | N80: 3
C81: Stage 2A.1. Virus indexing by Convectional PCR | D81: 3 | E81: pippet tips - non filtered | G81: 20 | H81: pcs | I81: 3 | J81: 20 | K81: Samples | L81: PCR Result Analysis; 2 of the tips used for preparation. The two can prepare media for more than 30 samples | M81: 3 | N81: 60
C82: Stage 2A.1. Virus indexing by Convectional PCR | D82: 4 | E82: Ladder | G82: 1 | H82: rxn | I82: 40 | J82: 20 | K82: Samples | L82: PCR Result Analysis | M82: 2 | N82: 40
C83: Stage 2A.1. Virus indexing by Convectional PCR | E83: parafilm | K83: Samples | L83: PCR Result Analysis; 1 roll can be used for 6 months | N83: 0
C84: Stage 2A.1. Virus indexing by Convectional PCR | D84: 5 | E84: Security papers | G84: 1 | H84: per report | I84: 8 | J84: 1 | K84: Diagnostic report | L84: Reporting PCR; A rim of 500 papers cost 4000. A page is 8 Ksh. Total cost depends with number of pages | M84: 8 | N84: 8
C85: Stage 2A.1. Virus indexing by Convectional PCR | D85: 5 | E85: Toner catridge/ result printing | G85: 1 | H85: Pcs | I85: 10 | K85: Diagnostic report | L85: Reporting PCR; Estimated price for printing is 10 sh per page | N85: 10
N86: 0
C87: Stage 2A.2. Virus indexing by Real time PCR | D87: 1 | E87: Labels (Self adhesive, Hand written)(5.1*2.5cm, 96 pieces) | G87: 1 | H87: Roll | I87: 50 | J87: 1 | K87: Samples | L87: Sampling in the greenhouse/Lab (for PCR); A roll has 96 labels sufficient for 96 labels | M87: 50 | N87: 50
C88: Stage 2A.2. Virus indexing by Real time PCR | D88: 1,2,3, 6,8,9 | E88: Book | H88: pcs | J88: 1 | K88: Samples | L88: Sampling in the greenhouse/Lab (for PCR); one book to records samples collected from green house. The others to be one in virology and the other in molecular for daily activity recording. | M88: 0 | N88: 0
C89: Stage 2A.2. Virus indexing by Real time PCR | D89: 1 | E89: gloves | G89: 1 | H89: pair | I89: 50 | J89: 1 | K89: Samples | L89: Sampling in the greenhouse/Lab (for PCR); | M89: 50 | N89: 50
C90: Stage 2A.2. Virus indexing by Real time PCR | D90: 1 | E90: Jik | H90: Litres | J90: 100 | K90: Samples | L90: Sampling in the greenhouse/Lab (for PCR); 1 litre montly | M90: 0 | N90: 0
C91: Stage 2A.2. Virus indexing by Real time PCR | D91: 1 | E91: Sterile Scapel blades (size 24) | G91: 1 | H91: pcs | I91: 8 | J91: 1 | K91: Samples | L91: Sampling in the greenhouse/Lab (for PCR) | M91: 8 | N91: 8
C92: Stage 2A.2. Virus indexing by Real time PCR | D92: 1 | E92: Sampling bags (Ziplock) | G92: 1 | H92: Pcs | I92: 10 | J92: 1 | K92: Samples | L92: Sampling in the greenhouse/Lab (for PCR) | M92: 10 | N92: 10
C93: Stage 2A.2. Virus indexing by Real time PCR | D93: 1 | E93: Ethanol | H93: Litres | J93: 1000 | K93: Samples | L93: Sampling in the greenhouse/Lab (for PCR); 2.5 litres montly | M93: 0 | N93: 0
C94: Stage 2A.2. Virus indexing by Real time PCR | D94: 1 | E94: Marker pens | G94: 1 | H94: Pcs | I94: 100 | J94: 50 | K94: Samples | L94: Sampling in the greenhouse/Lab (for PCR) | M94: 2 | N94: 100
C95: Stage 2A.2. Virus indexing by Real time PCR | D95: 2 | E95: DNA/RNA extraction kit | G95: 1 | H95: rxn | I95: 500 | J95: 1 | K95: Samples | L95: Nucleic Acid extraction (PCR) | M95: 500 | N95: 500
C96: Stage 2A.2. Virus indexing by Real time PCR | D96: 2 | E96: Pippet tips | G96: 10 | H96: Pcs | I96: 3 | J96: 5 | K96: Samples | L96: Nucleic Acid extraction (PCR) | M96: 6 | N96: 30
C97: Stage 2A.2. Virus indexing by Real time PCR | D97: 2 | E97: Waste bags | G97: 1 | H97: Pcs | I97: 50 | J97: 500 | K97: Samples | L97: Nucleic Acid extraction (PCR); 4 pcs montly. Used to collect waste | M97: 0.1 | N97: 50
C98: Stage 2A.2. Virus indexing by Real time PCR | D98: 2 | E98: Serveitte | G98: 1 | H98: Pcs | I98: 2 | J98: 1 | K98: Samples | L98: Nucleic Acid extraction (PCR); 1 pkt | M98: 2 | N98: 2
C99: Stage 2A.2. Virus indexing by Real time PCR | D99: 2 | E99: Nuclease free water | G99: 1 | H99: mls | I99: 7 | J99: 1 | K99: Samples | L99: Nucleic Acid extraction (PCR) | M99: 7 | N99: 7
C100: Stage 2A.2. Virus indexing by Real time PCR | D100: 6 | E100: Primers | G100: 1 | H100: rxn | I100: 20 | J100: 1 | K100: Samples | L100: PCR Amplification | M100: 20 | N100: 20
C101: Stage 2A.2. Virus indexing by Real time PCR | D101: 6 | E101: Probes | G101: 1 | H101: rxn | I101: 35 | J101: 1 | K101: Samples | L101: PCR Amplification | M101: 35 | N101: 35
C102: Stage 2A.2. Virus indexing by Real time PCR | D102: 6 | E102: Master mix | G102: 1 | H102: rxn | I102: 200 | J102: 1 | K102: Samples | L102: PCR Amplification | M102: 200 | N102: 200
C103: Stage 2A.2. Virus indexing by Real time PCR | D103: 6 | E103: Nuclease free water | G103: 1 | H103: pcs | I103: 7 | J103: 1 | K103: Samples | L103: PCR Amplification; 200 mls | M103: 7 | N103: 7
C104: Stage 2A.2. Virus indexing by Real time PCR | D104: 6 | E104: PCR plate | G104: 1 | H104: Pcs | I104: 5 | J104: 1 | K104: Samples | L104: PCR Amplification | M104: 5 | N104: 5
C105: Stage 2A.2. Virus indexing by Real time PCR | D105: 6 | E105: Plate seal | G105: 1 | H105: Pcs | I105: 5 | J105: 1 | K105: Samples | L105: PCR Amplification | M105: 5 | N105: 5
C106: Stage 2A.2. Virus indexing by Real time PCR | D106: 3 | E106: pippet tips-filtered | G106: 7 | H106: pcs | I106: 10 | J106: 1 | K106: Samples | L106: PCR Amplification; 5 tips used for media prep. Can be used to prepare media to be used for more than 30 down strem activities | M106: 70 | N106: 70
N107: 0
C108: Stage 2A.3. Virus indexing by grafting (SETOSA) | D108: 11 | E108: kerrol | G108: 10 | H108: ml | I108: 2.05 | J108: 100 | K108: Plants | M108: 0.205 | N108: 20.5
C109: Stage 2A.3. Virus indexing by grafting (SETOSA) | D109: 11 | E109: Insect traps | G109: 1 | H109: pc | I109: 170 | J109: 50 | K109: Plants | M109: 3.4 | N109: 170
C110: Stage 2A.3. Virus indexing by grafting (SETOSA) | D110: 11 | E110: Sterile Soil | G110: 2 | H110: kg | I110: 20 | J110: 1 | K110: Plants | M110: 40 | N110: 40
C111: Stage 2A.3. Virus indexing by grafting (SETOSA) | D111: 11 | E111: Kerrol | G111: 10 | H111: ml | I111: 2.05 | J111: 100 | K111: Plants | M111: 0.205 | N111: 20.5
C112: Stage 2A.3. Virus indexing by grafting (SETOSA) | D112: 12 | E112: Fertilizer | G112: 5 | H112: gm | I112: 0.97 | J112: 1 | K112: Plants | M112: 4.85 | N112: 4.85
C113: Stage 2A.3. Virus indexing by grafting (SETOSA) | D113: 12 | E113: Pots | G113: 1 | H113: pc | I113: 200 | J113: 1 | K113: Plants | M113: 200 | N113: 200
C114: Stage 2A.3. Virus indexing by grafting (SETOSA) | D114: 12 | E114: detergent | G114: 100 | H114: ml | I114: 0.6 | J114: 100 | K114: Plants | M114: 0.6 | N114: 60
C115: Stage 2A.3. Virus indexing by grafting (SETOSA) | D115: 13 | E115: Parafilm 4" Wide; 250Ft/Roll | G115: 1 | H115: Roll | I115: 7000 | J115: 2000 | K115: Plants | M115: 3.5 | N115: 7000
C116: Stage 2A.3. Virus indexing by grafting (SETOSA) | D116: 12 | E116: Insecticides | G116: 40 | H116: mg | I116: 0.24 | J116: 100 | K116: Plants | M116: 0.096 | N116: 9.6
C117: Stage 2A.3. Virus indexing by grafting (SETOSA) | D117: 13 | E117: Surgical Gloves | G117: 2 | H117: pairs | I117: 48 | J117: 1 | K117: Plants | M117: 96 | N117: 96
C118: Stage 2A.3. Virus indexing by grafting (SETOSA) | D118: 13 | E118: Surgical Blade | G118: 1 | H118: pc | I118: 15.3 | J118: 1 | K118: Plants | M118: 15.3 | N118: 15.3
C119: Stage 2A.3. Virus indexing by grafting (SETOSA) | D119: 12 | E119: clear polythene | G119: 1 | H119: roll | I119: 5000 | J119: 100 | K119: Plants | M119: 50 | N119: 5000
C120: Stage 2A.3. Virus indexing by grafting (SETOSA) | D120: 13 | E120: Sampling bags | G120: 1 | H120: pc | I120: 50 | J120: 1 | K120: Plants | M120: 50 | N120: 50
C121: Stage 2A.3. Virus indexing by grafting (SETOSA) | D121: 13 | E121: labels | G121: 2 | H121: pc | I121: 0.5 | J121: 1 | K121: Plants | M121: 1 | N121: 1
N122: 0
C123: Stage 2A.4. Virus Indexing by ELISA | D123: 1 | E123: gloves | G123: 2 | H123: pair | I123: 50 | J123: 1 | K123: Samples | M123: 100 | N123: 100
C124: Stage 2A.4. Virus Indexing by ELISA | D124: 1 | E124: Jik | H124: Litres | J124: 500 | K124: Samples | L124: 1 litre montly | M124: 0 | N124: 0
C125: Stage 2A.4. Virus Indexing by ELISA | D125: 1 | E125: Blades | G125: 1 | H125: pcs | I125: 8 | J125: 1 | K125: Samples | M125: 8 | N125: 8
C126: Stage 2A.4. Virus Indexing by ELISA | D126: 1 | E126: sampling bags | G126: 2 | H126: Pcs | I126: 10 | J126: 1 | K126: Samples | M126: 20 | N126: 20
C127: Stage 2A.4. Virus Indexing by ELISA | D127: 1 | E127: Ethanol | H127: Litres | J127: 500 | K127: Samples | L127: 2.5 litres montly | M127: 0 | N127: 0
C128: Stage 2A.4. Virus Indexing by ELISA | D128: 1 | E128: Marker pens | G128: 1 | H128: Pcs | I128: 100 | J128: 1 | K128: Samples | M128: 100 | N128: 100
C129: Stage 2A.4. Virus Indexing by ELISA | D129: 8 | E129: ELISA Kits- sweet potato | G129: 1 | H129: rxn | I129: 1000 | J129: 96 | K129: Samples | L129: Extraction and sample prep, different kit is used for irish potato | M129: 10.41666667 | N129: 1000
C130: Stage 2A.4. Virus Indexing by ELISA | D130: 8,9 | E130: Serviets | J130: 96 | K130: Samples | L130: Extraction and sample prep, Serology and result interpretation | M130: 0 | N130: 0
C131: Stage 2A.4. Virus Indexing by ELISA | D131: 8,9 | E131: Pipette tips | J131: 96 | K131: Samples | L131: Extraction and sample prep, Serology and result interpretation | M131: 0 | N131: 0
N132: 0
C133: 3A1: Take explant through surface sterilization & Initiation (positive) | D133: 1,11 | E133: blades | G133: 2 | H133: Pcs | I133: 8 | J133: 1 | K133: Plants | L133: Unit 1 plant or explant | M133: 16 | N133: 16
C134: 3A1: Take explant through surface sterilization & Initiation (positive) | D134: 1, 2, 11 | E134: gloves | G134: 2 | H134: Pcs | I134: 50 | J134: 1 | K134: Plants | L134: 1 pairs | M134: 100 | N134: 100
C135: 3A1: Take explant through surface sterilization & Initiation (positive) | D135: 1,2,3,5,,6,7,8,10,11,12 | E135: labels | G135: 0.5 | H135: Pcs | I135: 50 | J135: 10 | K135: Plants | L135: For all stages labelling | M135: 2.5 | N135: 25
C136: 3A1: Take explant through surface sterilization & Initiation (positive) | D136: 3 | E136: Tween 20 | G136: 0.006 | H136: ml | I136: 25 | J136: 10 | K136: Plants | L136: 3 drops for 10 explants | M136: =IFERROR(N136/J136, "") -> 0.015 | N136: =IFERROR(G136*I136, "") -> 0.15
C137: 3A1: Take explant through surface sterilization & Initiation (positive) | D137: 5,7 | E137: Commercial Jik | G137: 20 | H137: ml | I137: 2 | J137: 10 | K137: Plants | L137: 10 explants | M137: 4 | N137: 40
C138: 3A1: Take explant through surface sterilization & Initiation (positive) | D138: 5,6,7,8,9,10,11,12 | E138: Nose masks | G138: 2 | H138: Pcs | I138: 7 | J138: 10 | K138: Plants | L138: For all stages labelling | M138: 1.4 | N138: 14
C139: 3A1: Take explant through surface sterilization & Initiation (positive) | D139: 6,9 | E139: Ethanol absolute | G139: 70 | H139: ml | I139: 4.4 | J139: 10 | K139: Plants | L139: 10 explants | M139: 30.8 | N139: 308
C140: 3A1: Take explant through surface sterilization & Initiation (positive) | D140: 7,9 | E140: Dettol disnifectant | G140: 10 | H140: ml | I140: 2 | J140: 10 | K140: Plants | M140: 2 | N140: 20
C141: 3A1: Take explant through surface sterilization & Initiation (positive) | D141: 7,12 | E141: Teepol detergent | G141: 10 | H141: ml | I141: 1 | J141: 10 | K141: Plants | M141: 1 | N141: 10
C142: 3A1: Take explant through surface sterilization & Initiation (positive) | D142: 11 | E142: Micropipette tips | G142: 2 | H142: pc | I142: 22 | J142: 60 | K142: Plants | M142: 0.7333333333 | N142: 44
C143: 3A1: Take explant through surface sterilization & Initiation (positive) | D143: 11 | E143: weighing boats | G143: 15 | H143: pc | I143: 165 | J143: 60 | K143: Plants | M143: 41.25 | N143: 2475
C144: 3A1: Take explant through surface sterilization & Initiation (positive) | D144: 11 | E144: Sucrose | G144: 0.011 | H144: g | I144: 0.121 | J144: 60 | K144: Plants | M144: 2.218333333e-05 | N144: 0.001331
C145: 3A1: Take explant through surface sterilization & Initiation (positive) | D145: 11 | E145: Alminium foil | H145: pc | J145: 60 | K145: Plants | L145: 1 roll of aluminium foil is 45cm x 90m, 16% is used monthly | M145: 0 | N145: 0
C146: 3A1: Take explant through surface sterilization & Initiation (positive) | D146: 11 | E146: Sodium hydroxide | H146: g | J146: 60 | K146: Plants | L146: 1 litre, 60 explants | M146: 0 | N146: 0
C147: 3A1: Take explant through surface sterilization & Initiation (positive) | D147: 11 | E147: HCL | H147: ml | J147: 60 | K147: Plants | L147: 1 litre, 60 explants | M147: 0 | N147: 0
C148: 3A1: Take explant through surface sterilization & Initiation (positive) | D148: 11 | E148: Ammonium Nitrate | G148: 0.0165 | H148: g | I148: 0.08 | J148: 1 | K148: Plants | M148: 0.00132 | N148: 0.00132
C149: 3A1: Take explant through surface sterilization & Initiation (positive) | D149: 11 | E149: Potassium Nitrate | G149: 0.019 | H149: g | I149: 0.073 | J149: 1 | K149: Plants | M149: 0.001387 | N149: 0.001387
C150: 3A1: Take explant through surface sterilization & Initiation (positive) | D150: 11 | E150: Magnesium Sulfate | G150: 0.0185 | H150: g | I150: 0.05 | J150: 1 | K150: Plants | M150: 0.000925 | N150: 0.000925
C151: 3A1: Take explant through surface sterilization & Initiation (positive) | D151: 11 | E151: Manganese Sulfate | G151: 0.001115 | H151: g | I151: 0.0448 | J151: 1 | K151: Plants | M151: 4.9952e-05 | N151: 4.9952e-05
C152: 3A1: Take explant through surface sterilization & Initiation (positive) | D152: 11 | E152: Zinc Sulfate | G152: 0.00043 | H152: g | I152: 0.064 | J152: 1 | K152: Plants | M152: 2.752e-05 | N152: 2.752e-05
C153: 3A1: Take explant through surface sterilization & Initiation (positive) | D153: 11 | E153: Copper Sulfate | G153: 1.25e-06 | H153: g | I153: 0.036 | J153: 1 | K153: Plants | M153: 4.5e-08 | N153: 4.5e-08
C154: 3A1: Take explant through surface sterilization & Initiation (positive) | D154: 11 | E154: Calcium Chloride | G154: 0.022 | H154: g | I154: 0.03 | J154: 1 | K154: Plants | M154: 0.00066 | N154: 0.00066
C155: 3A1: Take explant through surface sterilization & Initiation (positive) | D155: 11 | E155: Potassium Iodide | G155: 4.15e-05 | H155: g | I155: 0.258 | J155: 1 | K155: Plants | M155: 1.0707e-05 | N155: 1.0707e-05
C156: 3A1: Take explant through surface sterilization & Initiation (positive) | D156: 11 | E156: Cobalt Chloride | G156: 1.25e-06 | H156: g | I156: 0.28 | J156: 1 | K156: Plants | M156: 3.5e-07 | N156: 3.5e-07
C157: 3A1: Take explant through surface sterilization & Initiation (positive) | D157: 11 | E157: Potassium Phosphate | G157: 0.0085 | H157: g | I157: 0.076 | J157: 1 | K157: Plants | M157: 0.000646 | N157: 0.000646
C158: 3A1: Take explant through surface sterilization & Initiation (positive) | D158: 11 | E158: Boric Acid | G158: 0.00031 | H158: g | I158: 0.044 | J158: 1 | K158: Plants | M158: 1.364e-05 | N158: 1.364e-05
C159: 3A1: Take explant through surface sterilization & Initiation (positive) | D159: 11 | E159: Molybdic Acid | G159: 1.25e-05 | H159: g | I159: 0.48 | J159: 1 | K159: Plants | M159: 6e-06 | N159: 6e-06
C160: 3A1: Take explant through surface sterilization & Initiation (positive) | D160: 11 | E160: Ferrous Sulfate | G160: 0.0013925 | H160: g | I160: 0.036 | J160: 1 | K160: Plants | M160: 5.013e-05 | N160: 5.013e-05
C161: 3A1: Take explant through surface sterilization & Initiation (positive) | D161: 11 | E161: Sodium-EDTA | G161: 0.0018625 | H161: g | I161: 0.058 | J161: 1 | K161: Plants | M161: 0.000108025 | N161: 0.000108025
C162: 3A1: Take explant through surface sterilization & Initiation (positive) | D162: 11 | E162: Inositol | G162: 0.005 | H162: g | I162: 0.21 | J162: 1 | K162: Plants | M162: 0.00105 | N162: 0.00105
C163: 3A1: Take explant through surface sterilization & Initiation (positive) | D163: 11 | E163: Glycine | G163: 0.0001 | H163: g | I163: 0.25 | J163: 1 | K163: Plants | M163: 2.5e-05 | N163: 2.5e-05
C164: 3A1: Take explant through surface sterilization & Initiation (positive) | D164: 11 | E164: Nicotinic Acid | G164: 2.5e-05 | H164: g | I164: 0.65 | J164: 1 | K164: Plants | M164: 1.625e-05 | N164: 1.625e-05
C165: 3A1: Take explant through surface sterilization & Initiation (positive) | D165: 11 | E165: Pyridoxine-HCL | G165: 2.5e-05 | H165: g | I165: 1.2 | J165: 1 | K165: Plants | M165: 3e-05 | N165: 3e-05
C166: 3A1: Take explant through surface sterilization & Initiation (positive) | D166: 11 | E166: Thiamine-HCL | G166: 5e-06 | H166: g | I166: 0.8 | J166: 1 | K166: Plants | M166: 4e-06 | N166: 4e-06
C167: 3A1: Take explant through surface sterilization & Initiation (positive) | D167: 11 | E167: Calcium pentathonate | G167: 0.02 | H167: g | I167: 35.074 | J167: 1 | K167: Plants | M167: 0.70148 | N167: 0.70148
C168: 3A1: Take explant through surface sterilization & Initiation (positive) | D168: 11 | E168: Calcium Nitrate | G168: 0.001 | H168: g | I168: 4.2 | J168: 1 | K168: Plants | M168: 0.0042 | N168: 0.0042
C169: 3A1: Take explant through surface sterilization & Initiation (positive) | D169: 11 | E169: L-Arginine | G169: 0.001 | H169: g | I169: 55.6 | J169: 1 | K169: Plants | M169: 0.0556 | N169: 0.0556
C170: 3A1: Take explant through surface sterilization & Initiation (positive) | D170: 11 | E170: Ascorbic acid | G170: 0.001 | H170: g | I170: 19.65 | J170: 1 | K170: Plants | M170: 0.01965 | N170: 0.01965
C171: 3A1: Take explant through surface sterilization & Initiation (positive) | D171: 11 | E171: Agar | G171: 0.08 | H171: g | I171: 0.3 | J171: 1 | K171: Plants | M171: 0.024 | N171: 0.024
C172: 3A1: Take explant through surface sterilization & Initiation (positive) | D172: 11 | E172: Giberelic acid | G172: 0.0001 | H172: g | I172: 5500 | J172: 1 | K172: Plants | M172: 0.55 | N172: 0.55
N173: 0
C174: Stage 3B: Thermotherapy and meristem tip culture | D174: 1 | E174: Gloves | G174: 1 | H174: piece | I174: 0.09 | J174: 100 | K174: Plants | L174: one pair 100 plants | M174: 0.0009 | N174: 0.09
C175: Stage 3B: Thermotherapy and meristem tip culture | D175: 1 | E175: Ethanol | G175: 10 | H175: ml | I175: 0.11 | J175: 100 | K175: Plants | L175: for 100 plants | M175: 0.011 | N175: 1.1
C176: Stage 3B: Thermotherapy and meristem tip culture | D176: 2 | E176: Ammonium Nitrate | G176: 0.0165 | H176: g | I176: 0.08 | J176: 1 | K176: Plants | M176: 0.00132 | N176: 0.00132
C177: Stage 3B: Thermotherapy and meristem tip culture | D177: 2 | E177: Potassium Nitrate | G177: 0.019 | H177: g | I177: 0.073 | J177: 1 | K177: Plants | M177: 0.001387 | N177: 0.001387
C178: Stage 3B: Thermotherapy and meristem tip culture | D178: 2 | E178: Magnesium Sulfate | G178: 0.0185 | H178: g | I178: 0.05 | J178: 1 | K178: Plants | M178: 0.000925 | N178: 0.000925
C179: Stage 3B: Thermotherapy and meristem tip culture | D179: 2 | E179: Manganese Sulfate | G179: 0.001115 | H179: g | I179: 0.0448 | J179: 1 | K179: Plants | M179: 4.9952e-05 | N179: 4.9952e-05
C180: Stage 3B: Thermotherapy and meristem tip culture | D180: 2 | E180: Zinc Sulfate | G180: 0.00043 | H180: g | I180: 0.064 | J180: 1 | K180: Plants | M180: 2.752e-05 | N180: 2.752e-05
C181: Stage 3B: Thermotherapy and meristem tip culture | D181: 2 | E181: Copper Sulfate | G181: 1.25e-06 | H181: g | I181: 0.036 | J181: 1 | K181: Plants | M181: 4.5e-08 | N181: 4.5e-08
C182: Stage 3B: Thermotherapy and meristem tip culture | D182: 2 | E182: Calcium Chloride | G182: 0.022 | H182: g | I182: 0.03 | J182: 1 | K182: Plants | M182: 0.00066 | N182: 0.00066
C183: Stage 3B: Thermotherapy and meristem tip culture | D183: 2 | E183: Potassium Iodide | G183: 4.15e-05 | H183: g | I183: 0.258 | J183: 1 | K183: Plants | M183: 1.0707e-05 | N183: 1.0707e-05
C184: Stage 3B: Thermotherapy and meristem tip culture | D184: 2 | E184: Cobalt Chloride | G184: 1.25e-06 | H184: g | I184: 0.28 | J184: 1 | K184: Plants | M184: 3.5e-07 | N184: 3.5e-07
C185: Stage 3B: Thermotherapy and meristem tip culture | D185: 2 | E185: Potassium Phosphate | G185: 0.0085 | H185: g | I185: 0.076 | J185: 1 | K185: Plants | M185: 0.000646 | N185: 0.000646
C186: Stage 3B: Thermotherapy and meristem tip culture | D186: 2 | E186: Boric Acid | G186: 0.00031 | H186: g | I186: 0.044 | J186: 1 | K186: Plants | M186: 1.364e-05 | N186: 1.364e-05
C187: Stage 3B: Thermotherapy and meristem tip culture | D187: 2 | E187: Molybdic Acid | G187: 1.25e-05 | H187: g | I187: 0.48 | J187: 1 | K187: Plants | M187: 6e-06 | N187: 6e-06
C188: Stage 3B: Thermotherapy and meristem tip culture | D188: 2 | E188: Ferrous Sulfate | G188: 0.0013925 | H188: g | I188: 0.036 | J188: 1 | K188: Plants | M188: 5.013e-05 | N188: 5.013e-05
C189: Stage 3B: Thermotherapy and meristem tip culture | D189: 2 | E189: Sodium-EDTA | G189: 0.0018625 | H189: g | I189: 0.058 | J189: 1 | K189: Plants | M189: 0.000108025 | N189: 0.000108025
C190: Stage 3B: Thermotherapy and meristem tip culture | D190: 2 | E190: Inositol | G190: 0.005 | H190: g | I190: 0.21 | J190: 1 | K190: Plants | M190: 0.00105 | N190: 0.00105
C191: Stage 3B: Thermotherapy and meristem tip culture | D191: 2 | E191: Glycine | G191: 0.0001 | H191: g | I191: 0.25 | J191: 1 | K191: Plants | M191: 2.5e-05 | N191: 2.5e-05
C192: Stage 3B: Thermotherapy and meristem tip culture | D192: 2 | E192: Nicotinic Acid | G192: 2.5e-05 | H192: g | I192: 0.65 | J192: 1 | K192: Plants | M192: 1.625e-05 | N192: 1.625e-05
C193: Stage 3B: Thermotherapy and meristem tip culture | D193: 2 | E193: Pyridoxine-HCL | G193: 2.5e-05 | H193: g | I193: 1.2 | J193: 1 | K193: Plants | M193: 3e-05 | N193: 3e-05
C194: Stage 3B: Thermotherapy and meristem tip culture | D194: 2 | E194: Thiamine-HCL | G194: 5e-06 | H194: g | I194: 0.8 | J194: 1 | K194: Plants | M194: 4e-06 | N194: 4e-06
C195: Stage 3B: Thermotherapy and meristem tip culture | D195: 2 | E195: Calcium pentathonate | G195: 0.02 | H195: g | I195: 35.074 | J195: 1 | K195: Plants | M195: 0.70148 | N195: 0.70148
C196: Stage 3B: Thermotherapy and meristem tip culture | D196: 2 | E196: Calcium Nitrate | G196: 0.001 | H196: g | I196: 4.2 | J196: 1 | K196: Plants | M196: 0.0042 | N196: 0.0042
C197: Stage 3B: Thermotherapy and meristem tip culture | D197: 2 | E197: L-Arginine | G197: 0.001 | H197: g | I197: 55.6 | J197: 1 | K197: Plants | M197: 0.0556 | N197: 0.0556
C198: Stage 3B: Thermotherapy and meristem tip culture | D198: 2 | E198: Ascorbic acid | G198: 0.001 | H198: g | I198: 19.65 | J198: 1 | K198: Plants | M198: 0.01965 | N198: 0.01965
C199: Stage 3B: Thermotherapy and meristem tip culture | D199: 2 | E199: Putriscene3 | G199: 0.2 | H199: g | I199: 1000 | J199: 1 | K199: Plants | M199: 200 | N199: 200
C200: Stage 3B: Thermotherapy and meristem tip culture | D200: 2 | E200: Agar | G200: 0.08 | H200: g | I200: 0.3 | J200: 1 | K200: Plants | M200: =IFERROR(N200/J200, "") -> 0.024 | N200: =IFERROR(G200*I200, "") -> 0.024
C201: Stage 3B: Thermotherapy and meristem tip culture | D201: 2 | E201: Giberelic acid | G201: 0.0001 | H201: g | I201: 5500 | J201: 1 | K201: Plants | M201: 0.55 | N201: 0.55
C202: Stage 3B: Thermotherapy and meristem tip culture | D202: 3 | E202: Blades | G202: 1 | H202: pc | I202: 8 | J202: 200 | K202: Plants | L202: For 200 pcs | M202: 0.04 | N202: 8
C203: Stage 3B: Thermotherapy and meristem tip culture | D203: 3 | E203: Petri dishes | G203: 1 | H203: pc | I203: 3 | J203: 8 | K203: Plants | L203: for 8 plants | M203: 0.375 | N203: 3
... 1122 more rows

Sheet LabourCost
B2: FINANCIAL MANAGEMENT- LABOUR COSTS
B4: *To calculate wage rate per day for monthly salaries >>> Divide montly salary by 21
B6: Stage No | C6: Stage Name | D6: Step reference | E6: Cost category | F6: Labour Type | G6: Contract type | H6: Category | I6: Activities | J6: Qty of labour | K6: Hours per day per labour | L6: No of days per labour | M6: Wage rate per day* | N6: For how many units | O6: Unit Name | P6: Remarks (if any) | Q6: Man-days | R6: Unit Cost | S6: Total Costs
C7: Stage 0. Sample reception and entry into database | D7: 1,6,7 | F7: Receptionist | G7: Permanent | H7: Contractual/ Temporary Labour | J7: 1 | K7: 0.15 | L7: 1 | M7: 2500 | N7: 36 | O7: Plants | Q7: =IFERROR((J7*K7*L7)/8, "") -> 0.01875 | R7: =IFERROR(S7/N7, "") -> 1.302083333 | S7: =IFERROR(M7*Q7, "") -> 46.875
C8: Stage 0. Sample reception and entry into database | D8: 2,3,4,5 | F8: Skilled casual | G8: Contract | H8: Direct Labour | J8: 1 | K8: 7.283333333 | L8: 1 | M8: 77.695 | N8: 36 | O8: Plants | Q8: =IFERROR((J8*K8*L8)/8, "") -> 0.9104166667 | R8: =IFERROR(S8/N8, "") -> 1.964856192 | S8: =IFERROR(M8*Q8, "") -> 70.73482292
Q9: 0 | S9: 0
B10: 1 | C10: Stage 1A. Establish in quarantine glasshouse (Stem Cuttings) | D10: 3,4,6,11 | E10: Variable | F10: Skilled Casual | G10: Contract | H10: Contractual/ Temporary Labour | J10: 1 | K10: 0.4781746032 | L10: 42 | M10: 1553 | N10: 200 | O10: Plants | Q10: 2.510416667 | R10: 19.49338542 | S10: 3898.677083
B11: 1 | C11: Stage 1A. Establish in quarantine glasshouse (Stem Cuttings) | D11: 1,2,8,9,10 | E11: Variable | F11: Non-Skilled Casual | G11: Contract | H11: Indirect Labour | J11: 1 | K11: 1.015873016 | L11: 42 | M11: 672 | N11: 200 | O11: Plants | Q11: 5.333333333 | R11: 17.92 | S11: 3584
Q12: 0 | S12: 0
C13: Stage 1B: Establish in post entry quarantine growthroom | F13: Casual staff | G13: Skilled casual | H13: Miscellaneous | J13: 1 | K13: 1 | L13: 12 | M13: 1553 | N13: 2000 | O13: Plants | Q13: 1.5 | R13: 1.16475 | S13: 2329.5
C14: Stage 1B: Establish in post entry quarantine growthroom | F14: Lab analyst | G14: Permanent | H14: Employee Benefits | J14: 1 | K14: 8 | L14: 21 | M14: 2857.142857 | N14: 2000 | P14: 2000 capacity growthrrom | Q14: 21 | R14: 30 | S14: 60000
Q15: 0 | S15: 0
C16: Stage 1C: Hardening Invitro Plantlet (Quarantine Glasshouse) | D16: 3,5,10 | F16: Skilled Casual | G16: Contract | H16: Contractual/ Temporary Labour | J16: 1 | K16: 1.181372549 | L16: 17 | M16: 1553 | N16: 200 | O16: Plants | Q16: 2.510416667 | R16: 19.49338542 | S16: 3898.677083
C17: Stage 1C: Hardening Invitro Plantlet (Quarantine Glasshouse) | D17: 1,2,7,8,9 | F17: Non-Skilled Casual | G17: Contract | H17: Contractual/ Temporary Labour | J17: 1 | K17: 0.862745098 | L17: 17 | M17: 672 | N17: 200 | O17: Plants | Q17: 1.833333333 | R17: 6.16 | S17: 1232
Q18: 0 | S18: 0
C19: Stage 2A.1. Virus indexing by Convectional PCR | J19: 1 | Q19: 0 | S19: 0
C20: Stage 2A.1. Virus indexing by Convectional PCR | J20: 1 | Q20: 0 | S20: 0
Q21: 0 | S21: 0
C22: Stage 2A.2. Virus indexing by Real time PCR | J22: 1 | Q22: 0 | S22: 0
C23: Stage 2A.2. Virus indexing by Real time PCR | J23: 1 | Q23: 0 | S23: 0
Q24: 0 | S24: 0
C25: Stage 2A.3. Virus indexing by grafting (SETOSA) | J25: 1 | Q25: 0 | S25: 0
C26: Stage 2A.3. Virus indexing by grafting (SETOSA) | J26: 1 | Q26: 0 | S26: 0
Q27: 0 | S27: 0
C28: Stage 2A.4. Virus Indexing by ELISA | J28: 1 | Q28: 0 | S28: 0
C29: Stage 2A.4. Virus Indexing by ELISA | J29: 1 | Q29: 0 | S29: 0
Q30: 0 | S30: 0
C31: Stage 2B: Phytosanitary Certificate | J31: 1 | Q31: 0 | S31: 0
C32: Stage 2B: Phytosanitary Certificate | J32: 1 | Q32: 0 | S32: 0
Q33: 0 | S33: 0
C34: Stage 2C: Diagnostic report | J34: 1 | Q34: 0 | S34: 0
C35: Stage 2C: Diagnostic report | J35: 1 | Q35: 0 | S35: 0
Q36: 0 | S36: 0
C37: Stage 3A1: Take explant through surface sterilization & Initiation (positive) | J37: 1 | Q37: 0 | S37: 0
C38: Stage 3A1: Take explant through surface sterilization & Initiation (positive) | J38: 1 | Q38: 0 | S38: 0
Q39: 0 | S39: 0
C40: Stage 3A2: Take explant through surface sterilization & Initiation (negative) | J40: 1 | Q40: 0 | S40: 0
C41: Stage 3A2: Take explant through surface sterilization & Initiation (negative) | J41: 1 | Q41: 0 | S41: 0
Q42: 0 | S42: 0
C43: Stage 3B: Thermotherapy and meristem tip culture | J43: 1 | Q43: 0 | S43: 0
C44: Stage 3B: Thermotherapy and meristem tip culture | J44: 1 | Q44: 0 | S44: 0
Q45: 0 | S45: 0
C46: Stage 3C: Hardening Invitro plantlet (After cleaning) | D46: 3,5,10 | F46: Skilled Casual | G46: Contract | J46: 1 | K46: 1.181372549 | L46: 17 | M46: 1553 | N46: 200 | O46: Plants | Q46: 2.510416667 | R46: 19.49338542 | S46: 3898.677083
C47: Stage 3C: Hardening Invitro plantlet (After cleaning) | D47: 1,2,7,8,9 | F47: Non-Skilled Casual | G47: Contract | J47: 1 | K47: 0.862745098 | L47: 17 | M47: 672 | N47: 200 | O47: Plants | Q47: 1.833333333 | R47: 6.16 | S47: 1232
Q48: 0 | S48: 0
C49: Stage 4A. Harden plantlets in a glasshouse or screenhouse (After testing Negative) | D49: 3,5,10 | F49: Skilled Casual | G49: Contract | J49: 1 | K49: 1.181372549 | L49: 17 | M49: 1553 | N49: 200 | O49: Plants | Q49: 2.510416667 | R49: 19.49338542 | S49: 3898.677083
C50: Stage 4A. Harden plantlets in a glasshouse or screenhouse (After testing Negative) | D50: 1,2,7,8,9 | F50: Non-Skilled Casual | G50: Contract | J50: 1 | K50: 0.862745098 | L50: 17 | M50: 672 | N50: 200 | O50: Plants | Q50: 1.833333333 | R50: 6.16 | S50: 1232
Q51: 0 | S51: 0
C52: Stage 4B: Distribute in vitro plantlets | D52: 3 | F52: Lab analyst | G52: permanent | J52: 1 | L52: 1 | M52: 2500 | N52: 36 | O52: Plants | Q52: 0 | R52: 0 | S52: 0
C53: Stage 4B: Distribute in vitro plantlets | D53: 1,2 | F53: Inspector | G53: permanent | J53: 1 | L53: 1 | M53: 6250 | N53: 36 | O53: Plants | Q53: 0 | R53: 0 | S53: 0
Q54: 0 | S54: 0
C55: Stage 4C: Distribute in hardened plants | D55: 3 | F55: Lab analyst | G55: permanent | J55: 1 | L55: 1 | Q55: 0 | S55: 0
C56: Stage 4C: Distribute in hardened plants | D56: 1,2 | F56: Inspector | G56: permanent | J56: 1 | L56: 1 | Q56: 0 | S56: 0
Q57: 0 | S57: 0
C58: Stage 5A: Invivo Conservation (screenhouse) | D58: 3,8 | F58: Skilled Casual | G58: Contract | J58: 1 | K58: 0.171957672 | L58: 252 | M58: 1553 | N58: 200 | O58: Plants | Q58: 5.416666667 | R58: 42.06041667 | S58: 8412.083333
C59: Stage 5A: Invivo Conservation (screenhouse) | D59: 1,2,4,5,6,7 | F59: Non-Skilled Casual | G59: Contract | J59: 1 | K59: 0.962386511 | L59: 252 | M59: 672 | N59: 200 | O59: Plants | Q59: 30.3151751 | R59: 101.8589883 | S59: 20371.79767
Q60: 0 | S60: 0
C61: Stage 5B: Invivo Multiplication (screenhouse) | D61: 3,8 | F61: Skilled Casual | G61: Contract | J61: 1 | K61: 0.04761904762 | L61: 63 | M61: 1553 | N61: 200 | O61: Plants | Q61: 0.375 | R61: 2.911875 | S61: 582.375
C62: Stage 5B: Invivo Multiplication (screenhouse) | D62: 1,2,5,6,7 | F62: Non-Skilled Casual | G62: Contract | J62: 1 | K62: 0.3571428571 | L62: 63 | M62: 672 | N62: 200 | O62: Plants | Q62: 2.8125 | R62: 9.45 | S62: 1890
Q63: 0 | S63: 0
C64: Stage 5C: Distribute cuttings (15cm) | D64: 3 | F64: Lab analyst | G64: permanent | J64: 1 | K64: 0.08333333333 | L64: 1 | M64: 2500 | N64: 36 | O64: Plants | Q64: 0.01041666667 | R64: 0.7233796296 | S64: 26.04166667
C65: Stage 5C: Distribute cuttings (15cm) | D65: 1,2 | F65: Inspector | G65: permanent | J65: 1 | K65: 2.016666667 | L65: 1 | M65: 6250 | N65: 36 | O65: Plants | Q65: 0.2520833333 | R65: 43.76446759 | S65: 1575.520833
Q66: 0 | S66: 0
Q67: 0 | S67: 0
Q68: 0 | S68: 0
Q69: 0 | S69: 0
Q70: 0 | S70: 0
Q71: 0 | S71: 0
Q72: =IFERROR((J72*K72*L72)/8, "") -> 0 | R72: =IFERROR(S72/N72, "") ->  | S72: =IFERROR(M72*Q72, "") -> 0
Q73: 0 | S73: 0
Q74: 0 | S74: 0
Q75: 0 | S75: 0
Q76: 0 | S76: 0
Q77: 0 | S77: 0
Q78: 0 | S78: 0
Q79: 0 | S79: 0
Q80: 0 | S80: 0
Q81: 0 | S81: 0
Q82: 0 | S82: 0
Q83: 0 | S83: 0
Q84: 0 | S84: 0
Q85: 0 | S85: 0
Q86: 0 | S86: 0
Q87: 0 | S87: 0
Q88: 0 | S88: 0
Q89: 0 | S89: 0
Q90: 0 | S90: 0
Q91: 0 | S91: 0
Q92: 0 | S92: 0
Q93: 0 | S93: 0
Q94: 0 | S94: 0
Q95: 0 | S95: 0
Q96: 0 | S96: 0
Q97: 0 | S97: 0
Q98: 0 | S98: 0
Q99: 0 | S99: 0
Q100: 0 | S100: 0
Q101: 0 | S101: 0
Q102: 0 | S102: 0
Q103: 0 | S103: 0
Q104: =IFERROR((J104*K104*L104)/8, "") -> 0 | R104: =IFERROR(S104/N104, "") ->  | S104: =IFERROR(M104*Q104, "") -> 0
Q105: 0 | S105: 0
Q106: 0 | S106: 0
Q107: 0 | S107: 0
Q108: 0 | S108: 0
Q109: 0 | S109: 0
Q110: 0 | S110: 0
Q111: 0 | S111: 0
Q112: 0 | S112: 0
Q113: 0 | S113: 0
Q114: 0 | S114: 0
Q115: 0 | S115: 0
Q116: 0 | S116: 0
Q117: 0 | S117: 0
Q118: 0 | S118: 0
Q119: 0 | S119: 0
Q120: 0 | S120: 0
Q121: 0 | S121: 0
Q122: 0 | S122: 0
Q123: 0 | S123: 0
Q124: 0 | S124: 0
Q125: 0 | S125: 0
Q126: 0 | S126: 0
Q127: 0 | S127: 0
Q128: 0 | S128: 0
Q129: 0 | S129: 0
Q130: 0 | S130: 0
Q131: 0 | S131: 0
Q132: 0 | S132: 0
Q133: 0 | S133: 0
Q134: 0 | S134: 0
Q135: 0 | S135: 0
Q136: =IFERROR((J136*K136*L136)/8, "") -> 0 | R136: =IFERROR(S136/N136, "") ->  | S136: =IFERROR(M136*Q136, "") -> 0
Q137: 0 | S137: 0
Q138: 0 | S138: 0
Q139: 0 | S139: 0
Q140: 0 | S140: 0
Q141: 0 | S141: 0
Q142: 0 | S142: 0
Q143: 0 | S143: 0
Q144: 0 | S144: 0
Q145: 0 | S145: 0
Q146: 0 | S146: 0
Q147: 0 | S147: 0
Q148: 0 | S148: 0
Q149: 0 | S149: 0
Q150: 0 | S150: 0
Q151: 0 | S151: 0
Q152: 0 | S152: 0
Q153: 0 | S153: 0
Q154: 0 | S154: 0
Q155: 0 | S155: 0
Q156: 0 | S156: 0
Q157: 0 | S157: 0
Q158: 0 | S158: 0
Q159: 0 | S159: 0
Q160: 0 | S160: 0
Q161: 0 | S161: 0
Q162: 0 | S162: 0
Q163: 0 | S163: 0
Q164: 0 | S164: 0
Q165: 0 | S165: 0
Q166: 0 | S166: 0
Q167: 0 | S167: 0
Q168: 0 | S168: 0
Q169: 0 | S169: 0
Q170: 0 | S170: 0
Q171: 0 | S171: 0
Q172: 0 | S172: 0
Q173: 0 | S173: 0
Q174: 0 | S174: 0
Q175: 0 | S175: 0
Q176: 0 | S176: 0
Q177: 0 | S177: 0
Q178: 0 | S178: 0
Q179: 0 | S179: 0
Q180: 0 | S180: 0
Q181: 0 | S181: 0
Q182: 0 | S182: 0
Q183: 0 | S183: 0
Q184: 0 | S184: 0
Q185: 0 | S185: 0
Q186: 0 | S186: 0
Q187: 0 | S187: 0
Q188: 0 | S188: 0
Q189: 0 | S189: 0
Q190: 0 | S190: 0
Q191: 0 | S191: 0
Q192: 0 | S192: 0
Q193: 0 | S193: 0
Q194: 0 | S194: 0
Q195: 0 | S195: 0
Q196: 0 | S196: 0
Q197: 0 | S197: 0
Q198: 0 | S198: 0
Q199: 0 | S199: 0
Q200: =IFERROR((J200*K200*L200)/8, "") -> 0 | R200: =IFERROR(S200/N200, "") ->  | S200: =IFERROR(M200*Q200, "") -> 0
Q201: 0 | S201: 0
Q202: 0 | S202: 0
Q203: 0 | S203: 0
... 814 more rows

Sheet AssetsEquip
B2: FINANCIAL MANAGEMENT- ASSETS/EQUIPMENT COSTS
B4: *If an asset is used in multiple stages - enter adjust factor. Adjust factor determines share of asset usage for the particular stage. Salvage Value is asset value after its useful life
B6: Stage No | C6: Stage Name | D6: Step reference | E6: Asset Name | F6: Category | G6: Quantity | H6: Asset cost per item | I6: Useful life/Capacity | J6: Salvage value | K6: Adjust factor* | L6: Remarks (if any) | M6: Total Cost of item | N6: Depreciation
C7: Stage 0. Sample reception and entry into database | D7: 2,3,6,7 | E7: Computer | F7: Fixed Assets | G7: 1 | H7: 200000 | I7: 5 | J7: 50000 | K7: 1 | M7: =IFERROR(G7*H7, "") -> 200000 | N7: =IFERROR(IF(K7<1,(H7-J7)/I7*K7,(H7-J7)/I7), "") -> 30000
C8: Stage 0. Sample reception and entry into database | D8: 2 | E8: Printer | F8: Fixed Assets | G8: 1 | H8: 30000 | I8: 5 | J8: 5000 | K8: 1 | M8: =IFERROR(G8*H8, "") -> 30000 | N8: =IFERROR(IF(K8<1,(H8-J8)/I8*K8,(H8-J8)/I8), "") -> 5000
C9: Stage 0. Sample reception and entry into database | D9: 3 | E9: Barcode printer | F9: Fixed Assets | G9: 1 | H9: 124000 | I9: 5 | J9: 20000 | K9: 1 | M9: 124000 | N9: 20800
C10: Stage 0. Sample reception and entry into database | D10: 2 | E10: Stapler | F10: Fixed Assets | G10: 1 | H10: 500 | I10: 5 | J10: 50 | K10: 1 | M10: 500 | N10: 90
C11: Stage 0. Sample reception and entry into database | D11: All | E11: Chair | F11: Fixed Assets | G11: 1 | H11: 13000 | I11: 5 | J11: 500 | K11: 1 | M11: 13000 | N11: 2500
C12: Stage 0. Sample reception and entry into database | D12: 2,3 | E12: IT System | F12: Intangible Assets | G12: 1 | H12: 250000 | I12: 10 | K12: 1 | M12: 250000 | N12: 25000
C13: Stage 0. Sample reception and entry into database | D13: All | E13: Desk | F13: Fixed Assets | G13: 1 | H13: 30000 | I13: 10 | J13: 1000 | K13: 1 | M13: 30000 | N13: 2900
C14: Stage 0. Sample reception and entry into database | D14: 2 | E14: File Cabinet | F14: Fixed Assets | G14: 1 | H14: 30000 | I14: 10 | J14: 1000 | K14: 1 | M14: 30000 | N14: 2900
C15: Stage 0. Sample reception and entry into database | D15: 4 | E15: Ruler | F15: Fixed Assets | G15: 1 | H15: 50 | I15: 1 | J15: 10 | K15: 1 | M15: 50 | N15: 40
C16: Stage 0. Sample reception and entry into database | D16: 2 | E16: Paper punch | F16: Current Assets | G16: 1 | H16: 700 | I16: 5 | J16: 50 | K16: 1 | M16: 700 | N16: 130
C17: Stage 0. Sample reception and entry into database | D17: 5 | E17: Trolley | F17: Fixed Assets | G17: 1 | H17: 20000 | I17: 10 | J17: 1000 | K17: 1 | M17: 20000 | N17: 1900
M18: 0
B19: 0 | C19: Stage 1A. Establish in quarantine glasshouse (Stem Cuttings) | E19: Digital humidity and temperature meter | F19: Financial Assets | G19: 1 | H19: 2000 | I19: 5 | J19: 500 | K19: 1 | L19: Note: All equipment covers maximum capacity of 200 plants | M19: 2000 | N19: 300
B20: 0 | C20: Stage 1A. Establish in quarantine glasshouse (Stem Cuttings) | E20: Dust coat | F20: Financial Assets | G20: 1 | H20: 2000 | I20: 2 | J20: 200 | K20: 1 | M20: 2000 | N20: 900
B21: 0 | C21: Stage 1A. Establish in quarantine glasshouse (Stem Cuttings) | E21: Footwash sponge | F21: Miscellaneous | G21: 1 | H21: 500 | I21: 2 | J21: 0 | K21: 1 | M21: 500 | N21: 250
B22: 0 | C22: Stage 1A. Establish in quarantine glasshouse (Stem Cuttings) | E22: Hand shovel | F22: Miscellaneous | G22: 1 | H22: 1000 | I22: 5 | J22: 200 | K22: 1 | M22: 1000 | N22: 160
B23: 0 | C23: Stage 1A. Establish in quarantine glasshouse (Stem Cuttings) | E23: Heavy duty Gumboots (Pair) | G23: 1 | H23: 1500 | I23: 2 | J23: 0 | K23: 1 | M23: 1500 | N23: 750
C24: Stage 1A. Establish in quarantine glasshouse (Stem Cuttings) | E24: Manual Knapsac sprayer | G24: 1 | H24: 3600 | I24: 3 | J24: 500 | K24: 1 | M24: 3600 | N24: 1033.333333
C25: Stage 1A. Establish in quarantine glasshouse (Stem Cuttings) | E25: Panga | G25: 1 | H25: 1500 | I25: 3 | J25: 300 | K25: 1 | M25: 1500 | N25: 400
C26: Stage 1A. Establish in quarantine glasshouse (Stem Cuttings) | E26: Plastic containers | G26: 200 | H26: 50 | I26: 3 | K26: 1 | L26: (565 x 480 x 138 mm) 100L | M26: 10000 | N26: 16.66666667
C27: Stage 1A. Establish in quarantine glasshouse (Stem Cuttings) | E27: Plastic Crate (565 x 480 x 138 mm) 100L | G27: 1 | H27: 3000 | I27: 5 | J27: 500 | K27: 1 | M27: 3000 | N27: 500
C28: Stage 1A. Establish in quarantine glasshouse (Stem Cuttings) | E28: Plastic Pot (1 kg Capacity) | G28: 200 | H28: 170 | I28: 3 | J28: 20 | K28: 1 | M28: 34000 | N28: 50
C29: Stage 1A. Establish in quarantine glasshouse (Stem Cuttings) | E29: Plastic Spray bottle for misting (500ml capacity) | G29: 1 | H29: 500 | I29: 2 | J29: 50 | K29: 1 | M29: 500 | N29: 225
C30: Stage 1A. Establish in quarantine glasshouse (Stem Cuttings) | E30: Respirator | G30: 1 | H30: 1000 | I30: 1 | J30: 0 | K30: 1 | M30: 1000 | N30: 1000
C31: Stage 1A. Establish in quarantine glasshouse (Stem Cuttings) | E31: Safety googles | G31: 1 | H31: 600 | I31: 3 | J31: 50 | K31: 1 | L31: 2 for every bench; 8 for the 4 benches in the room | M31: 600 | N31: 183.3333333
C32: Stage 1A. Establish in quarantine glasshouse (Stem Cuttings) | E32: Semi-circular bent iron bars | G32: 8 | H32: 8000 | I32: 10 | J32: 200 | K32: 1 | M32: 64000 | N32: 780
C33: Stage 1A. Establish in quarantine glasshouse (Stem Cuttings) | E33: Spade/Shovel | G33: 1 | H33: 1000 | I33: 5 | J33: 100 | K33: 1 | M33: 1000 | N33: 180
C34: Stage 1A. Establish in quarantine glasshouse (Stem Cuttings) | E34: Tablet (Pocket PC) | G34: 1 | H34: 50000 | I34: 3 | J34: 10000 | K34: 1 | L34: 1 meter * 1 meter | M34: 50000 | N34: 13333.33333
C35: Stage 1A. Establish in quarantine glasshouse (Stem Cuttings) | E35: Transparent Polythene covering sheet | G35: 1 | H35: 300 | I35: 1 | J35: 0 | K35: 1 | L35: 3/4 inch hose pipe; 50 M | M35: 300 | N35: 300
C36: Stage 1A. Establish in quarantine glasshouse (Stem Cuttings) | E36: Watering pipe | G36: 1 | H36: 15000 | I36: 5 | J36: 1000 | K36: 1 | M36: 15000 | N36: 2800
C37: Stage 1A. Establish in quarantine glasshouse (Stem Cuttings) | E37: Wheelbarrow | G37: 1 | H37: 5700 | I37: 5 | J37: 1000 | K37: 1 | M37: 5700 | N37: 940
C38: Stage 1A. Establish in quarantine glasshouse (Stem Cuttings) | E38: Yellow spray overall | G38: 1 | H38: 3000 | I38: 3 | J38: 0 | K38: 1 | M38: 3000 | N38: 1000
M39: 0
C40: Stage 1B: Establish in post entry quarantine growthroom | D40: 3 | E40: Autoclave | G40: 1 | H40: 700000 | I40: 10 | J40: 5000 | K40: 1 | M40: 700000 | N40: 69500
C41: Stage 1B: Establish in post entry quarantine growthroom | D41: 1,2,3,4,5 | E41: Lab coat | G41: 2 | H41: 2000 | I41: 1 | J41: 200 | K41: 1 | M41: 4000 | N41: 1800
C42: Stage 1B: Establish in post entry quarantine growthroom | D42: 4 | E42: Mop and Bucket | G42: 2 | H42: 500 | I42: 0.3 | J42: 100 | K42: 1 | M42: 1000 | N42: 1333.333333
C43: Stage 1B: Establish in post entry quarantine growthroom | D43: 1,2,3,5 | E43: Handsprayer | G43: 1 | H43: 500 | I43: 1 | J43: 50 | K43: 1 | M43: 500 | N43: 450
C44: Stage 1B: Establish in post entry quarantine growthroom | D44: 3 | E44: Test tubes | G44: 2 | H44: 200 | I44: 1.5 | J44: 30 | K44: 1 | M44: 400 | N44: 113.3333333
C45: Stage 1B: Establish in post entry quarantine growthroom | D45: 3 | E45: Beaker | G45: 1 | H45: 250 | I45: 1.5 | J45: 30 | K45: 1 | M45: 250 | N45: 146.6666667
C46: Stage 1B: Establish in post entry quarantine growthroom | D46: 3 | E46: Hot plate stirer | G46: 1 | H46: 110000 | I46: 10 | J46: 2000 | K46: 1 | M46: 110000 | N46: 10800
C47: Stage 1B: Establish in post entry quarantine growthroom | D47: 3 | E47: Lamina flow | G47: 1 | H47: 800000 | I47: 20 | J47: 5000 | K47: 1 | M47: 800000 | N47: 39750
C48: Stage 1B: Establish in post entry quarantine growthroom | D48: 3 | E48: Forceps | G48: 2 | H48: 200 | I48: 5 | J48: 10 | K48: 1 | M48: 400 | N48: 38
C49: Stage 1B: Establish in post entry quarantine growthroom | D49: 3 | E49: Test tube racks | G49: 1 | H49: 1000 | I49: 1 | J49: 150 | K49: 1 | M49: 1000 | N49: 850
C50: Stage 1B: Establish in post entry quarantine growthroom | D50: 3 | E50: Bead sterlizer | G50: 1 | H50: 172000 | I50: 10 | J50: 2000 | K50: 1 | M50: 172000 | N50: 17000
C51: Stage 1B: Establish in post entry quarantine growthroom | D51: 1 | E51: Ac conditioner | G51: 1 | H51: 200000 | I51: 10 | J51: 1500 | K51: 1 | M51: 200000 | N51: 19850
C52: Stage 1B: Establish in post entry quarantine growthroom | D52: 1 | E52: Thermometers | G52: 1 | H52: 10000 | I52: 5 | J52: 1000 | K52: 1 | M52: 10000 | N52: 1800
M53: 0
C54: Stage 1C: Hardening Invitro Plantlet (Quarantine Glasshouse) | E54: Digital humidity and temperature meter | G54: 1 | H54: 2000 | I54: 5 | J54: 500 | K54: 1 | M54: 2000 | N54: 300
C55: Stage 1C: Hardening Invitro Plantlet (Quarantine Glasshouse) | E55: Dust coat | G55: 1 | H55: 2000 | I55: 2 | J55: 200 | K55: 1 | M55: 2000 | N55: 900
C56: Stage 1C: Hardening Invitro Plantlet (Quarantine Glasshouse) | E56: Footwash sponge | G56: 1 | H56: 500 | I56: 2 | J56: 0 | K56: 1 | M56: 500 | N56: 250
C57: Stage 1C: Hardening Invitro Plantlet (Quarantine Glasshouse) | E57: Hand shovel | G57: 1 | H57: 1000 | I57: 5 | J57: 200 | K57: 1 | M57: 1000 | N57: 160
C58: Stage 1C: Hardening Invitro Plantlet (Quarantine Glasshouse) | E58: Heavy duty Gumboots (Pair) | G58: 1 | H58: 1500 | I58: 2 | J58: 0 | K58: 1 | M58: 1500 | N58: 750
C59: Stage 1C: Hardening Invitro Plantlet (Quarantine Glasshouse) | E59: Manual Knapsac sprayer | G59: 1 | H59: 3600 | I59: 3 | J59: 500 | K59: 1 | M59: 3600 | N59: 1033.333333
C60: Stage 1C: Hardening Invitro Plantlet (Quarantine Glasshouse) | E60: Panga | G60: 1 | H60: 1500 | I60: 3 | J60: 300 | K60: 1 | M60: 1500 | N60: 400
C61: Stage 1C: Hardening Invitro Plantlet (Quarantine Glasshouse) | E61: Plastic washing bowl | G61: 1 | H61: 200 | I61: 2 | J61: 50 | K61: 1 | L61: (565 x 480 x 138 mm) 100L | M61: 200 | N61: 75
C62: Stage 1C: Hardening Invitro Plantlet (Quarantine Glasshouse) | E62: Plastic Crate (565 x 480 x 138 mm) 100L | G62: 1 | H62: 3000 | I62: 5 | J62: 500 | K62: 1 | M62: 3000 | N62: 500
C63: Stage 1C: Hardening Invitro Plantlet (Quarantine Glasshouse) | E63: Plastic Pot (1 kg Capacity) | G63: 200 | H63: 170 | I63: 2 | J63: 20 | K63: 1 | M63: 34000 | N63: 75
C64: Stage 1C: Hardening Invitro Plantlet (Quarantine Glasshouse) | E64: Plastic Spray bottle for misting (500ml capacity) | G64: 1 | H64: 500 | I64: 2 | J64: 50 | K64: 1 | M64: 500 | N64: 225
C65: Stage 1C: Hardening Invitro Plantlet (Quarantine Glasshouse) | E65: Respirator | G65: 1 | H65: 1000 | I65: 1 | J65: 0 | K65: 1 | M65: 1000 | N65: 1000
C66: Stage 1C: Hardening Invitro Plantlet (Quarantine Glasshouse) | E66: Safety googles | G66: 1 | H66: 600 | I66: 3 | J66: 50 | K66: 1 | L66: 2 for every bench; 8 for the 4 benches in the room | M66: 600 | N66: 183.3333333
C67: Stage 1C: Hardening Invitro Plantlet (Quarantine Glasshouse) | E67: Semi-circular bent iron bars | G67: 8 | H67: 8000 | I67: 10 | J67: 200 | K67: 1 | M67: 64000 | N67: 780
C68: Stage 1C: Hardening Invitro Plantlet (Quarantine Glasshouse) | E68: Spade/shovel | G68: 1 | H68: 1000 | I68: 5 | J68: 100 | K68: 1 | M68: 1000 | N68: 180
C69: Stage 1C: Hardening Invitro Plantlet (Quarantine Glasshouse) | E69: Tablet (Pocket PC) | G69: 1 | H69: 50000 | I69: 3 | J69: 10000 | K69: 1 | L69: 1 meter * 1 meter | M69: 50000 | N69: 13333.33333
C70: Stage 1C: Hardening Invitro Plantlet (Quarantine Glasshouse) | E70: Transparent Polythene covering sheet | G70: 1 | H70: 300 | I70: 1 | J70: 0 | K70: 1 | L70: 3/4 inch hose pipe; 50 M | M70: 300 | N70: 300
C71: Stage 1C: Hardening Invitro Plantlet (Quarantine Glasshouse) | E71: Watering pipe (500Meters) | G71: 1 | H71: 15000 | I71: 5 | J71: 1000 | K71: 1 | M71: 15000 | N71: 2800
C72: Stage 1C: Hardening Invitro Plantlet (Quarantine Glasshouse) | E72: Wheelbarrow | G72: 1 | H72: 5700 | I72: 5 | J72: 1000 | K72: 1 | M72: =IFERROR(G72*H72, "") -> 5700 | N72: =IFERROR(IF(K72<1,(H72-J72)/I72*K72,(H72-J72)/I72), "") -> 940
C73: Stage 1C: Hardening Invitro Plantlet (Quarantine Glasshouse) | E73: Yellow spray overall | G73: 1 | H73: 3000 | I73: 3 | J73: 0 | K73: 1 | M73: 3000 | N73: 1000
M74: 0
C75: Stage 2A.1. Virus indexing by Convectional PCR | D75: 2,3,6,9 | E75: fridge | G75: 1 | H75: 189000 | I75: 15 | J75: 0 | K75: 1 | L75: storage of reagents | M75: 189000 | N75: 12600
C76: Stage 2A.1. Virus indexing by Convectional PCR | D76: 3 | E76: PCR machines convectional | G76: 1 | H76: 936910 | I76: 10 | J76: 0 | K76: 1 | M76: 936910 | N76: 93691
C77: Stage 2A.1. Virus indexing by Convectional PCR | D77: 4 | E77: Electrophoresis tank | G77: 1 | H77: 45000 | I77: 5 | J77: 0 | K77: 1 | M77: 45000 | N77: 9000
C78: Stage 2A.1. Virus indexing by Convectional PCR | D78: 4 | E78: Power supplier | G78: 1 | H78: 130000 | I78: 15 | J78: 0 | K78: 1 | M78: 130000 | N78: 8666.666667
C79: Stage 2A.1. Virus indexing by Convectional PCR | D79: 4 | E79: Microwave | G79: 1 | H79: 15000 | I79: 5 | J79: 0 | K79: 1 | M79: 15000 | N79: 3000
C80: Stage 2A.1. Virus indexing by Convectional PCR | D80: 2.3,6,8,9 | E80: Pippetes | G80: 4 | H80: 35000 | I80: 10 | J80: 0 | K80: 1 | L80: A set of 4 for 2 labs | M80: 140000 | N80: 3500
C81: Stage 2A.1. Virus indexing by Convectional PCR | D81: 8 | E81: Beakers | G81: 10 | H81: 1300 | I81: 1 | J81: 0 | K81: 1 | M81: 13000 | N81: 1300
C82: Stage 2A.1. Virus indexing by Convectional PCR | D82: 2,2A | E82: Centrifuge 4 degree centigrades | G82: 2 | H82: 910000 | I82: 15 | J82: 0 | K82: 1 | L82: storage of reagents | M82: 1820000 | N82: 60666.66667
C83: Stage 2A.1. Virus indexing by Convectional PCR | D83: 4 | E83: Gel doc | G83: 1 | H83: 1300000 | I83: 15 | J83: 0 | K83: 1 | M83: 1300000 | N83: 86666.66667
C84: Stage 2A.1. Virus indexing by Convectional PCR | D84: 2,8 | E84: Votex Machine | G84: 1 | H84: 30000 | I84: 10 | J84: 0 | K84: 1 | M84: 30000 | N84: 3000
C85: Stage 2A.1. Virus indexing by Convectional PCR | D85: 2,8 | E85: Heating blocks | G85: 1 | H85: 72000 | I85: 15 | J85: 0 | K85: 1 | M85: 72000 | N85: 4800
C86: Stage 2A.1. Virus indexing by Convectional PCR | D86: 8 | E86: Boats | G86: 6 | J86: 0 | K86: 1 | M86: 0
C87: Stage 2A.1. Virus indexing by Convectional PCR | D87: 1,4,8 | E87: Analytical balance | G87: 1 | H87: 320000 | I87: 20 | J87: 0 | K87: 1 | M87: 320000 | N87: 16000
C88: Stage 2A.1. Virus indexing by Convectional PCR | D88: 2 | E88: ice maker | G88: 1 | H88: 520000 | I88: 20 | J88: 0 | K88: 1 | M88: 520000 | N88: 26000
C89: Stage 2A.1. Virus indexing by Convectional PCR | D89: 2,3 | E89: Micro centrifuge | G89: 1 | H89: 95290 | I89: 15 | J89: 0 | K89: 1 | M89: 95290 | N89: 6352.666667
C90: Stage 2A.1. Virus indexing by Convectional PCR | D90: 5,6 | E90: Computer | G90: 2 | H90: 100000 | I90: 5 | J90: 0 | K90: 1 | L90: One for each step; One to be used for real time PCR and the other for Report writing for all stages | M90: 200000 | N90: 20000
C91: Stage 2A.1. Virus indexing by Convectional PCR | D91: 2,8,9 | E91: Autoclaves | G91: 1 | H91: 3380000 | I91: 25 | J91: 0 | K91: 1 | M91: 3380000 | N91: 135200
C92: Stage 2A.1. Virus indexing by Convectional PCR | D92: 2,3 | E92: Biosafety Cabinets | G92: 1 | H92: 1500000 | I92: 10 | J92: 0 | K92: 1 | M92: 1500000 | N92: 150000
C93: Stage 2A.1. Virus indexing by Convectional PCR | E93: Lab cost | G93: 3 | J93: 0 | K93: 1 | M93: 0
M94: 0
C95: Stage 2A.2. Virus indexing by Real time PCR | D95: 2,3,6,9 | E95: fridge | G95: 1 | H95: 189000 | I95: 15 | J95: 0 | K95: 1 | L95: storage of reagents | M95: 189000 | N95: 12600
C96: Stage 2A.2. Virus indexing by Real time PCR | D96: 6 | E96: Real Time PCR | G96: 1 | H96: 5200000 | I96: 10 | J96: 0 | K96: 1 | M96: 5200000 | N96: 520000
C97: Stage 2A.2. Virus indexing by Real time PCR | D97: 2 | E97: Qubit | G97: 1 | H97: 1000000 | I97: 15 | J97: 0 | K97: 1 | M97: 1000000 | N97: 66666.66667
C98: Stage 2A.2. Virus indexing by Real time PCR | D98: 2.3,6,8,9 | E98: Pippetes | G98: 4 | H98: 35000 | I98: 10 | J98: 0 | K98: 1 | L98: A set of 4 for 2 labs | M98: 140000 | N98: 3500
C99: Stage 2A.2. Virus indexing by Real time PCR | D99: 2,2A | E99: Centrifuge 4 degree centigrades | G99: 2 | H99: 910000 | I99: 15 | J99: 0 | K99: 1 | L99: storage of reagents | M99: 1820000 | N99: 60666.66667
C100: Stage 2A.2. Virus indexing by Real time PCR | D100: 2,8 | E100: Votex Machine | G100: 1 | H100: 30000 | I100: 10 | J100: 0 | K100: 1 | M100: 30000 | N100: 3000
C101: Stage 2A.2. Virus indexing by Real time PCR | D101: 2,8 | E101: Heating blocks | G101: 1 | H101: 72000 | I101: 15 | J101: 0 | K101: 1 | M101: 72000 | N101: 4800
C102: Stage 2A.2. Virus indexing by Real time PCR | D102: 2 | E102: ice maker | G102: 1 | H102: 520000 | I102: 20 | J102: 0 | K102: 1 | M102: 520000 | N102: 26000
C103: Stage 2A.2. Virus indexing by Real time PCR | D103: 2,3 | E103: Micro centrifuge | G103: 1 | H103: 95290 | I103: 15 | J103: 0 | K103: 1 | M103: 95290 | N103: 6352.666667
C104: Stage 2A.2. Virus indexing by Real time PCR | D104: 5,6 | E104: Computer | G104: 2 | H104: 100000 | I104: 5 | J104: 0 | K104: 1 | L104: One for each step; One to be used for real time PCR and the other for Report writing for all stages | M104: 200000 | N104: =IFERROR(IF(K104<1,(H104-J104)/I104*K104,(H104-J104)/I104), "") -> 20000
C105: Stage 2A.2. Virus indexing by Real time PCR | D105: 2,8,9 | E105: Autoclaves | G105: 1 | H105: 3380000 | I105: 25 | J105: 0 | K105: 1 | M105: 3380000 | N105: 135200
C106: Stage 2A.2. Virus indexing by Real time PCR | D106: 2,3 | E106: Biosafety Cabinets | G106: 1 | H106: 1500000 | I106: 10 | J106: 0 | K106: 1 | M106: 1500000 | N106: 150000
C107: Stage 2A.2. Virus indexing by Real time PCR | E107: Lab cost | G107: 3 | J107: 0 | K107: 1 | M107: 0
M108: 0
C109: Stage 2A.3. Virus indexing by grafting (SETOSA) | D109: 11, 12 | E109: bucket | G109: 1 | H109: 950 | I109: 1 | K109: 1 | M109: 950 | N109: 950
C110: Stage 2A.3. Virus indexing by grafting (SETOSA) | D110: All | E110: dust coat | G110: 1 | H110: 2000 | I110: 1 | K110: 1 | M110: 2000 | N110: 2000
C111: Stage 2A.3. Virus indexing by grafting (SETOSA) | D111: All | E111: gumboats | G111: 1 | H111: 1900 | I111: 1 | K111: 1 | M111: 1900 | N111: 1900
C112: Stage 2A.3. Virus indexing by grafting (SETOSA) | D112: All | E112: watering can | G112: 1 | H112: 2500 | I112: 1 | K112: 1 | M112: 2500 | N112: 2500
C113: Stage 2A.3. Virus indexing by grafting (SETOSA) | D113: All | E113: knapsack sprayer | G113: 1 | H113: 4000 | I113: 1 | K113: 1 | M113: 4000 | N113: 4000
K114: 1 | M114: 0
C115: Stage 2A.4. Virus Indexing by ELISA | D115: 2.3,6,8,9 | E115: Micro Pippetes | G115: 4 | H115: 35000 | I115: 10 | K115: 1 | M115: 140000 | N115: 3500
C116: Stage 2A.4. Virus Indexing by ELISA | D116: 8 | E116: Beakers | G116: 10 | H116: 1300 | I116: 1 | K116: 1 | M116: 13000 | N116: 1300
C117: Stage 2A.4. Virus Indexing by ELISA | D117: 8,9 | E117: measuring cylinder | G117: 8 | H117: 3000 | I117: 1 | K117: 1 | M117: 24000 | N117: 3000
C118: Stage 2A.4. Virus Indexing by ELISA | D118: 9 | E118: Incubator | G118: 1 | H118: 200000 | I118: 15 | K118: 1 | M118: 200000 | N118: 13333.33333
C119: Stage 2A.4. Virus Indexing by ELISA | D119: 9 | E119: Elisa plate reader | G119: 1 | H119: 780000 | I119: 15 | K119: 1 | M119: 780000 | N119: 52000
C120: Stage 2A.4. Virus Indexing by ELISA | D120: 8 | E120: Magnetic hot plate Stirer | G120: 1 | H120: 80000 | I120: 15 | K120: 1 | M120: 80000 | N120: 5333.333333
C121: Stage 2A.4. Virus Indexing by ELISA | D121: 8 | E121: Boats | G121: 6 | K121: 1 | M121: 0
C122: Stage 2A.4. Virus Indexing by ELISA | D122: 1,4,8 | E122: Analytical balance | G122: 1 | H122: 320000 | I122: 20 | K122: 1 | M122: 320000 | N122: 16000
C123: Stage 2A.4. Virus Indexing by ELISA | D123: 5,6 | E123: Computer | G123: 2 | H123: 100000 | I123: 5 | K123: 1 | L123: One to be used for real time PCR and the other for Report writing for all stages | M123: 200000 | N123: 20000
C124: Stage 2A.4. Virus Indexing by ELISA | D124: 2,8,9 | E124: Autoclaves | G124: 1 | H124: 3380000 | I124: 25 | K124: 1 | M124: 3380000 | N124: 135200
C125: Stage 2A.4. Virus Indexing by ELISA | D125: 9 | E125: Orbital Shaker | G125: 1 | K125: 1 | M125: 0
C126: Stage 2A.4. Virus Indexing by ELISA | E126: Conical Flask | G126: 4 | H126: 3000 | I126: 1 | K126: 1 | M126: 12000 | N126: 3000
M127: 0
C128: 3A1: Take explant through surface sterilization & Initiation (positive) | D128: 7,9 | E128: Laminar flow | G128: 1 | H128: 800000 | I128: 20 | J128: 5000 | K128: 1 | M128: 800000 | N128: 39750
C129: 3A1: Take explant through surface sterilization & Initiation (positive) | D129: 7,9,12 | E129: Air conditioner | G129: 1 | H129: 200000 | I129: 5 | J129: 1500 | K129: 1 | M129: 200000 | N129: 39700
C130: 3A1: Take explant through surface sterilization & Initiation (positive) | D130: 5 | E130: Fridge | G130: 1 | H130: 120000 | I130: 10 | J130: 2000 | K130: 1 | M130: 120000 | N130: 11800
C131: 3A1: Take explant through surface sterilization & Initiation (positive) | D131: 5 | E131: Distiller | G131: 1 | H131: 400000 | I131: 5 | J131: 2000 | K131: 1 | M131: 400000 | N131: 79600
C132: 3A1: Take explant through surface sterilization & Initiation (positive) | D132: 7,9 | E132: Chair | G132: 1 | H132: 2000 | I132: 10 | J132: 200 | K132: 1 | M132: 2000 | N132: 180
C133: 3A1: Take explant through surface sterilization & Initiation (positive) | D133: 2,3,4,5,6,7,8,9,101,11,12,13 | E133: Laboratory coat | G133: 1 | H133: 2000 | I133: 5 | J133: 150 | K133: 1 | M133: 2000 | N133: 370
C134: 3A1: Take explant through surface sterilization & Initiation (positive) | D134: 2,3,4,5,6,7,8,9,101,11,12,13 | E134: Laboratory Sandals | G134: 1 | H134: 500 | I134: 1 | J134: 100 | K134: 1 | M134: 500 | N134: 400
C135: 3A1: Take explant through surface sterilization & Initiation (positive) | D135: 5,6,7,8,9,10,11,12,13 | E135: Jars | G135: 5 | H135: 250 | I135: 1 | J135: 50 | K135: 1 | M135: 1250 | N135: 200
C136: 3A1: Take explant through surface sterilization & Initiation (positive) | D136: 7,9 | E136: Forcep holder | G136: 2 | H136: 300 | I136: 3 | J136: 50 | K136: 1 | M136: =IFERROR(G136*H136, "") -> 600 | N136: =IFERROR(IF(K136<1,(H136-J136)/I136*K136,(H136-J136)/I136), "") -> 83.33333333
C137: 3A1: Take explant through surface sterilization & Initiation (positive) | D137: 7,9 | E137: Forcep | G137: 3 | H137: 300 | I137: 3 | J137: 50 | K137: 1 | M137: 900 | N137: 83.33333333
C138: 3A1: Take explant through surface sterilization & Initiation (positive) | D138: 1,2,3,5,6,7,9.10,11,12 | E138: Pencil | G138: 1 | H138: 50 | I138: 0.25 | J138: 0 | K138: 1 | M138: 50 | N138: 200
C139: 3A1: Take explant through surface sterilization & Initiation (positive) | D139: 2,4,5,6,7,8,9,10,11,12,13 | E139: Mopper | G139: 1 | H139: 200 | I139: 0.25 | J139: 50 | K139: 1 | M139: 200 | N139: 600
C140: 3A1: Take explant through surface sterilization & Initiation (positive) | D140: 2,4,5,6,7,8,9,10,11,12,13 | E140: Clean mopping bucket | G140: 1 | H140: 300 | I140: 0.5 | J140: 100 | K140: 1 | M140: 300 | N140: 400
C141: 3A1: Take explant through surface sterilization & Initiation (positive) | D141: 3,4,5,6,7,8,9,10,11,12,13 | E141: Bucket | G141: 1 | H141: 450 | I141: 2 | J141: 100 | K141: 1 | M141: 450 | N141: 175
C142: 3A1: Take explant through surface sterilization & Initiation (positive) | D142: 1,3,5,7,9,10,11,12,13 | E142: Note book | G142: 1 | H142: 400 | I142: 1 | J142: 0 | K142: 1 | M142: 400 | N142: 400
C143: 3A1: Take explant through surface sterilization & Initiation (positive) | D143: 1,2,3 | E143: marker pens | G143: 1 | H143: 100 | I143: 0.5 | J143: 0 | K143: 1 | M143: 100 | N143: 200
C144: 3A1: Take explant through surface sterilization & Initiation (positive) | D144: 5,6,7,8,9,101,11,12,13 | E144: Head cover | G144: 1 | H144: 200 | I144: 1 | J144: 0 | K144: 1 | M144: 200 | N144: 200
C145: 3A1: Take explant through surface sterilization & Initiation (positive) | D145: 1,2,11,12,13 | E145: Dust bin | G145: 2 | H145: 1500 | I145: 1 | J145: 300 | K145: 1 | M145: 3000 | N145: 1200
C146: 3A1: Take explant through surface sterilization & Initiation (positive) | D146: 2,3,5,6,7,8,9,10,11,12,13 | E146: Hand towels | G146: 3 | H146: 200 | I146: 1 | J146: 0 | K146: 1 | M146: 600 | N146: 200
C147: 3A1: Take explant through surface sterilization & Initiation (positive) | D147: 5,6,7,8,9,10,11 | E147: Measuring cylinders | G147: 2 | H147: 4500 | I147: 1 | J147: 300 | K147: 1 | M147: 9000 | N147: 4200
C148: 3A1: Take explant through surface sterilization & Initiation (positive) | D148: 6,9,11,12,13 | E148: Hand Sprayer | G148: 2 | H148: 400 | I148: 1 | J148: 50 | K148: 1 | M148: 800 | N148: 350
C149: 3A1: Take explant through surface sterilization & Initiation (positive) | D149: 11 | E149: PH Metre | G149: 1 | H149: 40000 | I149: 20 | J149: 2000 | K149: 1 | M149: 40000 | N149: 1900
C150: 3A1: Take explant through surface sterilization & Initiation (positive) | D150: 11 | E150: Analytical balance | G150: 1 | H150: 343000 | I150: 10 | J150: 3000 | K150: 1 | M150: 343000 | N150: 34000
C151: 3A1: Take explant through surface sterilization & Initiation (positive) | D151: 11 | E151: Autoclave | G151: 1 | H151: 700000 | I151: 20 | J151: 5000 | K151: 1 | M151: 700000 | N151: 34750
C152: 3A1: Take explant through surface sterilization & Initiation (positive) | D152: 11 | E152: Microwave | G152: 1 | H152: 10000 | I152: 5 | J152: 1500 | K152: 1 | M152: 10000 | N152: 1700
M153: 0
C154: Stage 3B: Thermotherapy and meristem tip culture | D154: 1 | E154: Computer | G154: 1 | H154: 20000 | I154: 5 | J154: 5000 | K154: 1 | L154: years | M154: 20000 | N154: 3000
C155: Stage 3B: Thermotherapy and meristem tip culture | D155: 1 | E155: Printer | G155: 1 | H155: 150 | I155: 5 | J155: 2000 | K155: 1 | M155: 150 | N155: -370
C156: Stage 3B: Thermotherapy and meristem tip culture | D156: 1 | E156: Thermotherapy chamber | G156: 1 | H156: 498000 | I156: 10 | J156: 5000 | K156: 1 | M156: 498000 | N156: 49300
C157: Stage 3B: Thermotherapy and meristem tip culture | D157: 3 | E157: Microscope (Leica) | G157: 1 | H157: 3000 | I157: 20 | J157: 2000 | K157: 1 | M157: 3000 | N157: 50
C158: Stage 3B: Thermotherapy and meristem tip culture | D158: 3 | E158: Larminar flow | G158: 1 | H158: 850000 | I158: 20 | J158: 5000 | K158: 1 | M158: 850000 | N158: 42250
C159: Stage 3B: Thermotherapy and meristem tip culture | D159: 3 | E159: Lab coats | G159: 1 | H159: 400 | I159: 5 | J159: 100 | K159: 1 | M159: 400 | N159: 60
C160: Stage 3B: Thermotherapy and meristem tip culture | D160: 3 | E160: Scapel holders | G160: 1 | H160: 250 | I160: 20 | J160: 50 | K160: 1 | M160: 250 | N160: 10
C161: Stage 3B: Thermotherapy and meristem tip culture | D161: 3 | E161: Spray bottles | G161: 1 | H161: 150 | I161: 3 | J161: 10 | K161: 1 | M161: 150 | N161: 46.66666667
C162: Stage 3B: Thermotherapy and meristem tip culture | D162: 3 | E162: Lab sandles | G162: 1 | H162: 300 | I162: 5 | J162: 50 | K162: 1 | M162: 300 | N162: 50
C163: Stage 3B: Thermotherapy and meristem tip culture | D163: 3 | E163: Bead sterilizer | G163: 1 | H163: 172000 | I163: 10 | J163: 1000 | K163: 1 | M163: 172000 | N163: 17100
C164: Stage 3B: Thermotherapy and meristem tip culture | D164: 2 | E164: PH meter | G164: 1 | H164: 40000 | I164: 20 | J164: 5000 | K164: 1 | M164: 40000 | N164: 1750
C165: Stage 3B: Thermotherapy and meristem tip culture | D165: 4 | E165: Mop | G165: 1 | H165: 200 | I165: 1 | J165: 0 | K165: 1 | M165: 200 | N165: 200
C166: Stage 3B: Thermotherapy and meristem tip culture | D166: 4 | E166: Bucket | G166: 1 | H166: 200 | I166: 3 | J166: 10 | K166: 1 | M166: 200 | N166: 63.33333333
C167: Stage 3B: Thermotherapy and meristem tip culture | D167: 2 | E167: magnetic stirrer | G167: 1 | H167: 189630 | I167: 20 | J167: 3000 | K167: 1 | M167: 189630 | N167: 9331.5
C168: Stage 3B: Thermotherapy and meristem tip culture | D168: 2 | E168: magnetic retriver | G168: 1 | H168: 1500 | I168: 10 | J168: 100 | K168: 1 | M168: 1500 | N168: 140
C169: Stage 3B: Thermotherapy and meristem tip culture | D169: 2 | E169: Test tubes | G169: 1 | H169: 200 | I169: 1 | J169: 10 | K169: 1 | M169: 200 | N169: 190
C170: Stage 3B: Thermotherapy and meristem tip culture | D170: 2 | E170: spatular | G170: 1 | H170: 100 | I170: 10 | J170: 10 | K170: 1 | M170: 100 | N170: 9
C171: Stage 3B: Thermotherapy and meristem tip culture | D171: 2 | E171: Measuring cylinder(100ml) | G171: 1 | H171: 1009 | I171: 5 | J171: 100 | K171: 1 | M171: 1009 | N171: 181.8
C172: Stage 3B: Thermotherapy and meristem tip culture | D172: 2 | E172: microwave | G172: 1 | H172: 10000 | I172: 10 | J172: 200 | K172: 1 | M172: 10000 | N172: 980
C173: Stage 3B: Thermotherapy and meristem tip culture | D173: 2 | E173: Media dispenser | G173: 1 | H173: 35910 | I173: 20 | J173: 2000 | K173: 1 | M173: 35910 | N173: 1695.5
C174: Stage 3B: Thermotherapy and meristem tip culture | D174: 3,4 | E174: Air conditioner | G174: 1 | H174: 30000 | I174: 15 | J174: 100 | K174: 1 | M174: 30000 | N174: 1993.333333
C175: Stage 3B: Thermotherapy and meristem tip culture | D175: 3 | E175: Forceps | G175: 2 | H175: 200 | I175: 10 | J175: 10 | K175: 1 | M175: 400 | N175: 19
C176: Stage 3B: Thermotherapy and meristem tip culture | D176: 2 | E176: pipette tip | G176: 1 | H176: 2 | I176: 5 | J176: 0 | K176: 1 | M176: 2 | N176: 0.4
C177: Stage 3B: Thermotherapy and meristem tip culture | D177: 2 | E177: Micropipette | G177: 1 | H177: 4000 | I177: 10 | J177: 0 | K177: 1 | M177: 4000 | N177: 400
C178: Stage 3B: Thermotherapy and meristem tip culture | D178: 2 | E178: Distiller | G178: 1 | H178: 400000 | I178: 10 | J178: 5000 | K178: 1 | M178: 400000 | N178: 39500
C179: Stage 3B: Thermotherapy and meristem tip culture | D179: 2 | E179: Autoclave | G179: 1 | H179: 700000 | I179: 10 | J179: 10000 | K179: 1 | M179: 700000 | N179: 69000
C180: Stage 3B: Thermotherapy and meristem tip culture | D180: 2 | E180: Basin | G180: 1 | H180: 100 | I180: 1 | J180: 0 | K180: 1 | M180: 100 | N180: 100
C181: Stage 3B: Thermotherapy and meristem tip culture | D181: 2 | E181: Hand towel | G181: 1 | H181: 200 | I181: 1 | J181: 0 | K181: 1 | L181: used for 6 months | M181: 200 | N181: 200
C182: Stage 3B: Thermotherapy and meristem tip culture | D182: 4 | E182: Maximum and minimum Thermometer | G182: 1 | H182: 2000 | I182: 5 | J182: 50 | K182: 1 | M182: 2000 | N182: 390
C183: Stage 3B: Thermotherapy and meristem tip culture | D183: 2 | E183: analytical balance | G183: 1 | H183: 343000 | I183: 10 | J183: 1000 | K183: 1 | M183: 343000 | N183: 34200
M184: 0
C185: Stage 3C: Hardening Invitro plantlet (After cleaning) | E185: Digital humidity and temperature meter | G185: 1 | H185: 2000 | I185: 5 | J185: 500 | K185: 1 | M185: 2000 | N185: 300
C186: Stage 3C: Hardening Invitro plantlet (After cleaning) | E186: Dust coat | G186: 1 | H186: 2000 | I186: 2 | J186: 200 | K186: 1 | M186: 2000 | N186: 900
C187: Stage 3C: Hardening Invitro plantlet (After cleaning) | E187: Footwash sponge | G187: 1 | H187: 500 | I187: 2 | J187: 0 | K187: 1 | M187: 500 | N187: 250
C188: Stage 3C: Hardening Invitro plantlet (After cleaning) | E188: Hand shovel | G188: 1 | H188: 1000 | I188: 5 | J188: 200 | K188: 1 | M188: 1000 | N188: 160
C189: Stage 3C: Hardening Invitro plantlet (After cleaning) | E189: Heavy duty Gumboots (Pair) | G189: 1 | H189: 1500 | I189: 2 | J189: 0 | K189: 1 | M189: 1500 | N189: 750
C190: Stage 3C: Hardening Invitro plantlet (After cleaning) | E190: Manual Knapsac sprayer | G190: 1 | H190: 3600 | I190: 3 | J190: 500 | K190: 1 | M190: 3600 | N190: 1033.333333
C191: Stage 3C: Hardening Invitro plantlet (After cleaning) | E191: Panga | G191: 1 | H191: 1500 | I191: 3 | J191: 300 | K191: 1 | M191: 1500 | N191: 400
C192: Stage 3C: Hardening Invitro plantlet (After cleaning) | E192: Plastic washing bowl | G192: 1 | H192: 200 | I192: 2 | J192: 50 | K192: 1 | L192: (565 x 480 x 138 mm) 100L | M192: 200 | N192: 75
C193: Stage 3C: Hardening Invitro plantlet (After cleaning) | E193: Plastic Crate (565 x 480 x 138 mm) 100L | G193: 1 | H193: 3000 | I193: 5 | J193: 500 | K193: 1 | M193: 3000 | N193: 500
C194: Stage 3C: Hardening Invitro plantlet (After cleaning) | E194: Plastic Pot (1 kg Capacity) | G194: 200 | H194: 170 | I194: 2 | J194: 20 | K194: 1 | M194: 34000 | N194: 75
C195: Stage 3C: Hardening Invitro plantlet (After cleaning) | E195: Plastic Spray bottle for misting (500ml capacity) | G195: 1 | H195: 500 | I195: 2 | J195: 50 | K195: 1 | M195: 500 | N195: 225
C196: Stage 3C: Hardening Invitro plantlet (After cleaning) | E196: Respirator | G196: 1 | H196: 1000 | I196: 1 | J196: 0 | K196: 1 | M196: 1000 | N196: 1000
C197: Stage 3C: Hardening Invitro plantlet (After cleaning) | E197: Safety googles | G197: 1 | H197: 600 | I197: 3 | J197: 50 | K197: 1 | L197: 2 for every bench; 8 for the 4 benches in the room | M197: 600 | N197: 183.3333333
C198: Stage 3C: Hardening Invitro plantlet (After cleaning) | E198: Semi-circular bent iron bars | G198: 8 | H198: 8000 | I198: 10 | J198: 200 | K198: 1 | M198: 64000 | N198: 780
C199: Stage 3C: Hardening Invitro plantlet (After cleaning) | E199: Spade | G199: 1 | H199: 1000 | I199: 5 | J199: 100 | K199: 1 | M199: 1000 | N199: 180
C200: Stage 3C: Hardening Invitro plantlet (After cleaning) | E200: Tablet (Pocket PC) | G200: 1 | H200: 50000 | I200: 3 | J200: 10000 | K200: 1 | M200: =IFERROR(G200*H200, "") -> 50000 | N200: =IFERROR(IF(K200<1,(H200-J200)/I200*K200,(H200-J200)/I200), "") -> 13333.33333
C201: Stage 3C: Hardening Invitro plantlet (After cleaning) | E201: Transparent Polythene covering sheet | G201: 1 | H201: 300 | I201: 1 | J201: 0 | K201: 1 | L201: 3/4 inch hose pipe; 50 M | M201: 300 | N201: 300
C202: Stage 3C: Hardening Invitro plantlet (After cleaning) | E202: Watering pipe | G202: 1 | H202: 15000 | I202: 5 | J202: 1000 | K202: 1 | M202: 15000 | N202: 2800
C203: Stage 3C: Hardening Invitro plantlet (After cleaning) | E203: Wheelbarrow | G203: 1 | H203: 5700 | I203: 5 | J203: 1000 | K203: 1 | M203: 5700 | N203: 940
... 995 more rows

Sheet OverheadCosts
B2: FINANCIAL MANAGEMENT- OVERHEAD COSTS
B4: *mention either unit rate (or) monthly rate for each overhead expense
B5: *If an overhead is incurred in multiple stages - enter adjust factor. Adjust factor determines share of overheads for the particular stage
G7: Unit rate | J7: Monthly rate
B8: Stage No | C8: Stage Name | D8: Step reference | E8: Particulars | F8: Category | G8: Cost per unit | H8: Quantity | I8: Unit of measure | J8: Monthly cost | K8: Adjust factor* | L8: Remarks (if any) | M8: Total cost
B9: 0 | C9: Stage 0. Sample reception and entry into database | D9: 2,3,6,7 | E9: Electricity | F9: Utilities | H9: 1 | J9: 29541 | K9: 1 | L9: Cost of electricity for the whole station is UGX 5,908,200 per year, UGX 590, 820 monthly. Sample reception usage is 5% (UGX 29,541) monthly | M9: =IF(AND(J9>0, H9>0), (J9*H9)*K9, IF(AND(G9>0, H9>0), (G9*H9)*K9, "")) -> 29541
B10: 0 | C10: Stage 0. Sample reception and entry into database | D10: 2,3,6,7 | E10: Internet | F10: Administrative Costs | H10: 1 | J10: 385 | K10: 1 | L10: Whole station uses 15mbps charged at UGX 3,850 monthly, sample reception using 10% | M10: =IF(AND(J10>0, H10>0), (J10*H10)*K10, IF(AND(G10>0, H10>0), (G10*H10)*K10, "")) -> 385
C12: Stage 1B: Establish in post entry quarantine growthroom | D12: All steps | E12: Electricity | F12: Utilities | H12: 1 | J12: 19694 | K12: 1 | L12: 5.9M spent yearly. Entire lab consumes 25% with total of 8 crops. Each crop on estimate spends approximate 4 % per annum | M12: 19694
C13: Stage 1B: Establish in post entry quarantine growthroom | E13: Water | F13: Utilities
C15: Stage 2A.1. Virus indexing by Convectional PCR | D15: 2,3,4,5,6,7,8,9 | E15: Electricity | F15: Utilities | H15: 1 | J15: 78776 | K15: 1 | L15: 5908200 yearly cost. Virology and molecular lab consumes 16 percent annually | M15: 78776
C17: Stage 2A.4. Virus Indexing by ELISA | D17: 2,3,4,5,6,7,8,9 | E17: Electricity | F17: Utilities | H17: 1 | J17: 78776 | K17: 1 | L17: 5908200 yearly cost. Virology and molecular lab consumes 16 percent annually | M17: 78776
C19: Stage 3B: Thermotherapy and meristem tip culture | D19: 1,2,3,4 | E19: Electricity | F19: Utilities | H19: 1
C20: Stage 3B: Thermotherapy and meristem tip culture | D20: 1,2,3,4 | E20: Internet | F20: Administrative Costs | H20: 1 | J20: 192.5 | K20: 1 | L20: Whole station uses 15mbps charged at UGX 3,850 monthly, Hardening and quarantine glasshouse using 5% | M20: 192.5
C21: Stage 3B: Thermotherapy and meristem tip culture | D21: 1,2,3,4 | E21: Repair and maintenance | F21: Facility Costs | H21: 1 | J21: 50000 | K21: 1 | M21: 50000
C23: Stage 3D: Transfer to growth room for multiplication and sub-culturing | E23: electricity | F23: Utilities | H23: 1 | J23: 250000 | K23: 1 | M23: 250000
C24: Stage 3D: Transfer to growth room for multiplication and sub-culturing | E24: water | F24: Utilities | H24: 1 | J24: 50000 | K24: 1 | M24: 50000
C25: Stage 3D: Transfer to growth room for multiplication and sub-culturing | E25: Internet access | F25: Administrative Costs | H25: 1 | J25: 10000 | K25: 1 | M25: 10000
C27: Stage 4B: Distribute in vitro plantlets | E27: Inspection fee | F27: Miscellaneous | G27: 1200 | H27: 1 | K27: 1 | L27: UGX 1,200 paid per consignment | M27: 1200
C29: Stage 4C: In vitro conservation (growth room) | E29: electricity | F29: Utilities | H29: 1 | J29: 250000 | K29: 1 | M29: 250000
C30: Stage 4C: In vitro conservation (growth room) | E30: water | F30: Utilities | H30: 1 | J30: 50000 | K30: 1 | M30: 50000
C31: Stage 4C: In vitro conservation (growth room) | E31: Internet access | F31: Administrative Costs | H31: 1 | J31: 10000 | K31: 1 | M31: 10000
C33: Stage 5C: Distribute cuttings (15cm) | E33: Inspection fee | F33: Marketing and Advertising Costs | G33: 1200 | H33: 1 | K33: 1 | L33: UGX 1,200 paid per consignment | M33: 1200
M36: =IF(AND(J36>0, H36>0), (J36*H36)*K36, IF(AND(G36>0, H36>0), (G36*H36)*K36, "")) -> 
M74: =IF(AND(J74>0, H74>0), (J74*H74)*K74, IF(AND(G74>0, H74>0), (G74*H74)*K74, "")) -> 
M110: =IF(AND(J110>0, H110>0), (J110*H110)*K110, IF(AND(G110>0, H110>0), (G110*H110)*K110, "")) -> 
M140: =IF(AND(J140>0, H140>0), (J140*H140)*K140, IF(AND(G140>0, H140>0), (G140*H140)*K140, "")) -> 
M204: =IF(AND(J204>0, H204>0), (J204*H204)*K204, IF(AND(G204>0, H204>0), (G204*H204)*K204, "")) -> 
M268: =IF(AND(J268>0, H268>0), (J268*H268)*K268, IF(AND(G268>0, H268>0), (G268*H268)*K268, "")) -> 
M332: =IF(AND(J332>0, H332>0), (J332*H332)*K332, IF(AND(G332>0, H332>0), (G332*H332)*K332, "")) -> 
M396: =IF(AND(J396>0, H396>0), (J396*H396)*K396, IF(AND(G396>0, H396>0), (G396*H396)*K396, "")) -> 
M460: =IF(AND(J460>0, H460>0), (J460*H460)*K460, IF(AND(G460>0, H460>0), (G460*H460)*K460, "")) -> 
M524: =IF(AND(J524>0, H524>0), (J524*H524)*K524, IF(AND(G524>0, H524>0), (G524*H524)*K524, "")) -> 
M588: =IF(AND(J588>0, H588>0), (J588*H588)*K588, IF(AND(G588>0, H588>0), (G588*H588)*K588, "")) -> 
M652: =IF(AND(J652>0, H652>0), (J652*H652)*K652, IF(AND(G652>0, H652>0), (G652*H652)*K652, "")) -> 
M716: =IF(AND(J716>0, H716>0), (J716*H716)*K716, IF(AND(G716>0, H716>0), (G716*H716)*K716, "")) -> 
M780: =IF(AND(J780>0, H780>0), (J780*H780)*K780, IF(AND(G780>0, H780>0), (G780*H780)*K780, "")) -> 
M844: =IF(AND(J844>0, H844>0), (J844*H844)*K844, IF(AND(G844>0, H844>0), (G844*H844)*K844, "")) -> 
M908: =IF(AND(J908>0, H908>0), (J908*H908)*K908, IF(AND(G908>0, H908>0), (G908*H908)*K908, "")) -> 
M972: =IF(AND(J972>0, H972>0), (J972*H972)*K972, IF(AND(G972>0, H972>0), (G972*H972)*K972, "")) -> 
M1022: =SUM(M9:M1021) -> 879764.5
K1025: Totals | L1025: =ChoiceList!AB2 -> Administrative Costs | M1025: =SUMIF(F9:F1021, L1025, M9:M1021) -> 20577.5
L1026: =ChoiceList!AB3 -> Facility Costs | M1026: =SUMIF(F9:F1021, L1026, M9:M1021) -> 50000
L1027: =ChoiceList!AB4 -> Utilities | M1027: =SUMIF(F9:F1021, L1027, M9:M1021) -> 806787
L1028: =ChoiceList!AB5 -> Marketing and Advertising Costs | M1028: =SUMIF(F9:F1021, L1028, M9:M1021) -> 1200
L1029: =ChoiceList!AB6 -> Miscellaneous | M1029: =SUMIF(F9:F1021, L1029, M9:M1021) -> 1200

Sheet Sales Projections
B2: FINANCIAL MANAGEMENT- SALES PROJECTIONS
F4: Financial Year Starts | G4: January | H4: 2025
B5: Sales projections for the first year (Year 1)
B6: Product Name | C6: Selling Price (Year 1) Autogenerated based on sales record | D6: Selling Price (Year 1) Enter own value if different from the autogenerated value) | E6: Unit of Sales | F6: Assumed sales growth rate (YOY) | G6: Sales Quantities (Year 1) | S6: Comments | T6: Total Products
G7: =DATEVALUE(CONCATENATE(1, "-", G4, "-", H4)) -> 2025-01-01 | H7: =EDATE(G7, 1) -> 2025-02-01 | I7: 2025-03-01 | J7: 2025-04-01 | K7: 2025-05-01 | L7: 2025-06-01 | M7: 2025-07-01 | N7: 2025-08-01 | O7: 2025-09-01 | P7: 2025-10-01 | Q7: 2025-11-01 | R7: 2025-12-01
A8: 1 | B8: =IF(LEN(Background!D46) > 1, Background!D46, "") -> Cleaning of varieties (disease elimination) | C8: =IFERROR(IF('Full Report'!F157 > 0, 'Full Report'!F157*(1+'Full Report'!F158), ""), "") -> 9458.70672 | F8: 0.1 | G8: 140 | H8: 145 | I8: 125 | J8: 142 | K8: 150 | L8: 160 | M8: 122 | N8: 165 | O8: 135 | P8: 150 | Q8: 90 | R8: 280 | T8: =SUM(G8:R8) -> 1804
A9: 2 | B9: =IF(LEN(Background!D48) > 1, Background!D48, "") -> Multiplication of cleaned varieties | C9: =IFERROR(IF('Full Report'!H157 > 0, 'Full Report'!H157*(1+'Full Report'!H158), ""), "") ->  | D9: 1500 | F9: 0.15 | G9: 25 | H9: 20 | I9: 19 | J9: 30 | K9: 21 | L9: 35 | M9: 35 | N9: 28 | O9: 25 | P9: 35 | Q9: 40 | R9: 45 | T9: 358
A10: 3 | B10: =IF(LEN(Background!D50) > 1, Background!D50, "") -> Disease Diagnostics | C10: =IFERROR(IF('Full Report'!J157 > 0, 'Full Report'!J157*(1+'Full Report'!J158), ""), "") ->  | T10: =SUM(G10:R10) -> 0
A11: 4 | B11: =IF(LEN(Background!D52) > 1, Background!D52, "") -> Diagnostics sequencing | C11: =IFERROR(IF('Full Report'!L157 > 0, 'Full Report'!L157*(1+'Full Report'!L158), ""), "") ->  | T11: =SUM(G11:R11) -> 0
A12: 5 | B12: =IF(LEN(Background!D54) > 1, Background!D54, "") -> Genotyping | C12: =IFERROR(IF('Full Report'!N157 > 0, 'Full Report'!N157*(1+'Full Report'!N158), ""), "") -> 
A13: 6 | B13: =IF(LEN(Background!D56) > 1, Background!D56, "") -> Training/ capacity building (Indexing/ cleaning, seed/ multiplication, seed/ screenhouse/ Tissue Culture) | C13: =IFERROR(IF('Full Report'!P157 > 0, 'Full Report'!P157*(1+'Full Report'!P158), ""), "") ->  | T13: 0
A14: 7 | B14: =IF(LEN(Background!D58) > 1, Background!D58, "") -> Management training (Seed Entrepreneurship) | C14: =IFERROR(IF('Full Report'!R157 > 0, 'Full Report'!R157*(1+'Full Report'!R158), ""), "") ->  | T14: 0
A15: 8 | B15: =IF(LEN(Background!D60) > 1, Background!D60, "") -> Conservation (Multiplication of conserved varieties) | C15: =IFERROR(IF('Full Report'!T157 > 0, 'Full Report'!T157*(1+'Full Report'!T158), ""), "") ->  | T15: 0
A16: 9 | B16: =IF(LEN(Background!D62) > 1, Background!D62, "") -> Facilities for Research (PhD Students, postdocs, scientists) | C16: =IFERROR(IF('Full Report'!V157 > 0, 'Full Report'!V157*(1+'Full Report'!V158), ""), "") ->  | T16: 0
A17: 10 | B17: =IF(LEN(Background!D64) > 1, Background!D64, "") -> Delivery of cleaned materials | C17: =IFERROR(IF('Full Report'!X157 > 0, 'Full Report'!X157*(1+'Full Report'!X158), ""), "") ->  | T17: =SUM(G17:R17) -> 0
A18: 11 | B18: =IF(LEN(Background!D66) > 1, Background!D66, "") -> Diagnostics sequencing | C18: =IFERROR(IF('Full Report'!Z157 > 0, 'Full Report'!Z157*(1+'Full Report'!Z158), ""), "") ->  | T18: =SUM(G18:R18) -> 0
A19: 12 | B19: =IF(LEN(Background!D68) > 1, Background!D68, "") -> Advisory services (marketing advisory, value addition advisory) | C19: =IFERROR(IF('Full Report'!AB157 > 0, 'Full Report'!AB157*(1+'Full Report'!AB158), ""), "") ->  | T19: 0
A20: 13 | B20: =IF(LEN(Background!D70) > 1, Background!D70, "") ->  | T20: 0
A21: 14 | B21: =IF(LEN(Background!D72) > 1, Background!D72, "") ->  | T21: 0
A22: 15 | B22: =IF(LEN(Background!D74) > 1, Background!D74, "") ->  | T22: 0

Sheet Parameters
B2: BUSINESS PARAMETERS
B4: Sales Assumptions
B6: Cost Assumptions | C6: Profit Margin (over cost)--- % | D6: 0.2
C7: Tax rates (%) | D7: 0.15
C8: PE Multiplier | D8: 5
B10: Capital Structure | C10: Particulars | D10: Proposed | E10: Required | F10: Shortfall/ Surplus | G10: Note
C11: Share capital (Equity) | D11: 12500000 | E11: =F87 -> 5275050 | F11: =D11-E11 -> 7224950 | G11: =IF(F11 = 0, "Perfect Match", IF(F11 > 0, "Surplus", IF(F11 < 0, "Shortfall", ""))) -> Surplus
C12: No of shares | D12: 125000
C13: Price per share | D13: 100
C14: Share of A | D14: 0.4
C15: Share of B | D15: 0.6
C16: Total Debt | D16: =SUM(D17:D19) -> 1850000 | E16: =F90 -> 1318762.5 | F16: =D16-E16 -> 531237.5 | G16: =IF(F16 = 0, "Perfect Match", IF(F16 > 0, "Surplus", IF(F16 < 0, "Shortfall", ""))) -> Surplus
C17: Long term debt | D17: 1200000
C18: Short term debt | D18: 500000
C19: Working capital loan | D19: 150000
C20: Total Capital | D20: =D11+D16 -> 14350000 | E20: =F90+F93 -> 5275050 | F20: =D20-E20 -> 9074950 | G20: =IF(F20 = 0, "Perfect Match", IF(F20 > 0, "Surplus", IF(F20 < 0, "Shortfall", ""))) -> Surplus
B22: Loan type | C22: Interest rate | D22: Interest per annum#
B23: Long term debt | C23: 0.12 | D23: =D17*C23 -> 144000
B24: Short term debt | C24: 0.15 | D24: =D18*C24 -> 75000
B25: Working capital debt | C25: 0.18 | D25: =D19*C25 -> 27000
D26: =SUM(D23:D25) -> 246000
B28: Valuation Assumptions | C28: Discount rate | D28: 0.12
C29: Growth rate | D29: 0.05
B32: INITIAL CAPITAL REQUIREMENTS
B34: ASSETS REQUIRED
B35: Asset Description | C35: Quantity | D35: Unit of Measure | E35: Unit Cost | F35: Total Cost
B36: Computers | C36: 5 | D36: Pcs | E36: 35000 | F36: =IFERROR(IF(E36>0, E36*C36, ""), "") -> 175000
B37: Office Chairs | C37: 6 | D37: Pcs | E37: 8500 | F37: 51000
B38: Office Desks | C38: 6 | D38: Pcs | E38: 5000 | F38: 30000
E49: Total | F49: =SUM(F36:F48) -> 256000
B51: WORKING CAPITAL
B52: Item Description | C52: Quantity | D52: Unit of Measure | E52: Unit Cost | F52: Total Cost
B53: Land rentals | C53: 2 | D53: Acres | E53: 12000 | F53: =IFERROR(IF(E53>0, E53*C53, ""), "") -> 24000
B54: Electricity | C54: 6 | D54: Months | E54: 750 | F54: 4500
B55: Screenhouse repairs | C55: 1 | D55: Pc | E55: 5000 | F55: 5000
E66: Total | F66: =SUM(F53:F65) -> 33500
B68: OTHER INITIAL EXPENSES
B69: Item Description | C69: Quantity | D69: Unit of Measure | E69: Unit Cost | F69: Total Cost
B70: Business Registration | C70: 1 | D70: Pc | E70: 3500 | F70: =IFERROR(IF(E70>0, E70*C70, ""), "") -> 3500
B71: Communications | C71: 1 | D71: Pc | E71: 2500 | F71: 2500
B72: Meetings & Travel Expenses | C72: 300 | D72: Pc | E72: 15000 | F72: 4500000
E83: Total | F83: =SUM(F70:F82) -> 4506000
B85: OVERALL INITIAL CAPITAL REQUIREMENT
B86: Contingency Funds | F86: =(F49+F66+F83)*10% -> 479550
B87: Total Capital Required | F87: =F49+F66+F83+F86 -> 5275050
B88: =IFERROR(IF(E88>0, E88*C88, ""), "") -> 
B89: Ratio of Equity | F89: 0.25
B90: Amount of Equity | F90: =F87*F89 -> 1318762.5
B91: =IFERROR(IF(E91>0, E91*C91, ""), "") -> 
B92: Ratio of Debt | F92: =1-F89 -> 0.75
B93: Amount of Debt | F93: =F87*F92 -> 3956287.5
B94: =IFERROR(IF(E94>0, E94*C94, ""), "") -> 
B95: =IF(F95=0, "** Thanks. The total CAPITAL RAISED properly matches with the CAPITAL REQUIRED", IF(F95> 0, "** Your total CAPITAL RAISED is more than the total CAPITAL REQUIRED by an amount of.....", "** Your total CAPITAL RAISED is less than the total CAPITAL REQUIRED by an amount of ....")) -> ** Your total CAPITAL RAISED is more than the total CAPITAL REQUIRED by an amount of..... | F95: =(D11+D17+D18+D19)-F87 -> 9074950

Sheet Partnership
B2: PARTNERSHIP MODEL
B5: PARTNERSHIP CANVAS
B7: About: | C7: Partnership Canvas is designed to help organizations map out and optimize partnerships. It focuses on identifying the key aspects of collaboration with external entities to enhance value creation, sharing resources, and improving strategic goals. If your business envisages collaborating with a key partner, then you may consider filling the following for each partner, to generate a Partnership Canvas
B12: Created Value | D12: Virus cleaning & Indexing, Disease Diagnostics, Diagnostics sequencing, Genotyping, Training facilities | F12: [What value do you need to create for your organization? This value should correlate to one of your priority areas.]
B14: Desired Asset | D14: Vehicles, Glass houses, Auto-clave machines, Computers, Cold-rooms, Solar Power | F14: [What capabilities or resources do you need from your partner?]
B16: Offered Asset | D16: Skilled technicians and support staff, Electricity, Water, Land for construction of modern facilities, Office Space | F16: [What capabilities or resources can you offer your partner in exchange?]
B18: Transfer Activity | D18: Design and deliver Joint trainings, provide access to government clearance for material import and exports, Joint administrative personnel | F18: [What activities are needed for the partners to transfer the desired assets to each other? The transfer activities should logically lead to the new value created]

Sheet Risk Management
B2: RISK MANAGEMENT
B5: RISK ASSESSMENT MATRIX
B7: A Risk Assessment Matrix is a tool used to evaluate and prioritize risks based on their likelihood and severity of impact. It helps organizations identify, assess, and manage risks systematically.
B8: Step 1: List the various potential risks that could impact your organisation Step 2: Assign likelihood and impact for each PR listed
B12: No | C12: Potential Risks (PR) What are the potential risks that could impact your organisation? | D12: Likelihood (Probability)* How likely is the risk to occur? | E12: Impact# How significant would the impact be if the risk occurs? | G12: L | H12: I | I12: Score | J12: PR
B13: 1 | C13: Fast emerging new laboratories giving fake phytosanitary services | D13: 4 = Likely | E13: 2 = Minor | G13: =IF(D13 = ChoiceList!$W$2, 1, IF(D13 = ChoiceList!$W$3, 2, IF(D13 = ChoiceList!$W$4, 3, IF(D13 = ChoiceList!$W$5, 4, IF(D13 = ChoiceList!$W$6, 5, 0))))) -> 4 | H13: =IF(E13 = ChoiceList!$X$2, 1, IF(E13 = ChoiceList!$X$3, 2, IF(E13 = ChoiceList!$X$4, 3, IF(E13 = ChoiceList!$X$5, 4, IF(E13 = ChoiceList!$X$6, 5, 0))))) -> 2 | I13: =IFERROR(G13*H13, "") -> 8 | J13: =IF(I13>0, CONCATENATE(" PR",B13), "") -> PR1
B14: 2 | C14: Many farmers prefering local varieties instead of improved ones | D14: 5 = Almost Certain | E14: 1 = Insignificant | G14: =IF(D14 = ChoiceList!$W$2, 1, IF(D14 = ChoiceList!$W$3, 2, IF(D14 = ChoiceList!$W$4, 3, IF(D14 = ChoiceList!$W$5, 4, IF(D14 = ChoiceList!$W$6, 5, 0))))) -> 5 | H14: =IF(E14 = ChoiceList!$X$2, 1, IF(E14 = ChoiceList!$X$3, 2, IF(E14 = ChoiceList!$X$4, 3, IF(E14 = ChoiceList!$X$5, 4, IF(E14 = ChoiceList!$X$6, 5, 0))))) -> 1 | I14: =IFERROR(G14*H14, "") -> 5 | J14: =IF(I14>0, CONCATENATE(" PR",B14), "") -> PR2
B15: 3 | C15: New technologies that could make VPC entrepreneurs to self test varieties using mobile apps | D15: 1 = Rare/Very Low Likelihood | E15: 5 = Catastrophic | G15: =IF(D15 = ChoiceList!$W$2, 1, IF(D15 = ChoiceList!$W$3, 2, IF(D15 = ChoiceList!$W$4, 3, IF(D15 = ChoiceList!$W$5, 4, IF(D15 = ChoiceList!$W$6, 5, 0))))) -> 1 | H15: =IF(E15 = ChoiceList!$X$2, 1, IF(E15 = ChoiceList!$X$3, 2, IF(E15 = ChoiceList!$X$4, 3, IF(E15 = ChoiceList!$X$5, 4, IF(E15 = ChoiceList!$X$6, 5, 0))))) -> 5 | I15: 5 | J15: PR3
B16: 4 | C16: Lack of effective ICT system | D16: 3 = Possible | E16: 3 = Moderate | G16: =IF(D16 = ChoiceList!$W$2, 1, IF(D16 = ChoiceList!$W$3, 2, IF(D16 = ChoiceList!$W$4, 3, IF(D16 = ChoiceList!$W$5, 4, IF(D16 = ChoiceList!$W$6, 5, 0))))) -> 3 | H16: =IF(E16 = ChoiceList!$X$2, 1, IF(E16 = ChoiceList!$X$3, 2, IF(E16 = ChoiceList!$X$4, 3, IF(E16 = ChoiceList!$X$5, 4, IF(E16 = ChoiceList!$X$6, 5, 0))))) -> 3 | I16: 9 | J16: PR4
B17: 5 | G17: =IF(D17 = ChoiceList!$W$2, 1, IF(D17 = ChoiceList!$W$3, 2, IF(D17 = ChoiceList!$W$4, 3, IF(D17 = ChoiceList!$W$5, 4, IF(D17 = ChoiceList!$W$6, 5, 0))))) -> 0 | H17: =IF(E17 = ChoiceList!$X$2, 1, IF(E17 = ChoiceList!$X$3, 2, IF(E17 = ChoiceList!$X$4, 3, IF(E17 = ChoiceList!$X$5, 4, IF(E17 = ChoiceList!$X$6, 5, 0))))) -> 0 | I17: 0
B18: 6 | G18: =IF(D18 = ChoiceList!$W$2, 1, IF(D18 = ChoiceList!$W$3, 2, IF(D18 = ChoiceList!$W$4, 3, IF(D18 = ChoiceList!$W$5, 4, IF(D18 = ChoiceList!$W$6, 5, 0))))) -> 0 | H18: =IF(E18 = ChoiceList!$X$2, 1, IF(E18 = ChoiceList!$X$3, 2, IF(E18 = ChoiceList!$X$4, 3, IF(E18 = ChoiceList!$X$5, 4, IF(E18 = ChoiceList!$X$6, 5, 0))))) -> 0 | I18: 0
B19: 7 | G19: =IF(D19 = ChoiceList!$W$2, 1, IF(D19 = ChoiceList!$W$3, 2, IF(D19 = ChoiceList!$W$4, 3, IF(D19 = ChoiceList!$W$5, 4, IF(D19 = ChoiceList!$W$6, 5, 0))))) -> 0 | H19: =IF(E19 = ChoiceList!$X$2, 1, IF(E19 = ChoiceList!$X$3, 2, IF(E19 = ChoiceList!$X$4, 3, IF(E19 = ChoiceList!$X$5, 4, IF(E19 = ChoiceList!$X$6, 5, 0))))) -> 0 | I19: 0
B20: 8 | G20: =IF(D20 = ChoiceList!$W$2, 1, IF(D20 = ChoiceList!$W$3, 2, IF(D20 = ChoiceList!$W$4, 3, IF(D20 = ChoiceList!$W$5, 4, IF(D20 = ChoiceList!$W$6, 5, 0))))) -> 0 | H20: =IF(E20 = ChoiceList!$X$2, 1, IF(E20 = ChoiceList!$X$3, 2, IF(E20 = ChoiceList!$X$4, 3, IF(E20 = ChoiceList!$X$5, 4, IF(E20 = ChoiceList!$X$6, 5, 0))))) -> 0 | I20: 0
B21: 9 | G21: =IF(D21 = ChoiceList!$W$2, 1, IF(D21 = ChoiceList!$W$3, 2, IF(D21 = ChoiceList!$W$4, 3, IF(D21 = ChoiceList!$W$5, 4, IF(D21 = ChoiceList!$W$6, 5, 0))))) -> 0 | H21: =IF(E21 = ChoiceList!$X$2, 1, IF(E21 = ChoiceList!$X$3, 2, IF(E21 = ChoiceList!$X$4, 3, IF(E21 = ChoiceList!$X$5, 4, IF(E21 = ChoiceList!$X$6, 5, 0))))) -> 0 | I21: 0
B22: 10 | G22: =IF(D22 = ChoiceList!$W$2, 1, IF(D22 = ChoiceList!$W$3, 2, IF(D22 = ChoiceList!$W$4, 3, IF(D22 = ChoiceList!$W$5, 4, IF(D22 = ChoiceList!$W$6, 5, 0))))) -> 0 | H22: =IF(E22 = ChoiceList!$X$2, 1, IF(E22 = ChoiceList!$X$3, 2, IF(E22 = ChoiceList!$X$4, 3, IF(E22 = ChoiceList!$X$5, 4, IF(E22 = ChoiceList!$X$6, 5, 0))))) -> 0 | I22: 0
B23: 11 | G23: =IF(D23 = ChoiceList!$W$2, 1, IF(D23 = ChoiceList!$W$3, 2, IF(D23 = ChoiceList!$W$4, 3, IF(D23 = ChoiceList!$W$5, 4, IF(D23 = ChoiceList!$W$6, 5, 0))))) -> 0 | H23: =IF(E23 = ChoiceList!$X$2, 1, IF(E23 = ChoiceList!$X$3, 2, IF(E23 = ChoiceList!$X$4, 3, IF(E23 = ChoiceList!$X$5, 4, IF(E23 = ChoiceList!$X$6, 5, 0))))) -> 0 | I23: 0
B24: 12 | G24: =IF(D24 = ChoiceList!$W$2, 1, IF(D24 = ChoiceList!$W$3, 2, IF(D24 = ChoiceList!$W$4, 3, IF(D24 = ChoiceList!$W$5, 4, IF(D24 = ChoiceList!$W$6, 5, 0))))) -> 0 | H24: =IF(E24 = ChoiceList!$X$2, 1, IF(E24 = ChoiceList!$X$3, 2, IF(E24 = ChoiceList!$X$4, 3, IF(E24 = ChoiceList!$X$5, 4, IF(E24 = ChoiceList!$X$6, 5, 0))))) -> 0 | I24: 0
B25: 13 | G25: =IF(D25 = ChoiceList!$W$2, 1, IF(D25 = ChoiceList!$W$3, 2, IF(D25 = ChoiceList!$W$4, 3, IF(D25 = ChoiceList!$W$5, 4, IF(D25 = ChoiceList!$W$6, 5, 0))))) -> 0 | H25: =IF(E25 = ChoiceList!$X$2, 1, IF(E25 = ChoiceList!$X$3, 2, IF(E25 = ChoiceList!$X$4, 3, IF(E25 = ChoiceList!$X$5, 4, IF(E25 = ChoiceList!$X$6, 5, 0))))) -> 0 | I25: 0
B26: 14 | G26: =IF(D26 = ChoiceList!$W$2, 1, IF(D26 = ChoiceList!$W$3, 2, IF(D26 = ChoiceList!$W$4, 3, IF(D26 = ChoiceList!$W$5, 4, IF(D26 = ChoiceList!$W$6, 5, 0))))) -> 0 | H26: =IF(E26 = ChoiceList!$X$2, 1, IF(E26 = ChoiceList!$X$3, 2, IF(E26 = ChoiceList!$X$4, 3, IF(E26 = ChoiceList!$X$5, 4, IF(E26 = ChoiceList!$X$6, 5, 0))))) -> 0 | I26: 0
B27: 15 | G27: =IF(D27 = ChoiceList!$W$2, 1, IF(D27 = ChoiceList!$W$3, 2, IF(D27 = ChoiceList!$W$4, 3, IF(D27 = ChoiceList!$W$5, 4, IF(D27 = ChoiceList!$W$6, 5, 0))))) -> 0 | H27: =IF(E27 = ChoiceList!$X$2, 1, IF(E27 = ChoiceList!$X$3, 2, IF(E27 = ChoiceList!$X$4, 3, IF(E27 = ChoiceList!$X$5, 4, IF(E27 = ChoiceList!$X$6, 5, 0))))) -> 0 | I27: 0
B28: 16 | G28: =IF(D28 = ChoiceList!$W$2, 1, IF(D28 = ChoiceList!$W$3, 2, IF(D28 = ChoiceList!$W$4, 3, IF(D28 = ChoiceList!$W$5, 4, IF(D28 = ChoiceList!$W$6, 5, 0))))) -> 0 | H28: =IF(E28 = ChoiceList!$X$2, 1, IF(E28 = ChoiceList!$X$3, 2, IF(E28 = ChoiceList!$X$4, 3, IF(E28 = ChoiceList!$X$5, 4, IF(E28 = ChoiceList!$X$6, 5, 0))))) -> 0 | I28: 0
B29: 17 | G29: =IF(D29 = ChoiceList!$W$2, 1, IF(D29 = ChoiceList!$W$3, 2, IF(D29 = ChoiceList!$W$4, 3, IF(D29 = ChoiceList!$W$5, 4, IF(D29 = ChoiceList!$W$6, 5, 0))))) -> 0 | H29: =IF(E29 = ChoiceList!$X$2, 1, IF(E29 = ChoiceList!$X$3, 2, IF(E29 = ChoiceList!$X$4, 3, IF(E29 = ChoiceList!$X$5, 4, IF(E29 = ChoiceList!$X$6, 5, 0))))) -> 0 | I29: 0
B30: 18 | G30: =IF(D30 = ChoiceList!$W$2, 1, IF(D30 = ChoiceList!$W$3, 2, IF(D30 = ChoiceList!$W$4, 3, IF(D30 = ChoiceList!$W$5, 4, IF(D30 = ChoiceList!$W$6, 5, 0))))) -> 0 | H30: =IF(E30 = ChoiceList!$X$2, 1, IF(E30 = ChoiceList!$X$3, 2, IF(E30 = ChoiceList!$X$4, 3, IF(E30 = ChoiceList!$X$5, 4, IF(E30 = ChoiceList!$X$6, 5, 0))))) -> 0 | I30: 0
B31: 19 | G31: =IF(D31 = ChoiceList!$W$2, 1, IF(D31 = ChoiceList!$W$3, 2, IF(D31 = ChoiceList!$W$4, 3, IF(D31 = ChoiceList!$W$5, 4, IF(D31 = ChoiceList!$W$6, 5, 0))))) -> 0 | H31: =IF(E31 = ChoiceList!$X$2, 1, IF(E31 = ChoiceList!$X$3, 2, IF(E31 = ChoiceList!$X$4, 3, IF(E31 = ChoiceList!$X$5, 4, IF(E31 = ChoiceList!$X$6, 5, 0))))) -> 0 | I31: 0
B32: 20 | G32: =IF(D32 = ChoiceList!$W$2, 1, IF(D32 = ChoiceList!$W$3, 2, IF(D32 = ChoiceList!$W$4, 3, IF(D32 = ChoiceList!$W$5, 4, IF(D32 = ChoiceList!$W$6, 5, 0))))) -> 0 | H32: =IF(E32 = ChoiceList!$X$2, 1, IF(E32 = ChoiceList!$X$3, 2, IF(E32 = ChoiceList!$X$4, 3, IF(E32 = ChoiceList!$X$5, 4, IF(E32 = ChoiceList!$X$6, 5, 0))))) -> 0 | I32: 0

Sheet User Guide
B2: BID Information capture flow
B4: Steps | C4: Inputs | D4: Information to be obtained | E4: Outputs | F4: Remarks | G4: Teams involved
B5: Workflow | C5: Stages | D5: Users to identify and elaborate stages, provide linkages between stages | E5: Workflow Customer segments | F5: Detailed instructions included for user to capture the stages | G5: Operations HR
B6: Costs | C6: 1. Variable costs 2. Fixed costs | D6: Users to provide (in addition to costs) : Assets useful life, Labour hours etc. | E6: Cost per unit Price per unit Cost per stage (various costs) | F6: Glossary to be included - elaborate on various cost terms | G6: Operations Finance & Accounts
B7: Revenue computations | C7: Sales projections | D7: Users to guestimate customer segment wise sales projection | E7: Profit and Loss (projections) | G7: Senior Management Finance & Accounts
B8: Financial statements | C8: 1. Assets & Depreciation 2. Liabilities | D8: Users to list assets, liabilities and ownership structure | E8: Balance sheet (projections) | F8: 1. If capital structure not clear - may assume industry standard DE ratio 2. Tutorial on capital structure and ownership can be included | G8: Senior Management Finance & Accounts Operations
B9: FS Analysis | C9: FS assumptions | D9: NA (can be automatically calculated based on above inputs) | E9: FS Analysis measures - profitability, liquidity, efficiency and sensitivity analyses | F9: Tutorial on FS analysis and measures to be included | G9: Senior Management Finance & Accounts
B10: Capital structure | C10: Capital structure | D10: NA (can be automatically calculated based on above inputs) | E10: Capital structure analysis - Solvency measures, Coverage ratios, Capitalisation ratios | G10: Senior Management
B11: Targets | C11: Targets (budgets) | D11: Users may list cost budgets, material budgets, labour budgets and income targets | E11: Budgeting - Material budget, Labour budget, Overheads budget, S&A budget, Sales budget/target, Production budget | F11: Several budget types can be calculated related to labour, material, overheads etc. (optional modules) | G11: Senior Management Finance & Accounts
B12: Valuation | C12: Valuation assumptions | D12: Users to mention discount rates, opportunity costs etc. | E12: Valuation - Asset based, Income based, market based and other types | F12: A brief introduction/tutorial to valuation methods and terminology can be included in tutorial section | G12: Senior Management
B14: *Detailed instructions to be included in each stage for users assistance
B15: *Glossary and tutorials to be also integrated
A18: Workflow
B19: Business workflow
B20: (Kindly follow the below mentioned prompts. Read the instructions carefully and fill in the box below)
B22: Prompts | E22: Instructions
B23: 1. List all the stages that you conduct relating to Product A | E23: Attempt to capture the stages in a chronological order. | H23: Number each stage starting from "1" in column (1)
B24: 2. Establish linkages between the stages using the following linkage instructions | E24: There are eight possible linkages between any of the stages. They are as follows: 1. First stage (FS) - Use this option to indicate the first stage of the process. 2. Next Stage (NS) - Use this option to indicate next linear stage in the process. 3. Next - Intermediary stage (IS) - Use this option to indicate if there is an intermediary stage (Such as positive or negative test result). 4. Next - Bypass Stage (BS) - Use this option to indicate if an stage is bypassed post this stage. 5. Next - Split Stage (SS) - Use this option to indicate if a stage splits into two stages. 6. Mirror Stage (MS): Use this option to indicate if a stage goes back and forth with respect to other stage. 7. Return Stage (RS) : Use this option to indicate if this stage returns to any of the earlier mentioned stage 8. End Stage (ES): If a process ends, use ES to represent it. | H24: 1. FS - Please provide where it reaches to in the column (5) 2. NS - Please provide where it reaches to in the column (5) 3. IS - Please provide which stage it bypasses in column (5) and which stage it reaches in column (6) 4. BS - Please provide which stage it bypasses in column (5) and which stage it reaches in column (6) 5. SS - Please provide which two stages it splits into in column (5) and (6) 6. MS - Please provide which stage this mirrors to in column (5) 7. RS - Please provide which stage this stage returns to in column (5) 8. ES - You need not fill anything as the stages end here.

Sheet ChoiceList
A1: Countries | B1: Sectors | C1: Current Products & Services | D1: Products | E1: Staff Roles | F1: Products & Services desired by customers | G1: Customers | H1: Customer Profiles | K1: Stage Linkage Types | L1: Workflow Stages | M1: End Stages | N1: Time Unit and conversion to Minutes | S1: Months | U1: Years (next 5) | V1: Business Types | W1: Risk Likelihood | X1: Risk Impact | Y1: Variable Cost Categories | Z1: Labour Cost Categories | AA1: Asset categories | AB1: Overhead Cost Categories
A2: Uganda | B2: Agriculture | C2: ALL | D2: TC Plantlets | E2: Not Applicable | F2: ALL | G2: ALL | H2: Category | I2: Details | J2: No | K2: First Stage (FS) | L2: End/Final Stage | M2: Virus indexing and cleaning | N2: Unit | O2: Qty | P2: Other | Q2: Total Minutes | R2: Note | S2: January | T2: 1 | U2: =YEAR(TODAY()) -> 2025 | V2: B2B (Business to Business) | W2: 1 = Rare/Very Low Likelihood | X2: 1 = Insignificant | Y2: Raw materials | Z2: Direct Labour | AA2: Fixed Assets | AB2: Administrative Costs
A3: Kenya | B3: Manufacturing | C3: =TRIM(Background!D46) -> Cleaning of varieties (disease elimination) | D3: Pre-basic Seed | E3: =TRIM(Background!F79) -> Country Manager | F3: =TRIM('Business Model'!D11) -> Cleaning of varieties (disease elimination) | G3: =TRIM(Background!D124) -> NARES | H3: CUSTOMER JOBS | I3: =CONCATENATE(IF(LEN('Business Model'!D11) > 0, CONCATENATE("1. ", 'Business Model'!D11), ""), IF(LEN('Business Model'!D13) > 0, CONCATENATE("; 2. ", 'Business Model'!D13), ""), IF(LEN('Business Model'!D15) > 0, CONCATENATE("; 3. ", 'Business Model'!D15), ""), IF(LEN('Business Model'!D17) > 0, CONCATENATE("; 4. ", 'Business Model'!D17), ""), IF(LEN('Business Model'!D19) > 0, CONCATENATE("; 5. ", 'Business Model'!D19), ""), IF(LEN('Business Model'!D21) > 0, CONCATENATE("; 6. ", 'Business Model'!D21), ""), IF(LEN('Business Model'!D23) > 0, CONCATENATE("; 7. ", 'Business Model'!D23), ""), IF(LEN('Business Model'!D25) > 0, CONCATENATE("; 8. ", 'Business Model'!D25), ""), IF(LEN('Business Model'!D27) > 0, CONCATENATE("; 9. ", 'Business Model'!D27), ""), IF(LEN('Business Model'!D29) > 0, CONCATENATE("; 10. ", 'Business Model'!D29), ""), IF(LEN('Business Model'!D31) > 0, CONCATENATE("; 11. ", 'Business Model'!D31), ""), IF(LEN('Business Model'!D33) > 0, CONCATENATE("; 12. ", 'Business Model'!D33), ""), IF(LEN('Business Model'!D35) > 0, CONCATENATE("; 13. ", 'Business Model'!D35), ""), IF(LEN('Business Model'!D37) > 0, CONCATENATE("; 14. ", 'Business Model'!D37), ""), IF(LEN('Business Model'!D39) > 0, CONCATENATE("; 15. ", 'Business Model'!D39), "")) -> 1. Cleaning of varieties (disease elimination); 2. Multiplication of cleaned varieties; 3. Disease Diagnostics; 4. Multiplying conserved varieties; 5. Genotyping; 6. Training/ capacity building (Indexing/ cleaning, seed/ multiplication, seed/ screenhouse/ Tissue Culture); 7. Management training (Seed Entrepreneurship); 8. Conservation (Multiplication of conserved varieties); 9. Facilities for Research (PhD Students, postdocs, scientists); 10. Delivery of cleaned materials; 11. Diagnostics sequencing; 12. Advisory services (marketing advisory, value addition advisory) | J3: 1 | K3: Next Stage (NS) | L3: Not Applicable | M3: Diagnostics | N3: Seconds | O3: 1 | Q3: =O3/60 -> 0.01666666667 | S3: February | T3: 2 | U3: =U2+1 -> 2026 | V3: B2C (Business to Consumer) | W3: 2 = Unlikely | X3: 2 = Minor | Y3: Consumables | Z3: Indirect Labour | AA3: Current Assets | AB3: Facility Costs
A4: Tanzania | B4: Services | C4: =TRIM(Background!D48) -> Multiplication of cleaned varieties | D4: Basic Seed | E4: =TRIM(Background!F81) -> Administrative Assistant | F4: =TRIM('Business Model'!D13) -> Multiplication of cleaned varieties | G4: =TRIM(Background!D126) -> Local Governments | H4: CUSTOMER PAINS | I4: =CONCATENATE(IF(LEN('Business Model'!D47) > 0, CONCATENATE("1. ", 'Business Model'!D47), ""), IF(LEN('Business Model'!D53) > 0, CONCATENATE("; 2. ", 'Business Model'!D53), ""), IF(LEN('Business Model'!D60) > 0, CONCATENATE("; 3. ", 'Business Model'!D60), ""), IF(LEN('Business Model'!D67) > 0, CONCATENATE("; 4. ", 'Business Model'!D67), ""), IF(LEN('Business Model'!D73) > 0, CONCATENATE("; 5. ", 'Business Model'!D73), ""), IF(LEN('Business Model'!D79) > 0, CONCATENATE("; 6. ", 'Business Model'!D79), ""), IF(LEN('Business Model'!D85) > 0, CONCATENATE("; 7. ", 'Business Model'!D85), ""), IF(LEN('Business Model'!D91) > 0, CONCATENATE("; 8. ", 'Business Model'!D91), ""), IF(LEN('Business Model'!D97) > 0, CONCATENATE("; 9. ", 'Business Model'!D97), ""), IF(LEN('Business Model'!D103) > 0, CONCATENATE("; 10. ", 'Business Model'!D103), ""), IF(LEN('Business Model'!D109) > 0, CONCATENATE("; 11. ", 'Business Model'!D109), ""), IF(LEN('Business Model'!D115) > 0, CONCATENATE("; 12. ", 'Business Model'!D115), ""), IF(LEN('Business Model'!D121) > 0, CONCATENATE("; 13. ", 'Business Model'!D121), ""), IF(LEN('Business Model'!D127) > 0, CONCATENATE("; 14. ", 'Business Model'!D127), ""), IF(LEN('Business Model'!D133) > 0, CONCATENATE("; 15. ", 'Business Model'!D133), "")) -> 1. Expensive cleaning and testing; 2. Limited availability/ accessibility of cleaned seeds of preferred varieties (landrace, improved varieties); 3. Lack of support for distribution for the late stage breeding materials; 4. Non availability of research facilities; 5. Low yields/incomes; 6. Unviable farming; 7. Incurs loss in farming/seed business; 8. Mixing of varieties | J4: 1 | K4: Next- Intermediary Stage (IS) | L4: =IF(LEN(TRIM(Operations!C11))> 0, TRIM(Operations!C11), "") -> Stage 0. Sample reception and entry into database | N4: Minutes | O4: 1 | Q4: 1 | S4: March | T4: 3 | U4: =U3+1 -> 2027 | V4: B2G (Business to Government) | W4: 3 = Possible | X4: 3 = Moderate | Y4: Maintenance/ supplies | Z4: Contractual/ Temporary Labour | AA4: Intangible Assets | AB4: Utilities
A5: Bangladesh | C5: =TRIM(Background!D50) -> Disease Diagnostics | D5: Apical Cuttings (RACs) | E5: =TRIM(Background!F83) -> Lab Technician | F5: =TRIM('Business Model'!D15) -> Disease Diagnostics | G5: =TRIM(Background!D128) -> CGIAR Centers | H5: CUSTOMER GAINS | I5: =CONCATENATE(IF(LEN('Business Model'!D144) > 0, CONCATENATE("1. ", 'Business Model'!D144), ""), IF(LEN('Business Model'!D150) > 0, CONCATENATE("; 2. ", 'Business Model'!D150), ""), IF(LEN('Business Model'!D157) > 0, CONCATENATE("; 3. ", 'Business Model'!D157), ""), IF(LEN('Business Model'!D164) > 0, CONCATENATE("; 4. ", 'Business Model'!D164), ""), IF(LEN('Business Model'!D170) > 0, CONCATENATE("; 5. ", 'Business Model'!D170), ""), IF(LEN('Business Model'!D176) > 0, CONCATENATE("; 6. ", 'Business Model'!D176), ""), IF(LEN('Business Model'!D182) > 0, CONCATENATE("; 7. ", 'Business Model'!D182), ""), IF(LEN('Business Model'!D188) > 0, CONCATENATE("; 8. ", 'Business Model'!D188), ""), IF(LEN('Business Model'!D194) > 0, CONCATENATE("; 9. ", 'Business Model'!D194), ""), IF(LEN('Business Model'!D200) > 0, CONCATENATE("; 10. ", 'Business Model'!D200), ""), IF(LEN('Business Model'!D206) > 0, CONCATENATE("; 11. ", 'Business Model'!D206), ""), IF(LEN('Business Model'!D212) > 0, CONCATENATE("; 12. ", 'Business Model'!D212), ""), IF(LEN('Business Model'!D218) > 0, CONCATENATE("; 13. ", 'Business Model'!D218), ""), IF(LEN('Business Model'!D224) > 0, CONCATENATE("; 14. ", 'Business Model'!D224), ""), IF(LEN('Business Model'!D230) > 0, CONCATENATE("; 15. ", 'Business Model'!D230), "")) -> 1. Disease free seeds; 2. Reduced risk in farming; 3. Reduced risk in seed business; 4. Better seed performance; 5. Reduced expenditure on pest control; 6. Market preferred variety; 7. Improved nutrition (varieties); 8. True to type variety; 9. Training materials; 10. Reliable Research outcomes; 11. Faster adoption of good varieties; 12. Yield improvement; 13. Reduced Post harvest loses | J5: 1 | K5: Next- Bypass Stage (BS) | L5: =IF(LEN(TRIM(Operations!C12))> 0, TRIM(Operations!C12), "") -> Stage 1A. Establish in quarantine glasshouse (Stem Cuttings) | N5: Hours | O5: 1 | Q5: 60 | S5: April | T5: 4 | U5: 2028 | V5: B2N (Business to NGOs) | W5: 4 = Likely | X5: 4 = Major | Y5: Energy/ Utilities | Z5: Employee Benefits | AA5: Financial Assets | AB5: Marketing and Advertising Costs
A6: Burkina Faso | C6: =TRIM(Background!D52) -> Diagnostics sequencing | D6: Minitubers | E6: =TRIM(Background!F85) ->  | F6: =TRIM('Business Model'!D17) -> Multiplying conserved varieties | G6: =TRIM(Background!D130) -> Private Companies | K6: Next- Split Stage (SS) | L6: =IF(LEN(TRIM(Operations!C13))> 0, TRIM(Operations!C13), "") -> Stage 1B: Establish in post entry quarantine growthroom | N6: Days | O6: 1 | P6: 8 | Q6: =P6*60 -> 480 | R6: 8 hrs in 1 day | S6: May | T6: 5 | U6: 2029 | W6: 5 = Almost Certain | X6: 5 = Catastrophic | Y6: Miscellaneous | Z6: Miscellaneous | AA6: Miscellaneous | AB6: Miscellaneous
A7: Burundi | C7: =TRIM(Background!D54) -> Genotyping | E7: =TRIM(Background!F87) ->  | F7: =TRIM('Business Model'!D19) -> Genotyping | G7: =TRIM(Background!D132) -> Nurseries | K7: Mirror Stage (MS) | L7: =IF(LEN(TRIM(Operations!C14))> 0, TRIM(Operations!C14), "") -> Stage 1C: Hardening Invitro Plantlet (Quarantine Glasshouse) | N7: Weeks | O7: 1 | P7: 5 | Q7: =P7*Q6 -> 2400 | R7: 5 days in a week, 8hrs per day | S7: June | T7: 6
A8: Cameroon | C8: =TRIM(Background!D56) -> Training/ capacity building (Indexing/ cleaning, seed/ multiplication, seed/ screenhouse/ Tissue Culture) | E8: =TRIM(Background!F89) ->  | F8: =TRIM('Business Model'!D21) -> Training/ capacity building (Indexing/ cleaning, seed/ multiplication, seed/ screenhouse/ Tissue Culture) | G8: =TRIM(Background!D134) -> Seed Multipliers | K8: Return Stage (RS) | L8: =IF(LEN(TRIM(Operations!C15))> 0, TRIM(Operations!C15), "") -> Stage 2A.1. Virus indexing by Convectional PCR | N8: Months | O8: 1 | P8: 4 | Q8: =P8*Q7 -> 9600 | R8: 4 weeks in a month, 40hrs per week | S8: July | T8: 7
A9: Ethiopia | C9: =TRIM(Background!D58) -> Management training (Seed Entrepreneurship) | E9: =TRIM(Background!F91) ->  | F9: =TRIM('Business Model'!D23) -> Management training (Seed Entrepreneurship) | G9: =TRIM(Background!D136) -> Academic Institutions | K9: End Stage (ES) | L9: =IF(LEN(TRIM(Operations!C16))> 0, TRIM(Operations!C16), "") -> Stage 2A.2. Virus indexing by Real time PCR | N9: Years | O9: 1 | P9: 12 | Q9: =P9*Q8 -> 115200 | R9: 12 months in 1 year, 4 weeks per month | S9: August | T9: 8
A10: Ghana | C10: =TRIM(Background!D60) -> Conservation (Multiplication of conserved varieties) | E10: =TRIM(Background!F93) ->  | F10: =TRIM('Business Model'!D25) -> Conservation (Multiplication of conserved varieties) | G10: =TRIM(Background!D138) -> NGOs | L10: =IF(LEN(TRIM(Operations!C17))> 0, TRIM(Operations!C17), "") -> Stage 2A.3. Virus indexing by grafting (SETOSA) | N10: Continous | Q10: =Q9*50 -> 5760000 | R10: Random number (50 years time) | S10: September | T10: 9
A11: India | C11: =TRIM(Background!D62) -> Facilities for Research (PhD Students, postdocs, scientists) | E11: =TRIM(Background!F95) ->  | F11: =TRIM('Business Model'!D27) -> Facilities for Research (PhD Students, postdocs, scientists) | G11: =TRIM(Background!D140) -> UN Organisations (WFP, FAO, etc.) | L11: =IF(LEN(TRIM(Operations!C18))> 0, TRIM(Operations!C18), "") -> Stage 2A.4. Virus Indexing by ELISA | S11: October | T11: 10
A12: Madagascar | C12: =TRIM(Background!D64) -> Delivery of cleaned materials | E12: =TRIM(Background!F97) ->  | F12: =TRIM('Business Model'!D29) -> Delivery of cleaned materials | G12: =TRIM(Background!D142) ->  | L12: =IF(LEN(TRIM(Operations!C19))> 0, TRIM(Operations!C19), "") -> Positive (diagnostic) | S12: November | T12: 11
A13: Malawi | C13: =TRIM(Background!D66) -> Diagnostics sequencing | E13: =TRIM(Background!F99) ->  | F13: =TRIM('Business Model'!D31) -> Diagnostics sequencing | G13: =TRIM(Background!D144) ->  | L13: =IF(LEN(TRIM(Operations!C20))> 0, TRIM(Operations!C20), "") -> Negative (diagnostic) | S13: December | T13: 12
A14: Mozambique | C14: =TRIM(Background!D68) -> Advisory services (marketing advisory, value addition advisory) | E14: =TRIM(Background!F101) ->  | F14: =TRIM('Business Model'!D33) -> Advisory services (marketing advisory, value addition advisory) | G14: =TRIM(Background!D146) ->  | L14: =IF(LEN(TRIM(Operations!C21))> 0, TRIM(Operations!C21), "") -> Stage 2C: Diagnostic report
A15: Nigeria | C15: =TRIM(Background!D70) ->  | E15: =TRIM(Background!F103) ->  | F15: =TRIM('Business Model'!D35) ->  | G15: =TRIM(Background!D148) ->  | L15: =IF(LEN(TRIM(Operations!C22))> 0, TRIM(Operations!C22), "") -> Stage 2B: Phytosanitary Certificate
A16: Peru | C16: =TRIM(Background!D72) ->  | E16: =TRIM(Background!F105) ->  | F16: =TRIM('Business Model'!D37) ->  | G16: =TRIM(Background!D150) ->  | L16: =IF(LEN(TRIM(Operations!C23))> 0, TRIM(Operations!C23), "") -> Stage 3A1: Take explant through surface sterilization & Initiation (positive)
A17: Zimbabwe | C17: =TRIM(Background!D74) ->  | E17: =TRIM(Background!F107) ->  | F17: =TRIM('Business Model'!D39) ->  | G17: =TRIM(Background!D152) ->  | L17: =IF(LEN(TRIM(Operations!C24))> 0, TRIM(Operations!C24), "") -> Stage 3A2: Take explant through surface sterilization & Initiation (negative)
A18: Afghanistan | E18: =TRIM(Background!F109) ->  | F18: =TRIM(Background!D119) ->  | L18: =IF(LEN(TRIM(Operations!C25))> 0, TRIM(Operations!C25), "") -> Stage 3B: Thermotherapy and meristem tip culture
A19: Albania | E19: =TRIM(Background!F111) ->  | L19: =IF(LEN(TRIM(Operations!C26))> 0, TRIM(Operations!C26), "") -> Stage 3C: Hardening Invitro plantlet (After cleaning)
A20: Algeria | E20: =TRIM(Background!F113) ->  | L20: =IF(LEN(TRIM(Operations!C27))> 0, TRIM(Operations!C27), "") -> Stage 3D: Transfer to growth room for multiplication and sub-culturing
A21: American Samoa | E21: =TRIM(Background!F115) ->  | L21: =IF(LEN(TRIM(Operations!C28))> 0, TRIM(Operations!C28), "") -> Stage 4A. Harden plantlets in a glasshouse or screenhouse (After testing Negative)
A22: Andorra | E22: =TRIM(Background!F117) ->  | L22: =IF(LEN(TRIM(Operations!C29))> 0, TRIM(Operations!C29), "") -> Stage 4B: Distribute in vitro plantlets
A23: Angola | L23: =IF(LEN(TRIM(Operations!C30))> 0, TRIM(Operations!C30), "") -> Stage 4C: In vitro conservation (growth room)
A24: Anguilla | L24: =IF(LEN(TRIM(Operations!C31))> 0, TRIM(Operations!C31), "") -> Stage 5A: Invivo Conservation (screenhouse)
A25: Antarctica | L25: =IF(LEN(TRIM(Operations!C32))> 0, TRIM(Operations!C32), "") -> Stage 5B: Invivo Multiplication (screenhouse)
A26: Antigua and Barbuda | L26: =IF(LEN(TRIM(Operations!C33))> 0, TRIM(Operations!C33), "") -> Stage 5C: Distribute cuttings (15cm)
A27: Argentina | L27: =IF(LEN(TRIM(Operations!C34))> 0, TRIM(Operations!C34), "") -> 
A28: Armenia | L28: =IF(LEN(TRIM(Operations!C35))> 0, TRIM(Operations!C35), "") -> 
A29: Aruba | L29: =IF(LEN(TRIM(Operations!C36))> 0, TRIM(Operations!C36), "") -> 
A30: Australia
A31: Austria
A32: Azerbaijan
A33: Bahamas
A34: Bahrain
A35: Barbados
A36: Belarus
A37: Belgium
A38: Belize
A39: Benin
A40: Bermuda
A41: Bhutan
A42: Bolivia
A43: Bosnia and Herzegovina
A44: Botswana
A45: Brazil
A46: British Indian Ocean Territory
A47: British Virgin Islands
A48: Brunei
A49: Bulgaria
A50: Cambodia
A51: Canada
A52: Cape Verde
A53: Cayman Islands
A54: Central African Republic
A55: Chad
A56: Chile
A57: China
A58: Christmas Island
A59: Cocos Islands
A60: Colombia
A61: Comoros
A62: Cook Islands
A63: Costa Rica
A64: Croatia
A65: Cuba
A66: Curacao
A67: Cyprus
A68: Czech Republic
A69: Democratic Republic of the Congo
A70: Denmark
A71: Djibouti
A72: Dominica
A73: Dominican Republic
A74: East Timor
A75: Ecuador
A76: Egypt
A77: El Salvador
A78: Equatorial Guinea
A79: Eritrea
A80: Estonia
A81: Falkland Islands
A82: Faroe Islands
A83: Fiji
A84: Finland
A85: France
A86: French Polynesia
A87: Gabon
A88: Gambia
A89: Georgia
A90: Germany
A91: Gibraltar
A92: Greece
A93: Greenland
A94: Grenada
A95: Guam
A96: Guatemala
A97: Guernsey
A98: Guinea
A99: Guinea-Bissau | E99: =IF(I99 < ChoiceList!Q5, CONCATENATE(I99, " ", ChoiceList!N4), IF(I99 < ChoiceList!Q6, CONCATENATE(ROUNDDOWN(I99/ChoiceList!Q5, 0), " ", ChoiceList!N5), IF(I99 < ChoiceList!Q7, CONCATENATE(ROUNDDOWN(I99/ChoiceList!Q6, 1), " ", ChoiceList!N6), IF(I99 < ChoiceList!Q8, CONCATENATE(ROUNDDOWN(I99/ChoiceList!P, 1), " ", ChoiceList!N7), "")))) -> Minutes
A100: Guyana
A101: Haiti
A102: Honduras
A103: Hong Kong
A104: Hungary
A105: Iceland
A106: Indonesia
A107: Iran
A108: Iraq
A109: Ireland
A110: Isle of Man
A111: Israel
A112: Italy
A113: Ivory Coast
A114: Jamaica
A115: Japan
A116: Jersey
A117: Jordan
A118: Kazakhstan
A119: Kiribati
A120: Kosovo
A121: Kuwait
A122: Kyrgyzstan
A123: Laos
A124: Latvia
A125: Lebanon
A126: Lesotho
A127: Liberia
A128: Libya
A129: Liechtenstein
A130: Lithuania
A131: Luxembourg
A132: Macau
A133: Macedonia
A134: Malaysia
A135: Maldives
A136: Mali
A137: Malta
A138: Marshall Islands
A139: Mauritania
A140: Mauritius
A141: Mayotte
A142: Mexico
A143: Micronesia
A144: Moldova
A145: Monaco
A146: Mongolia
A147: Montenegro
A148: Montserrat
A149: Morocco
A150: Myanmar
A151: Namibia
A152: Nauru
A153: Nepal
A154: Netherlands
A155: Netherlands Antilles
A156: New Caledonia
A157: New Zealand
A158: Nicaragua
A159: Niger
A160: Niue
A161: North Korea
A162: Northern Mariana Islands
A163: Norway
A164: Oman
A165: Pakistan
A166: Palau
A167: Palestine
A168: Panama
A169: Papua New Guinea
A170: Paraguay
A171: Philippines
A172: Pitcairn
A173: Poland
A174: Portugal
A175: Puerto Rico
A176: Qatar
A177: Republic of the Congo
A178: Reunion
A179: Romania
A180: Russia
A181: Rwanda
A182: Saint Barthelemy
A183: Saint Helena
A184: Saint Kitts and Nevis
A185: Saint Lucia
A186: Saint Martin
A187: Saint Pierre and Miquelon
A188: Saint Vincent and the Grenadines
A189: Samoa
A190: San Marino
A191: Sao Tome and Principe
A192: Saudi Arabia
A193: Senegal
A194: Serbia
A195: Seychelles
A196: Sierra Leone
A197: Singapore
A198: Sint Maarten
A199: Slovakia
A200: Slovenia
... 41 more rows
